{"text_format":"1","workbook":"xlsx","n_sheets":13,"sheets":["СВ ОКНА","СМЕТА","КЛИЕНТЫ","ЧЕРТЕЖ","СЧЕТ-ДОГОВОР","ПП","МОНТАЖ","ВР","ЗАЯВКА","ПРИХОДНИК","СЧЕТ","ТОРГ","УПД"],"not_rendered":{"charts":0,"images":3,"macros":1,"external_links":0,"defined_names":96,"comments":0,"pivot_tables":0},"unopened":[],"bounds":{"document_bytes":16777216,"sheet_cells":100000,"rows_first":2000,"rows_last":500,"rows_between":2000,"halvings":0,"cell_chars":16384,"cell_head_chars":4096},"cells_cut":0,"cells_raw":0,"read":"whole","date_system":"1900"}

{"sheet":"СВ ОКНА","index":0,"n_rows":107,"n_cols":13,"rows_kept":107,"cut":false,"hidden":false,"merged":[[48,0,48,1],[49,0,49,1],[50,0,50,1],[51,0,51,1]]}
[null," "]
["Для вывода формы щелкните по картинке! Ваш список дополнительных товаров и услуг смотрите ниже!"]
["Если форма не открывается измените политику безопасности в меню макросы!",null,null,null," "]
[]
[]
[]
[]
[null,null," "]
[]
[" "]
[]
[]
[]
[]
[]
[]
[]
[]
[]
[null,null,null,null,null,null,null,null,null,null,null,null," "]
[]
[]
[]
[null,null," "]
[]
[]
[]
[]
[]
[]
[]
[]
[]
[]
[]
[]
[]
[]
[]
[]
[]
[]
[]
[]
[]
[]
[]
[]
[]
[]
[]
[]
[]
[]
[]
[]
[]
["Дополнительные товары",null,null,null,"Дополнительные услуги"]
["Наименование.","Ед. изм.","Цена (руб.)",null,"Наименование.","Ед. изм.","Цена (руб.)"]
["Поворотно-откидная фурнитура с микрощелевым проветриванием на дверь.","шт.",3200]
["Поворотно-откидная фурнитура на дверь.","шт.",3000]
["Патинирование с одной стороны.","кв. м",2500]
["Искусственное старение древесины с одной стороны.","кв. м",2000]
["Наценка за цельноламельный погонаж.","кв. м",5000]
["Наценка за профилирование наличника.","пог. м.",700]
["Выборка под откосы по  периметру окна (5ммх5мм).","окно",1500]
["Капельник (дерево).","пог. м",2500]
["Низкий порог на дверь ОСВ","створка",2000]
["Комплект петель для круглого  окна (диаметр до 1200мм).","компл.",10000]
["Ручка с ключом.","шт.",4000]
["Штульповой запор на дверь под паз 7/8.","шт.",4000]
["Портальная фурнитура FORNAX 130 кг (Параллельно-сдвижной).","створка",55000]
["Портальная фурнитура SIEGENIA PORTAL РSK comfort 160 (Параллельно-сдвижной).","створка",110000]
["Портальная фурнитура SIEGENIA PORTAL FS PLUS схема 220 (Гармошка).","комплект",9859971555]
["Портальная фурнитура SIEGENIA PORTAL FS PLUS схема 330 (Гармошка).","комплект",9859971555]
["Портальная фурнитура SIEGENIA PORTAL FS PLUS схема 321 (Гармошка).","комплект",9859971555]
["Портальная фурнитура SIEGENIA PORTAL FS PLUS схема 440 (Гармошка).","комплект",9859971555]
["Портальная фурнитура SIEGENIA PORTAL FS PLUS схема 431 (Гармошка).","комплект",9859971555]
["Портальная фурнитура SIEGENIA PORTAL FS PLUS схема 550 (Гармошка).","комплект",9859971555]
["Портальная фурнитура SIEGENIA PORTAL FS PLUS схема 541 (Гармошка).","комплект",9859971555]
["Портальная фурнитура SIEGENIA PORTAL FS PLUS схема 532 (Гармошка).","комплект",9859971555]
["Портальная фурнитура SIEGENIA PORTAL FS PLUS схема 660 (Гармошка).","комплект",9859971555]
["Портальная фурнитура SIEGENIA PORTAL FS PLUS схема 651 (Гармошка).","комплект",9859971555]
["Портальная фурнитура SIEGENIA PORTAL FS PLUS схема 633 (Гармошка).","комплект",9859971555]
["Портальная фурнитура SIEGENIA PORTAL FS PLUS схема 770 (Гармошка).","комплект",9859971555]
["Портальная фурнитура SIEGENIA PORTAL FS PLUS схема 761 (Гармошка).","комплект",9859971555]
["Портальная фурнитура SIEGENIA PORTAL FS PLUS схема 743 (Гармошка).","комплект",9859971555]
["Портальная фурнитура SIEGENIA-AUBI HS PORTAL (Подъемно-сдвижной).","створка",9859971555]
["Латунная накладка на низ двери (1 шт)","шт.",10000]
["Заполнение аргоном за одну камеру стеклопакета.","кв. м",600]
["Фрамужный привод жесткий белый.","шт.",25000]
["Фрамужный привод жесткий коричневый.","шт.",25000]
["Фрамужный электропривод белый.","шт.",25000]
["Фрамужный электропривод коричневый.","шт.",25000]
["Приточный клапан AIRECO белый.","шт.",19000]
["Приточный клапан AIRECO коричневый.","шт.",19000]
["Жалюзийная решетка сосна окрашенная.","кв. м",25000]
["Жалюзийная решетка лиственница окрашенная.","кв. м",30000]
["Жалюзийная решетка дуб окрашенная.","кв. м",40000]
["Петля ввёртная дверная (16мм) без накладок.","шт.",2000]
["Реставрация окон","шт.",10000]
["Штапик ЕВРО сосна окрашенный","пог. м",1000]
["Штапик ЕВРО лиственница окрашенный","пог. м",1300]
["Штапик ЕВРО дуб окрашенный","пог. м",1800]
["Фурнитура MACO Mammut","компл.",30000]
["Петли BAKA","компл.",18000]
["Дуплекс в стеклопакете в одну камеру.","усл. кв.",2000]

{"sheet":"СМЕТА","index":1,"n_rows":215,"n_cols":97,"rows_kept":215,"cut":false,"hidden":false,"merged":[]}
["НАИМЕНОВАНИЕ","ЕД ИЗМ","Цена",1,null,null,null,null,null,1,"Доставка в пределах МКАД за ТТК.","шт.",6000,123,null,null,null,null,null,"ID","цвет отделки","Грунт","Лак","уплотн","Прозрачн","ОСВ","ЕВРО","Погонаж","Код цвета","ID","Вид работ","ед изм","Цена",null,null,null,null,null,null,"ID","Подоконник","ед изм","Цена","Ширина","Артикул","Заглушка",null,null,null,"ID","Слив наружный","ед изм","Цена","Ширина","Артикул","Заглушка",null,null,null,"ID","Стекло наружное","ед изм","цена","Обозначение","Артикул","толщина",null,null,null,"ID","Стекло внутреннее","ед изм","цена","Обозначение","Артикул","толщина",null,null,null,"ID","цвет профиля","D22/20F","Артикул","Заглушка","FP","Артикул","Заглушка","Капельник","Артикул","Наименование","ед изм","цена б/о","Специф","ширина ЕВРО","Ширина ОСВ","Цвет"]
["ХХХ",null,100,2,null,null,null,null,null,2,"Доставка в пределах ТТК .","шт.",8000,124,null,null,null,null,null,0,"Без отделки",null,null,2,0,null,null,null,15202559,2,"Монтаж ЕВРО-окон по технологии ILLBRUCK.","кв. м",2900,null,null,null,null,null,null,0,"сосна сращенная 30 мм","пог. м",null,200,null,null,null,null,null,0,"оцинкованный белый","пог. м",null,90,null,null,null,null,null,0,"Прозрачное стекло М1 4 мм в стеклопакете.","кв. м",0,"4","4М1",4,null,null,null,0,"Энергосберегающее И-стекло 4 мм в стеклопакете.","кв. м",0,"4И","4TopN+",4,null,null,null,0,"Белый",1400,"ROS5605.01/RAL9016","ROS0080.07",1200,"FP-16.07","16-FP.07",400,"P431/RAL9016","Фальшпереплет дерево 18 мм с наружной стороны.","усл. кв.",900,0,18,18,null,0]
["Заполнение низа балконной двери имитация филенки.","шт.",15400,3,null,null,null,null,null,3,"Доставка по Московской области до 10 км от МКАД.","шт.",6000,125,null,null,null,null,null,1,"Антисептик","Сосна",null,2,1,700,800,1400,14347239,3,"Монтаж ОСВ-окон по технологии ILLBRUCK.","кв. м",2500,null,null,null,null,null,null,0,"сосна сращенная 30 мм","пог. м",null,250,null,null,null,null,null,0,"оцинкованный белый","пог. м",null,110,null,null,null,null,null,1,"Прозрачное стекло М1 6 мм в стеклопакете.","кв. м",1100,"6","6М1",6,null,null,null,1,"Энергосберегающее И-стекло 6 мм в стеклопакете.","кв. м",1600,"6И","6TopN+",6,null,null,null,1,"Коричневый",1400,"ROS5605.01/RAL8017","ROS0080.05",1200,"FP-16.05","16-FP.05",400,"P431/RAL8017","Фальшпереплет дерево 25 мм с наружной стороны.","усл. кв.",900,0,25,25,null,1]
["Заполнение низа балконной двери филенка сосна.","шт.",11000,4,null,null,null,null,null,4,"Доставка по Московской области от 10 до 100 км от МКАД.","км",60,126,null,null,null,null,null,2,"По образцу прозрачная","По образцу прозрачная","По образцу прозрачная",2,0,1600,2500,3700,3421131,4,"Монтаж ЕВРО-окон простой.","кв. м",2300,null,null,null,null,null,null,0,"сосна сращенная 30 мм","пог. м",null,300,null,null,null,null,null,0,"оцинкованный белый","пог. м",null,130,null,null,null,null,null,2,"Мультифункциональное стекло 4 мм в стеклопакете.","кв. м",700,"4МФ","4МФ",4,null,null,null,2,"Закаленное стекло 4 мм в стеклопакете.","кв. м",2800,"4зак","4зак",4,null,null,null,2,"Алюминий",1000,"ROS5605.01","ROS0080.01",500,"FP-16.01","16-FP.01",300,"P431","Расстекловка узким импостом","усл. кв.",1900,0,56,50,null,2]
["Заполнение низа балконной двери филенка лиственница.","шт.",16500,5,null,null,null,null,null,5,"Доставка более 100 км от МКАД.","км",70,127,null,null,null,null,null,3,"По образцу укрывная","По образцу укрывная","По образцу укрывная",2,1,1600,2500,3700,7480729,5,"Монтаж ОСВ-окон простой.","кв. м",2000,null,null,null,null,null,null,1,"сосна сращенная 40 мм","пог. м",null,200,null,null,null,null,null,0,"оцинкованный белый","пог. м",null,150,null,null,null,null,null,3,"Мультифункциональное стекло 6 мм в стеклопакете.","кв. м",1800,"6МФ","6МФ",6,null,null,null,3,"Закаленное стекло 6 мм в стеклопакете.","кв. м",3300,"6зак","6зак",6,null,null,null,4,"RAL1000",1800,{"$f":"\"ROS5605.01/\"&CC5","v":"ROS5605.01/RAL1000"},{"$f":"\"ROS0080.0\"&IF(CA6=2,1,IF(CA6=1,5,7))","v":"ROS0080.01"},1800,{"$f":"\"FP-16.01/\"&CC5","v":"FP-16.01/RAL1000"},{"$f":"\"16-FP.0\"&IF(CA6=2,1,IF(CA6=1,5,7))","v":"16-FP.01"},800,{"$f":"\"P431/\"&CC5","v":"P431/RAL1000"},"Расстекловка широким импостом","усл. кв.",1800,0,78,70,null,3]
["Заполнение низа балконной двери филенка дуб.","шт.",22000,6,null,null,null,null,null,6,"Разгрузка ОСВ-окон.","усл. кв. м",200,null,null,null,null,null,null,4,"Белый","Белый","Краска белая",0,1,1600,1900,3300,16777215,6,"Монтаж пластиковых подоконников (до 0,6 кв. м).","шт.",900,null,null,null,null,null,null,1,"сосна сращенная 40 мм","пог. м",null,250,null,null,null,null,null,0,"оцинкованный белый","пог. м",null,165,null,null,null,null,null,4,"Закаленное стекло 4 мм в стеклопакете.","кв. м",2800,"4зак","4зак",4,null,null,null,4,"Триплекс 3.1.3 в стеклопакете.","кв. м",5300,"3.1.3","3.1.3",6,null,null,2,5,"RAL1001",1800,{"$f":"\"ROS5605.01/\"&CC6","v":"ROS5605.01/RAL1001"},"ROS0080.01",1800,{"$f":"\"FP-16.01/\"&CC6","v":"FP-16.01/RAL1001"},"16-FP.01",800,{"$f":"\"P431/\"&CC6","v":"P431/RAL1001"},"Горбылек 25 мм с двух сторон.","усл. кв.",1800,0,25,25,null,4]
["Заполнение низа балконной двери щит клееный сосна.","шт.",6600,7,null,null,null,null,null,7,"Разгрузка ЕВРО-окон.","усл. кв. м",300,null,null,null,null,null,null,5,"Ясень","Bianco 0.10","Bianco 0.10",0,0,1600,1900,3300,16448255,7,"Монтаж деревянных подоконников (до 0,6 кв. м).","шт.",1200,null,null,null,null,null,null,1,"сосна сращенная 40 мм","пог. м",null,300,null,null,null,null,null,0,"оцинкованный белый","пог. м",null,180,null,null,null,null,null,5,"Закаленное стекло 6 мм в стеклопакете.","кв. м",3300,"6зак","6зак",6,null,null,null,5,"Триплекс 4.1.4 в стеклопакете.","кв. м",5700,"4.1.4","4.1.4",8,null,null,2,6,"RAL1002",1800,{"$f":"\"ROS5605.01/\"&CC7","v":"ROS5605.01/RAL1002"},"ROS0080.01",1800,{"$f":"\"FP-16.01/\"&CC7","v":"FP-16.01/RAL1002"},"16-FP.01",800,"P431/RAL1002","Горбылек 25 мм с калевкой с двух сторон.","усл. кв.",3000,0,25,25,null,5]
["Заполнение низа балконной двери щит клееный лиственница.","шт.",11000,8,null,null,null,null,null,8,"Подъем ОСВ-окон на этаж при отсутствии грузового лифта.","усл. кв. м*эт",70,null,null,null,null,null,null,6,"Береза","Gelb 1.40","Gelb 1.40",0,0,1600,1900,3300,12051199,8,"Монтаж наружных сливов (до 2200 мм).","шт.",400,null,null,null,null,null,null,1,"сосна сращенная 40 мм","пог. м",null,400,null,null,null,null,null,0,"оцинкованный белый","пог. м",null,205,null,null,null,null,null,6,"Триплекс 3.1.3 в стеклопакете.","кв. м",5300,"3.1.3","3.1.3",6,null,null,null,6,"Триплекс энергосберегающий 3.1.3 в стеклопакете.","кв. м",5500,"3.1.3И","3.1.3И",6,null,null,2,7,"RAL1003",1800,"ROS5605.01/RAL1003","ROS0080.01",1800,"FP-16.01/RAL1003","16-FP.01",800,"P431/RAL1003","Фальшпереплет внутри с/п 8 мм белый.","усл. кв.",1000,1,8,8,16777215,6]
["Заполнение низа балконной двери щит клееный дуб.","шт.",19800,9,null,null,null,null,null,9,"Подъем ЕВРО-окон на этаж при отсутствии грузового лифта.","усл. кв. м*эт",90,null,null,null,null,null,null,7,"Клен","Bianco 0.10","Клен",2,0,1600,1900,3300,14020607,9,"Монтаж противомоскитных сеток.","шт.",300,null,null,null,null,null,null,1,"сосна сращенная 40 мм","пог. м",null,500,null,null,null,null,null,0,"оцинкованный белый","пог. м",null,225,null,null,null,null,null,7,"Триплекс 4.1.4 в стеклопакете.","кв. м",5700,"4.1.4","4.1.4",8,null,null,null,7,"Триплекс энергосберегающий 4.1.4 в стеклопакете.","кв. м",5900,"4.1.4И","4.1.4И",8,null,null,2,8,"RAL1004",1800,"ROS5605.01/RAL1004","ROS0080.01",1800,"FP-16.01/RAL1004","16-FP.01",800,"P431/RAL1004","Фальшпереплет внутри с/п 8 мм золото.","усл. кв.",1000,1,8,8,768759,7]
["Заполнение низа балконной двери брус сосна.","шт.",15400,10,null,null,null,null,null,null,null,null,null,null,null,null,null,null,null,8,"Сосна","Сосна","Сосна",2,0,1600,1900,3300,4247551,10,"Монтаж пластиковых откосов (до 1700 мм).","шт.",1100,null,null,null,null,null,null,1,"сосна сращенная 40 мм","пог. м",null,600,null,null,null,null,null,0,"оцинкованный белый","пог. м",null,250,null,null,null,null,null,8,"Триплекс стратофон 4.2.4 в стеклопакете.","кв. м",9400,"4.2.4","4.2.4",8,null,null,null,8,"Триплекс стратофон 4.2.4 в стеклопакете.","кв. м",9400,"4.2.4","4.2.4",8,null,null,2,9,"RAL1005",1800,"ROS5605.01/RAL1005","ROS0080.01",1800,"FP-16.01/RAL1005","16-FP.01",800,"P431/RAL1005","Фальшпереплет внутри с/п 18 мм белый.","усл. кв.",800,1,18,18,16777215,8]
["Заполнение низа балконной двери брус лиственница.","шт.",19800,11,null,null,null,null,null,null,null,null,null,null,null,null,null,null,null,9,"Орегон","Золотой тик","Золотой тик",2,0,1600,1900,3300,43508,11,"Монтаж деревянных откосов (до 1700 мм).","шт.",1500,null,null,null,null,null,null,2,"сосна цельноламельная 30 мм","пог. м",null,200,null,null,null,null,null,0,"оцинкованный белый","пог. м",null,280,null,null,null,null,null,9,"Матовое стекло 4 мм в стеклопакете.","кв. м",2500,"4Sat mat","4Sat mat",4,null,null,null,9,"Матовое стекло 4 мм в стеклопакете.","кв. м",2500,"4Sat mat","4Sat mat",4,null,null,2,10,"RAL1006",1800,"ROS5605.01/RAL1006","ROS0080.01",1800,"FP-16.01/RAL1006","16-FP.01",800,"P431/RAL1006","Фальшпереплет внутри с/п 18 мм золото.","усл. кв.",1400,1,18,18,768759,9]
["Заполнение низа балконной двери брус дуб.","шт.",26400,12,null,null,null,null,null,null,null,null,null,null,null,null,null,null,null,10,"Светлый дуб","Светлый дуб","Светлый дуб",2,0,1600,1900,3300,3450061,12,"Монтаж фальшкоробки.","кв. м",1500,null,null,null,null,null,null,2,"сосна цельноламельная 30 мм","пог. м",null,250,null,null,null,null,null,0,"оцинкованный белый","пог. м",null,320,null,null,null,null,null,10,"Матовое стекло 6 мм в стеклопакете.","кв. м",2600,"6Sat mat","6Sat mat",6,null,null,null,10,"Матовое стекло 6 мм в стеклопакете.","кв. м",2600,"6Sat mat","6Sat mat",6,null,null,2,11,"RAL1007",1800,"ROS5605.01/RAL1007","ROS0080.01",1800,"FP-16.01/RAL1007","16-FP.01",800,"P431/RAL1007","Фальшпереплет внутри с/п 18 мм коричневый.","усл. кв.",900,1,18,18,2961988,10]
["Алюминиевый фальшпереплет.","усл. кв. м",1000,13,null,null,null,null,null,null,null,null,null,null,null,null,null,null,null,11,"Каштан","Каштан Т2","Каштан Т2",1,0,1600,1900,3300,31157,13,"Монтаж наличников 30 мм (до 2300 мм).","шт.",130,null,null,null,null,null,null,2,"сосна цельноламельная 30 мм","пог. м",null,300,null,null,null,null,null,0,"оцинкованный белый","пог. м",null,360,null,null,null,null,null,11,"Тонированное в массе стекло 4 мм бронзовое в стеклопакете.","кв. м",2400,"4PL br","4PL br",4,null,null,null,11,"Тонированное в массе стекло 4 мм бронзовое в стеклопакете.","кв. м",2400,"4PL br","4PL br",4,null,null,2,12,"RAL1011",1800,"ROS5605.01/RAL1011","ROS0080.01",1800,"FP-16.01/RAL1011","16-FP.01",800,"P431/RAL1011","Фальшпереплет внутри с/п 18 мм светлый дуб.","усл. кв.",900,1,18,18,7187154,11]
["Окраска москитной сетки в цвет по RAL.","кв. м",3300,14,null,null,null,null,null,null,null,null,null,null,null,null,null,null,null,12,"Вишня","Rot 3.11","Rot 3.11",1,0,1600,1900,3300,128,14,"Монтаж наличников 40 мм (до 2300 мм).","шт.",230,null,null,null,null,null,null,3,"сосна цельноламельная 40 мм","пог. м",null,200,null,null,null,null,null,1,"оцинкованный коричневый","пог. м",null,90,null,null,null,null,null,12,"Тонированное в массе стекло 4 мм серое в стеклопакете.","кв. м",2400,"4PL grey","4PL grey",4,null,null,null,12,"Тонированное в массе стекло 4 мм серое в стеклопакете.","кв. м",2400,"4PL grey","4PL grey",4,null,null,2,13,"RAL1012",1800,"ROS5605.01/RAL1012","ROS0080.01",1800,"FP-16.01/RAL1012","16-FP.01",800,"P431/RAL1012","Фальшпереплет внутри с/п 18 мм темный дуб.","усл. кв.",900,1,18,18,2963785,12]
["Прозрачная отделка с двух сторон.","кв. м",7700,15,null,null,null,null,null,null,null,null,null,null,null,null,null,null,null,13,"Рябина","Махагон","Махагон",1,0,1600,1900,3300,1188769,15,"Монтаж наличников 70 мм (до 2300 мм).","шт.",330,null,null,null,null,null,null,3,"сосна цельноламельная 40 мм","пог. м",null,250,null,null,null,null,null,1,"оцинкованный коричневый","пог. м",null,110,null,null,null,null,null,13,"Тонированное в массе стекло 4 мм зеленое в стеклопакете.","кв. м",2400,"4PL green","4PL green",4,null,null,null,13,"Тонированное в массе стекло 4 мм зеленое в стеклопакете.","кв. м",2400,"4PL green","4PL green",4,null,null,2,14,"RAL1013",1800,"ROS5605.01/RAL1013","ROS0080.01",1800,"FP-16.01/RAL1013","16-FP.01",800,"P431/RAL1013","Фальшпереплет внутри с/п 18 мм золотой дуб.","усл. кв.",900,1,18,18,2852090,13]
["Шпонка соединительная 12х12 мм длина 2 м.","шт.",400,16,null,null,null,null,null,null,null,null,null,null,null,null,null,null,null,14,"Тик","Тик","Тик",1,0,1600,1900,3300,2970272,16,"Монтаж наличников 90 мм (до 2300 мм).","шт.",430,null,null,null,null,null,null,3,"сосна цельноламельная 40 мм","пог. м",null,300,null,null,null,null,null,1,"оцинкованный коричневый","пог. м",null,130,null,null,null,null,null,14,"Тонированное в массе стекло 6 мм бронзовое в стеклопакете.","кв. м",3500,"6PL br","6PL br",6,null,null,null,14,"Тонированное в массе стекло 6 мм бронзовое в стеклопакете.","кв. м",3500,"6PL br","6PL br",6,null,null,2,15,"RAL1014",1800,"ROS5605.01/RAL1014","ROS0080.01",1800,"FP-16.01/RAL1014","16-FP.01",800,"P431/RAL1014","Фальшпереплет внутри с/п 18 мм средний дуб.","усл. кв.",900,1,18,18,3101824,14]
["Нестандартный цвет отделки.","шт.",6600,17,null,null,null,null,null,null,null,null,null,null,null,null,null,null,null,15,"Дуб","Braun 8.03","Braun 8.03",1,0,1600,1900,3300,6588340,17,"Монтаж наличников 120 мм (до 2300 мм).","шт.",530,null,null,null,null,null,null,3,"сосна цельноламельная 40 мм","пог. м",null,400,null,null,null,null,null,1,"оцинкованный коричневый","пог. м",null,150,null,null,null,null,null,15,"Тонированное в массе стекло 6 мм серое в стеклопакете.","кв. м",3500,"6PL grey","6PL grey",6,null,null,null,15,"Тонированное в массе стекло 6 мм серое в стеклопакете.","кв. м",3500,"6PL grey","6PL grey",6,null,null,2,16,"RAL1015",1800,"ROS5605.01/RAL1015","ROS0080.01",1800,"FP-16.01/RAL1015","16-FP.01",800,"P431/RAL1015","Фальшпереплет внутри с/п 18 мм махагон.","усл. кв.",900,1,18,18,3225703,15]
["Отделка(покраска) двухцветная.","кв. м",3300,18,null,null,null,null,null,null,null,null,null,null,null,null,null,null,null,16,"Орех","Орех Т2","Орех Т2",1,0,1600,1900,3300,2701915,18,"Монтаж доборных брусов (до 2300 мм).","шт.",400,null,null,null,null,null,null,3,"сосна цельноламельная 40 мм","пог. м",null,500,null,null,null,null,null,1,"оцинкованный коричневый","пог. м",null,165,null,null,null,null,null,16,"Тонированное в массе стекло 6 мм зеленое в стеклопакете.","кв. м",3500,"6PL green","6PL green",6,null,null,null,16,"Тонированное в массе стекло 6 мм зеленое в стеклопакете.","кв. м",3500,"6PL green","6PL green",6,null,null,2,17,"RAL1016",1800,"ROS5605.01/RAL1016","ROS0080.01",1800,"FP-16.01/RAL1016","16-FP.01",800,"P431/RAL1016","Фальшпереплет внутри с/п 18 мм коричневый/белый.","усл. кв.",1000,1,18,18,2961988,16]
["Отделка(покраска) изолирующая.","кв. м",1800,19,null,null,null,null,null,null,null,null,null,null,null,null,null,null,null,17,"Венге","Braun 8.17","Braun 8.17",1,0,1600,1900,3300,2961988,19,"Демонтаж старых окон.","кв. м",700,null,null,null,null,null,null,3,"сосна цельноламельная 40 мм","пог. м",null,600,null,null,null,null,null,1,"оцинкованный коричневый","пог. м",null,180,null,null,null,null,null,17,"Самоочищающееся стекло 4 мм в стеклопакете.","кв. м",6600,"4AC","4AC",4,null,null,null,17,"Стекло 4 мм с пленкой 112 мкм прозрачной в стеклопакете.","кв. м",2400,"4пл112мкм","4пл112мкм",4,null,null,2,18,"RAL1017",1800,"ROS5605.01/RAL1017","ROS0080.01",1800,"FP-16.01/RAL1017","16-FP.01",800,"P431/RAL1017","Фальшпереплет внутри с/п 18 мм светлый дуб/белый.","усл. кв.",1000,1,18,18,7187154,17]
["Ручка оконная металлическая белая.","шт.",500,20,null,null,null,null,null,null,null,null,null,null,null,null,null,null,null,18,"Палисандр","Палисандр","Палисандр",1,0,1600,1900,3300,1842999,20,"Вырезка и укрепление проемов в деревянном доме.","кв. м",1800,null,null,null,null,null,null,4,"лиственница сращенная 30 мм","пог. м",null,200,null,null,null,null,null,1,"оцинкованный коричневый","пог. м",null,205,null,null,null,null,null,18,"Самоочищающееся стекло 6 мм в стеклопакете.","кв. м",8300,"6AC","6AC",6,null,null,null,18,"Стекло 4 мм с пленкой класс А1 прозрачной в стеклопакете.","кв. м",3600,"4пл(А1)","4пл(А1)",4,null,null,2,19,"RAL1018",1800,"ROS5605.01/RAL1018","ROS0080.01",1800,"FP-16.01/RAL1018","16-FP.01",800,"P431/RAL1018","Фальшпереплет внутри с/п 18 мм темный дуб/белый.","усл. кв.",1000,1,18,18,2963785,18]
["Ручка оконная металлическая коричневая.","шт.",500,21,null,null,null,null,null,null,null,null,null,null,null,null,null,null,null,19,"Махагон","Палисандр","Махагон",1,0,1600,1900,3300,1646456,21,"Сложный демонтаж старых окон.","кв. м",1200,null,null,null,null,null,null,4,"лиственница сращенная 30 мм","пог. м",null,250,null,null,null,null,null,1,"оцинкованный коричневый","пог. м",null,225,null,null,null,null,null,19,"Стекло 4 мм с пленкой 112 мкм прозрачной в стеклопакете.","кв. м",2400,"4пл112мкм","4пл112мкм",4,null,null,null,19,"Стекло 4 мм с пленкой класс А2 прозрачной в стеклопакете.","кв. м",5300,"4пл(А2)","4пл(А2)",4,null,null,2,20,"RAL1019",1800,"ROS5605.01/RAL1019","ROS0080.01",1800,"FP-16.01/RAL1019","16-FP.01",800,"P431/RAL1019","Фальшпереплет внутри с/п 18 мм золотой дуб/белый.","усл. кв.",1000,1,18,18,2852090,19]
["Ручка оконная металлическая бронза.","шт.",700,22,null,null,null,null,null,null,null,null,null,null,null,null,null,null,null,20,"Natur","База","База",2,0,1600,1900,3300,15136253,22,"Вывоз мусора после монтажа.","шт.",15000,null,null,null,null,null,null,4,"лиственница сращенная 30 мм","пог. м",null,300,null,null,null,null,null,1,"оцинкованный коричневый","пог. м",null,250,null,null,null,null,null,20,"Стекло 4 мм с пленкой класс А1 прозрачной в стеклопакете.","кв. м",3600,"4пл(А1)","4пл(А1)",4,null,null,null,20,"Стекло 4 мм с пленкой класс А3 прозрачной в стеклопакете.","кв. м",7100,"4пл(А3)","4пл(А3)",4,null,null,2,21,"RAL1020",1800,"ROS5605.01/RAL1020","ROS0080.01",1800,"FP-16.01/RAL1020","16-FP.01",800,"P431/RAL1020","Фальшпереплет внутри с/п 18 мм средний дуб/белый.","усл. кв.",1000,1,18,18,3101824,20]
["Ручка оконная металлическая серебро.","шт.",700,23,null,null,null,null,null,null,null,null,null,null,null,null,null,null,null,21,"RAL1000","Белый","RAL1000",2,1,2000,2200,4400,9422284,23,"Разгрузка ОСВ-окон (минимально 10 усл. кв. м).","усл. кв. м",200,null,null,null,null,null,null,5,"лиственница сращенная 40 мм","пог. м",null,200,null,null,null,null,null,1,"оцинкованный коричневый","пог. м",null,280,null,null,null,null,null,21,"Стекло 4 мм с пленкой класс А2 прозрачной в стеклопакете.","кв. м",5300,"4пл(А2)","4пл(А2)",4,null,null,null,21,"Закаленное стекло 10 мм в стеклопакете.","кв. м",25000,"10зак","10зак",10,null,null,2,22,"RAL1021",1800,"ROS5605.01/RAL1021","ROS0080.01",1800,"FP-16.01/RAL1021","16-FP.01",800,"P431/RAL1021","Фальшпереплет внутри с/п 18 мм махагон/белый.","усл. кв.",1000,1,18,18,3225703,21]
["Ручка оконная металлическая титан.","шт.",700,24,null,null,null,null,null,null,null,null,null,null,null,null,null,null,null,22,"RAL1001","Белый","RAL1001",2,1,2000,2200,4400,9092305,24,"Разгрузка ЕВРО-окон (минимально 10 усл. кв. м).","усл. кв. м",300,null,null,null,null,null,null,5,"лиственница сращенная 40 мм","пог. м",null,250,null,null,null,null,null,1,"оцинкованный коричневый","пог. м",null,320,null,null,null,null,null,22,"Стекло 4 мм с пленкой класс А3 прозрачной в стеклопакете.","кв. м",7100,"4пл(А3)","4пл(А3)",4,null,null,null,null,null,null,null,null,null,null,null,null,2,23,"RAL1023",1800,"ROS5605.01/RAL1023","ROS0080.01",1800,"FP-16.01/RAL1023","16-FP.01",800,"P431/RAL1023","Фальшпереплет внутри с/п 26 мм белый.","усл. кв.",1000,1,26,26,16777215,22]
["Ручка оконная металлическая шампань.","шт.",5000,25,null,null,null,null,null,null,null,null,null,null,null,null,null,null,null,23,"RAL1002","Белый","RAL1002",2,1,2000,2200,4400,7583698,25,"Подъем ОСВ-окон на этаж при отсутствии грузового лифта.","усл. кв. м*эт",100,null,null,null,null,null,null,5,"лиственница сращенная 40 мм","пог. м",null,300,null,null,null,null,null,1,"оцинкованный коричневый","пог. м",null,360,null,null,null,null,null,23,"Закаленное стекло 10 мм в стеклопакете.","кв. м",25000,"10зак","10зак",10,null,null,null,null,null,null,null,null,null,null,null,null,2,24,"RAL1024",1800,"ROS5605.01/RAL1024","ROS0080.01",1800,"FP-16.01/RAL1024","16-FP.01",800,"P431/RAL1024","Фальшпереплет внутри с/п 26 мм золото.","усл. кв.",1800,1,26,26,768759,23]
["Гарнитур нажимной раздельный белый.","шт.",5500,26,null,null,null,null,null,null,null,null,null,null,null,null,null,null,null,24,"RAL1003","Белый","RAL1003",2,1,2000,2200,4400,768759,26,"Подъем ЕВРО-окон на этаж при отсутствии грузового лифта.","усл. кв. м*эт",200,null,null,null,null,null,null,5,"лиственница сращенная 40 мм","пог. м",null,400,null,null,null,null,null,2,"алюминиевый белый","пог. м",null,90,null,null,null,null,null,null,null,null,null,null,null,null,null,null,null,null,null,null,null,null,null,null,null,null,2,25,"RAL1027",1800,"ROS5605.01/RAL1027","ROS0080.01",1800,"FP-16.01/RAL1027","16-FP.01",800,"P431/RAL1027","Фальшпереплет внутри с/п 26 мм коричневый.","усл. кв.",1000,1,26,26,2961988,24]
["Гарнитур нажимной раздельный коричневый.","шт.",5500,27,null,null,null,null,null,null,null,null,null,null,null,null,null,null,null,25,"RAL1004","Белый","RAL1004",2,1,2000,2200,4400,504034,27,"Выезд монтажной бригады свыше 30 км от МКАД.","км",180,null,null,null,null,null,null,5,"лиственница сращенная 40 мм","пог. м",null,500,null,null,null,null,null,2,"алюминиевый белый","пог. м",null,110,null,null,null,null,null,null,null,null,null,null,null,null,null,null,null,null,null,null,null,null,null,null,null,null,2,26,"RAL1028",1800,"ROS5605.01/RAL1028","ROS0080.01",1800,"FP-16.01/RAL1028","16-FP.01",800,"P431/RAL1028","Фальшпереплет внутри с/п 26 мм светлый дуб.","усл. кв.",1000,1,26,26,7187154,25]
["Гарнитур нажимной раздельный бронза.","шт.",5500,28,null,null,null,null,null,null,null,null,null,null,null,null,null,null,null,26,"RAL1005","Белый","RAL1005",2,1,2000,2200,4400,303048,28,"Выезд монтажной бригады.","шт.",8000,null,null,null,null,null,null,5,"лиственница сращенная 40 мм","пог. м",null,600,null,null,null,null,null,2,"алюминиевый белый","пог. м",null,130,null,null,null,null,null,11,"Солнцеотражающее стекло 4 мм бесцветное в стеклопакете.","кв. м",600,"4ST PH clear","4ST PH clear",4,null,null,null,null,null,null,null,null,null,null,null,null,2,27,"RAL1032",1800,"ROS5605.01/RAL1032","ROS0080.01",1800,"FP-16.01/RAL1032","16-FP.01",800,"P431/RAL1032","Фальшпереплет внутри с/п 26 мм темный дуб.","усл. кв.",1000,1,26,26,2963785,26]
["Гарнитур нажимной раздельный серебро.","шт.",5500,29,null,null,null,null,null,null,null,null,null,null,null,null,null,null,null,27,"RAL1006","Белый","RAL1006",2,1,2000,2200,4400,41441,29,"Монтаж конструкций массой свыше 80 кг.","кв. м",2400,null,null,null,null,null,null,6,"лиственница цельноламельная 30 мм","пог. м",null,200,null,null,null,null,null,2,"алюминиевый белый","пог. м",null,150,null,null,null,null,null,12,"Солнцеотражающее стекло 4 мм бронзовое в стеклопакете.","кв. м",600,"4ST PH br","4ST PH br",4,null,null,null,null,null,null,null,null,null,null,null,null,2,28,"RAL1033",1800,"ROS5605.01/RAL1033","ROS0080.01",1800,"FP-16.01/RAL1033","16-FP.01",800,"P431/RAL1033","Фальшпереплет внутри с/п 26 мм золотой дуб.","усл. кв.",1000,1,26,26,2852090,27]
["Гарнитур нажимной раздельный титан.","шт.",5500,30,null,null,null,null,null,null,null,null,null,null,null,null,null,null,null,28,"RAL1007","Белый","RAL1007",2,1,2000,2200,4400,40167,null,null,null,null,null,null,null,null,null,null,6,"лиственница цельноламельная 30 мм","пог. м",null,250,null,null,null,null,null,2,"алюминиевый белый","пог. м",null,165,null,null,null,null,null,13,"Солнцеотражающее стекло 4 мм серое в стеклопакете.","кв. м",600,"4ST PH grey","4ST PH grey",4,null,null,null,null,null,null,null,null,null,null,null,null,2,29,"RAL1034",1800,"ROS5605.01/RAL1034","ROS0080.01",1800,"FP-16.01/RAL1034","16-FP.01",800,"P431/RAL1034","Фальшпереплет внутри с/п 26 мм средний дуб.","усл. кв.",1000,1,26,26,3101824,28]
["Гарнитур нажимной раздельный шампань.","шт.",15000,31,null,null,null,null,null,null,null,null,null,null,null,null,null,null,null,29,"RAL1011","Белый","RAL1011",2,1,2000,2200,4400,5540527,null,null,null,null,null,null,null,null,null,null,6,"лиственница цельноламельная 30 мм","пог. м",null,300,null,null,null,null,null,2,"алюминиевый белый","пог. м",null,180,null,null,null,null,null,14,"Солнцеотражающее стекло 6 мм бесцветное в стеклопакете.","кв. м",1650,"6ST PH clear","6ST PH clear",6,null,null,null,null,null,null,null,null,null,null,null,null,2,30,"RAL1037",1800,"ROS5605.01/RAL1037","ROS0080.01",1800,"FP-16.01/RAL1037","16-FP.01",800,"P431/RAL1037","Фальшпереплет внутри с/п 26 мм махагон.","усл. кв.",1000,1,26,26,3225703,29]
["Гарнитур нажимной сплошной белый.","шт.",3600,32,null,null,null,null,null,null,null,null,null,null,null,null,null,null,null,30,"RAL1012","Белый","RAL1012",2,1,2000,2200,4400,2277593,null,null,null,null,null,null,null,null,null,null,7,"лиственница цельноламельная 40 мм","пог. м",null,200,null,null,null,null,null,2,"алюминиевый белый","пог. м",null,205,null,null,null,null,null,15,"Солнцеотражающее стекло 6 мм бронзовое в стеклопакете.","кв. м",1950,"6ST PH br","6ST PH br",6,null,null,null,null,null,null,null,null,null,null,null,null,2,31,"RAL2000",1800,"ROS5605.01/RAL2000","ROS0080.05",1800,"FP-16.01/RAL2000","16-FP.05",800,"P431/RAL2000","Фальшпереплет внутри с/п 26 мм коричневый/белый.","усл. кв.",1100,1,26,26,2961988,30]
["Гарнитур нажимной сплошной коричневый.","шт.",3600,33,null,null,null,null,null,null,null,null,null,null,null,null,null,null,null,31,"RAL1013","Белый","RAL1013",2,1,2000,2200,4400,13559273,null,null,null,null,null,null,null,null,null,null,7,"лиственница цельноламельная 40 мм","пог. м",null,250,null,null,null,null,null,2,"алюминиевый белый","пог. м",null,225,null,null,null,null,null,null,null,null,null,null,null,null,null,null,null,null,null,null,null,null,null,null,null,null,1,32,"RAL2001",1800,"ROS5605.01/RAL2001","ROS0080.05",1800,"FP-16.01/RAL2001","16-FP.05",800,"P431/RAL2001","Фальшпереплет внутри с/п 26 мм светлый дуб/белый.","усл. кв.",1100,1,26,26,7187154,31]
["Гарнитур нажимной сплошной бронза.","шт.",3600,34,null,null,null,null,null,null,null,null,null,null,null,null,null,null,null,32,"RAL1014","Белый","RAL1014",2,1,2000,2200,4400,10473694,null,null,null,null,null,null,null,null,null,null,7,"лиственница цельноламельная 40 мм","пог. м",null,300,null,null,null,null,null,2,"алюминиевый белый","пог. м",null,250,null,null,null,null,null,null,null,null,null,null,null,null,null,null,null,null,null,null,null,null,null,null,null,null,1,33,"RAL2002",1800,"ROS5605.01/RAL2002","ROS0080.05",1800,"FP-16.01/RAL2002","16-FP.05",800,"P431/RAL2002","Фальшпереплет внутри с/п 26 мм темный дуб/белый.","усл. кв.",1100,1,26,26,3101824,32]
["Гарнитур нажимной сплошной серебро.","шт.",3600,35,null,null,null,null,null,null,null,null,null,null,null,null,null,null,null,33,"RAL1015","Белый","RAL1015",2,1,2000,2200,4400,12443370,null,null,null,null,null,null,null,null,null,null,7,"лиственница цельноламельная 40 мм","пог. м",null,400,null,null,null,null,null,2,"алюминиевый белый","пог. м",null,280,null,null,null,null,null,null,null,null,null,null,null,null,null,null,null,null,null,null,null,null,null,null,null,null,1,34,"RAL2003",1800,"ROS5605.01/RAL2003","ROS0080.05",1800,"FP-16.01/RAL2003","16-FP.05",800,"P431/RAL2003","Фальшпереплет внутри с/п 26 мм золотой дуб/белый.","усл. кв.",1100,1,26,26,2852090,33]
["Гарнитур нажимной сплошной титан.","шт.",3600,36,null,null,null,null,null,null,null,null,null,null,null,null,null,null,null,34,"RAL1016","Белый","RAL1016",2,1,2000,2200,4400,4518122,null,null,null,null,null,null,null,null,null,null,7,"лиственница цельноламельная 40 мм","пог. м",null,500,null,null,null,null,null,2,"алюминиевый белый","пог. м",null,320,null,null,null,null,null,null,null,null,null,null,null,null,null,null,null,null,null,null,null,null,null,null,null,null,1,35,"RAL2004",1800,"ROS5605.01/RAL2004","ROS0080.05",1800,"FP-16.01/RAL2004","16-FP.05",800,"P431/RAL2004","Фальшпереплет внутри с/п 26 мм средний дуб/белый.","усл. кв.",1100,1,26,26,3101824,34]
["Гарнитур нажимной сплошной шампань.","шт.",15000,37,null,null,null,null,null,null,null,null,null,null,null,null,null,null,null,35,"RAL1017","Белый","RAL1017",2,1,2000,2200,4400,5421044,null,null,null,null,null,null,null,null,null,null,7,"лиственница цельноламельная 40 мм","пог. м",null,600,null,null,null,null,null,2,"алюминиевый белый","пог. м",null,360,null,null,null,null,null,null,null,null,null,null,null,null,null,null,null,null,null,null,null,null,null,null,null,null,1,36,"RAL2008",1800,"ROS5605.01/RAL2008",{"$f":"\"ROS0080.0\"&IF(CA38=2,1,IF(CA38=1,5,7))","v":"ROS0080.05"},1800,"FP-16.01/RAL2008",{"$f":"\"16-FP.0\"&IF(CA38=2,1,IF(CA38=1,5,7))","v":"16-FP.05"},800,"P431/RAL2008","Фальшпереплет внутри с/п 26 мм махагон/белый.","усл. кв.",1100,1,26,26,3225703,35]
["Штапик \"Рим\".","кв. м",1700,38,null,null,null,null,null,null,null,null,null,null,null,null,null,null,null,36,"RAL1018","Белый","RAL1018",2,1,2000,2200,4400,3924211,null,null,null,null,null,null,null,null,null,null,8,"дуб цельноламельный 30 мм","пог. м",null,200,null,null,null,null,null,3,"алюминиевый коричневый","пог. м",null,90,null,null,null,null,null,null,null,null,null,null,null,null,null,null,null,null,null,null,null,null,null,null,null,null,1,37,"RAL2009",1800,"ROS5605.01/RAL2009","ROS0080.05",1800,"FP-16.01/RAL2009","16-FP.05",800,"P431/RAL2009"]
["Штапик \"Венеция\".","кв. м",2500,39,null,null,null,null,null,null,null,null,null,null,null,null,null,null,null,37,"RAL1019","Белый","RAL1019",2,1,2000,2200,4400,8230308,null,null,null,null,null,null,null,null,null,null,8,"дуб цельноламельный 30 мм","пог. м",null,250,null,null,null,null,null,3,"алюминиевый коричневый","пог. м",null,110,null,null,null,null,null,null,null,null,null,null,null,null,null,null,null,null,null,null,null,null,null,null,null,null,1,38,"RAL2010",1800,"ROS5605.01/RAL2010","ROS0080.05",1800,"FP-16.01/RAL2010","16-FP.05",800,"P431/RAL2010"]
["Штапик \"Калевка\".","кв. м",3000,40,null,null,null,null,null,null,null,null,null,null,null,null,null,null,null,38,"RAL1020","Белый","RAL1020",2,1,2000,2200,4400,6591642,null,null,null,null,null,null,null,null,null,null,8,"дуб цельноламельный 30 мм","пог. м",null,300,null,null,null,null,null,3,"алюминиевый коричневый","пог. м",null,130,null,null,null,null,null,null,null,null,null,null,null,null,null,null,null,null,null,null,null,null,null,null,null,null,1,39,"RAL2011",1800,"ROS5605.01/RAL2011","ROS0080.05",1800,"FP-16.01/RAL2011","16-FP.05",800,"P431/RAL2011"]
["Алюминиевый порог.","компл.",15400,41,null,null,null,null,null,null,null,null,null,null,null,null,null,null,null,39,"RAL1021","Белый","RAL1021",2,1,2000,2200,4400,51694,null,null,null,null,null,null,null,null,null,null,9,"дуб цельноламельный 40 мм","пог. м",null,200,null,null,null,null,null,3,"алюминиевый коричневый","пог. м",null,150,null,null,null,null,null,null,null,null,null,null,null,null,null,null,null,null,null,null,null,null,null,null,null,null,1,40,"RAL2012",1800,"ROS5605.01/RAL2012","ROS0080.05",1800,"FP-16.01/RAL2012","16-FP.05",800,"P431/RAL2012"]
["Штульповый механизм для многозапорного замка с приводом от цилиндра.","шт.",17600,42,null,null,null,null,null,null,null,null,null,null,null,null,null,null,null,40,"RAL1023","Белый","RAL1023",2,1,2000,2200,4400,51952,null,null,null,null,null,null,null,null,null,null,9,"дуб цельноламельный 40 мм","пог. м",null,250,null,null,null,null,null,3,"алюминиевый коричневый","пог. м",null,165,null,null,null,null,null,null,null,null,null,null,null,null,null,null,null,null,null,null,null,null,null,null,null,null,1,41,"RAL3000",1800,"ROS5605.01/RAL3000","ROS0080.05",1800,"FP-16.01/RAL3000","16-FP.05",800,"P431/RAL3000"]
["Микрощелевое проветривание на поворотно-откидной створке.","шт.",400,43,null,null,null,null,null,null,null,null,null,null,null,null,null,null,null,41,"RAL1024","Белый","RAL1024",2,1,2000,2200,4400,5283000,null,null,null,null,null,null,null,null,null,null,9,"дуб цельноламельный 40 мм","пог. м",null,300,null,null,null,null,null,3,"алюминиевый коричневый","пог. м",null,180,null,null,null,null,null,null,null,null,null,null,null,null,null,null,null,null,null,null,null,null,null,null,null,null,1,42,"RAL3001",1800,"ROS5605.01/RAL3001","ROS0080.05",1800,"FP-16.01/RAL3001","16-FP.05",800,"P431/RAL3001"]
["Ручка снаружи на створке (замок со смещенной ручкой).","шт.",3900,44,null,null,null,null,null,null,null,null,null,null,null,null,null,null,null,42,"RAL1027","Белый","RAL1027",2,1,2000,2200,4400,1412259,null,null,null,null,null,null,null,null,null,null,9,"дуб цельноламельный 40 мм","пог. м",null,400,null,null,null,null,null,3,"алюминиевый коричневый","пог. м",null,205,null,null,null,null,null,null,null,null,null,null,null,null,null,null,null,null,null,null,null,null,null,null,null,null,1,43,"RAL3002",1800,"ROS5605.01/RAL3002","ROS0080.05",1800,"FP-16.01/RAL3002","16-FP.05",800,"P431/RAL3002"]
["Ручка с двух сторон на створке (замок со смещенной ручкой).","шт.",3900,45,null,null,null,null,null,null,null,null,null,null,null,null,null,null,null,43,"RAL1028","Белый","RAL1028",2,1,2000,2200,4400,44031,null,null,null,null,null,null,null,null,null,null,9,"дуб цельноламельный 40 мм","пог. м",null,500,null,null,null,null,null,3,"алюминиевый коричневый","пог. м",null,225,null,null,null,null,null,null,null,null,null,null,null,null,null,null,null,null,null,null,null,null,null,null,null,null,1,44,"RAL3003",1800,"ROS5605.01/RAL3003","ROS0080.05",1800,"FP-16.01/RAL3003","16-FP.05",800,"P431/RAL3003"]
["Замок многозапорный с приводом от ручки  в комплекте с проф. цилиндром.","шт.",9900,46,null,null,null,null,null,null,null,null,null,null,null,null,null,null,null,44,"RAL1032","Белый","RAL1032",2,1,2000,2200,4400,1028829,null,null,null,null,null,null,null,null,null,null,9,"дуб цельноламельный 40 мм","пог. м",null,600,null,null,null,null,null,3,"алюминиевый коричневый","пог. м",null,250,null,null,null,null,null,null,null,null,null,null,null,null,null,null,null,null,null,null,null,null,null,null,null,null,1,45,"RAL3004",1800,"ROS5605.01/RAL3004","ROS0080.05",1800,"FP-16.01/RAL3004","16-FP.05",800,"P431/RAL3004"]
["Замок многозапорный с приводом от цилиндра  в комплекте с проф. цилиндром.","шт.",19800,47,null,null,null,null,null,null,null,null,null,null,null,null,null,null,null,45,"RAL1033","Белый","RAL1033",2,1,2000,2200,4400,2206714,null,null,null,null,null,null,null,null,null,null,10,"MOLLER белый ","пог. м",null,200,null,null,null,null,null,3,"алюминиевый коричневый","пог. м",null,280,null,null,null,null,null,null,null,null,null,null,null,null,null,null,null,null,null,null,null,null,null,null,null,null,1,46,"RAL3005",1800,"ROS5605.01/RAL3005","ROS0080.05",1800,"FP-16.01/RAL3005","16-FP.05",800,"P431/RAL3005"]
["Замок с профильным цилиндром.","шт.",6600,48,null,null,null,null,null,null,null,null,null,null,null,null,null,null,null,46,"RAL1034","Белый","RAL1034",2,1,2000,2200,4400,5680109,null,null,null,null,null,null,null,null,null,null,10,"MOLLER белый ","пог. м",null,250,null,null,null,null,null,3,"алюминиевый коричневый","пог. м",null,320,null,null,null,null,null,null,null,null,null,null,null,null,null,null,null,null,null,null,null,null,null,null,null,null,1,47,"RAL3007",1800,"ROS5605.01/RAL3007","ROS0080.05",1800,"FP-16.01/RAL3007","16-FP.05",800,"P431/RAL3007"]
["Латунный порог.","компл.",15400,49,null,null,null,null,null,null,null,null,null,null,null,null,null,null,null,47,"RAL1037","Белый","RAL1037",2,1,2000,2200,4400,369390,null,null,null,null,null,null,null,null,null,null,10,"MOLLER белый ","пог. м",null,300,null,null,null,null,null,3,"алюминиевый коричневый","пог. м",null,360,null,null,null,null,null,null,null,null,null,null,null,null,null,null,null,null,null,null,null,null,null,null,null,null,1,48,"RAL3009",1800,"ROS5605.01/RAL3009","ROS0080.05",1800,"FP-16.01/RAL3009","16-FP.05",800,"P431/RAL3009"]
["Усиленные петли 3 шт.","компл.",9900,50,null,null,null,null,null,null,null,null,null,null,null,null,null,null,null,48,"RAL2000","Белый","RAL2000",1,1,2000,2200,4400,489949,null,null,null,null,null,null,null,null,null,null,10,"MOLLER белый ","пог. м",null,400,null,null,null,null,null,4,"\"GUTMAN\" бронза","пог. м",null,70,null,null,null,null,null,null,null,null,null,null,null,null,null,null,null,null,null,null,null,null,null,null,null,null,1,49,"RAL3011",1800,"ROS5605.01/RAL3011","ROS0080.05",1800,"FP-16.01/RAL3011","16-FP.05",800,"P431/RAL3011"]
["Петли BАKA 3 шт.","компл.",19800,51,null,null,null,null,null,null,null,null,null,null,null,null,null,null,null,49,"RAL2001","Белый","RAL2001",1,1,2000,2200,4400,2379454,null,null,null,null,null,null,null,null,null,null,10,"MOLLER белый ","пог. м",null,500,null,null,null,null,null,4,"\"GUTMAN\" бронза","пог. м",null,90,null,null,null,null,null,null,null,null,null,null,null,null,null,null,null,null,null,null,null,null,null,null,null,null,1,50,"RAL3012",1800,"ROS5605.01/RAL3012","ROS0080.01",1800,"FP-16.01/RAL3012","16-FP.01",800,"P431/RAL3012"]
["Скрытые петли.","компл.",6600,52,null,null,null,null,null,null,null,null,null,null,null,null,null,null,null,50,"RAL2002","Белый","RAL2002",1,1,2000,2200,4400,2570694,null,null,null,null,null,null,null,null,null,null,10,"MOLLER белый ","пог. м",null,600,null,null,null,null,null,4,"\"GUTMAN\" бронза","пог. м",null,110,null,null,null,null,null,null,null,null,null,null,null,null,null,null,null,null,null,null,null,null,null,null,null,null,2,51,"RAL3013",1800,"ROS5605.01/RAL3013","ROS0080.05",1800,"FP-16.01/RAL3013","16-FP.05",800,"P431/RAL3013"]
["Компенсатор веса для скрытых петель.","компл.",12100,53,null,null,null,null,null,null,null,null,null,null,null,null,null,null,null,51,"RAL2003","Белый","RAL2003",1,1,2000,2200,4400,2852090,null,null,null,null,null,null,null,null,null,null,11,"MOLLER светлый дуб","пог. м",null,200,null,null,null,null,null,4,"\"GUTMAN\" бронза","пог. м",null,130,null,null,null,null,null,null,null,null,null,null,null,null,null,null,null,null,null,null,null,null,null,null,null,null,1,52,"RAL3014",1800,"ROS5605.01/RAL3014","ROS0080.01",1800,"FP-16.01/RAL3014","16-FP.01",800,"P431/RAL3014"]
["Ограничитель открывания (гребенка) (цвет белый).","шт.",500,54,null,null,null,null,null,null,null,null,null,null,null,null,null,null,null,52,"RAL2004","Белый","RAL2004",1,1,2000,2200,4400,1203175,null,null,null,null,null,null,null,null,null,null,11,"MOLLER светлый дуб","пог. м",null,250,null,null,null,null,null,4,"\"GUTMAN\" бронза","пог. м",null,150,null,null,null,null,null,null,null,null,null,null,null,null,null,null,null,null,null,null,null,null,null,null,null,null,2,53,"RAL3015",1800,"ROS5605.01/RAL3015","ROS0080.01",1800,"FP-16.01/RAL3015","16-FP.01",800,"P431/RAL3015"]
["Ограничитель открывания (гребенка) (цвет коричневый).","шт.",500,55,null,null,null,null,null,null,null,null,null,null,null,null,null,null,null,53,"RAL2008","Белый","RAL2008",1,1,2000,2200,4400,2913779,null,null,null,null,null,null,null,null,null,null,11,"MOLLER светлый дуб","пог. м",null,300,null,null,null,null,null,4,"\"GUTMAN\" бронза","пог. м",null,165,null,null,null,null,null,null,null,null,null,null,null,null,null,null,null,null,null,null,null,null,null,null,null,null,2,54,"RAL3016",1800,"ROS5605.01/RAL3016","ROS0080.05",1800,"FP-16.01/RAL3016","16-FP.05",800,"P431/RAL3016"]
["Сетка противомоскитная.","кв. м",3000,56,null,null,null,null,null,null,null,null,null,null,null,null,null,null,null,54,"RAL2009","Белый","RAL2009",1,1,2000,2200,4400,87521,null,null,null,null,null,null,null,null,null,null,11,"MOLLER светлый дуб","пог. м",null,400,null,null,null,null,null,4,"\"GUTMAN\" бронза","пог. м",null,180,null,null,null,null,null,null,null,null,null,null,null,null,null,null,null,null,null,null,null,null,null,null,null,null,1,55,"RAL3017",1800,"ROS5605.01/RAL3017","ROS0080.05",1800,"FP-16.01/RAL3017","16-FP.05",800,"P431/RAL3017"]
["Подоконник деревянный клееный, сращенный сосна 30 мм.","усл. кв. м",8800,57,null,null,null,null,null,null,null,null,null,null,null,null,null,null,null,55,"RAL2010","Белый","RAL2010",1,1,2000,2200,4400,3106260,null,null,null,null,null,null,null,null,null,null,11,"MOLLER светлый дуб","пог. м",null,500,null,null,null,null,null,4,"\"GUTMAN\" бронза","пог. м",null,195,null,null,null,null,null,null,null,null,null,null,null,null,null,null,null,null,null,null,null,null,null,null,null,null,1,56,"RAL3018",1800,"ROS5605.01/RAL3018","ROS0080.05",1800,"FP-16.01/RAL3018","16-FP.05",800,"P431/RAL3018"]
["Подоконник деревянный клееный, сращенный сосна 40 мм.","усл. кв. м",13200,58,null,null,null,null,null,null,null,null,null,null,null,null,null,null,null,56,"RAL2011","Белый","RAL2011",1,1,2000,2200,4400,2456812,null,null,null,null,null,null,null,null,null,null,11,"MOLLER светлый дуб","пог. м",null,600,null,null,null,null,null,4,"\"GUTMAN\" бронза","пог. м",null,210,null,null,null,null,null,null,null,null,null,null,null,null,null,null,null,null,null,null,null,null,null,null,null,null,1,57,"RAL3020",1800,"ROS5605.01/RAL3020","ROS0080.05",1800,"FP-16.01/RAL3020","16-FP.05",800,"P431/RAL3020"]
["Подоконник деревянный клееный, цельноламельный сосна 30 мм.","усл. кв. м",13200,59,null,null,null,null,null,null,null,null,null,null,null,null,null,null,null,57,"RAL2012","Белый","RAL2012",1,1,2000,2200,4400,5270235,null,null,null,null,null,null,null,null,null,null,12,"MOLLER золотой дуб","пог. м",null,200,null,null,null,null,null,4,"\"GUTMAN\" бронза","пог. м",null,225,null,null,null,null,null,null,null,null,null,null,null,null,null,null,null,null,null,null,null,null,null,null,null,null,1,58,"RAL3022",1800,"ROS5605.01/RAL3022","ROS0080.05",1800,"FP-16.01/RAL3022","16-FP.05",800,"P431/RAL3022"]
["Подоконник деревянный клееный, цельноламельный сосна 40 мм.","усл. кв. м",17600,60,null,null,null,null,null,null,null,null,null,null,null,null,null,null,null,58,"RAL3000","Белый","RAL3000",1,1,2000,2200,4400,2368939,null,null,null,null,null,null,null,null,null,null,12,"MOLLER золотой дуб","пог. м",null,250,null,null,null,null,null,4,"\"GUTMAN\" бронза","пог. м",null,240,null,null,null,null,null,null,null,null,null,null,null,null,null,null,null,null,null,null,null,null,null,null,null,null,1,59,"RAL3027",1800,"ROS5605.01/RAL3027","ROS0080.05",1800,"FP-16.01/RAL3027","16-FP.05",800,"P431/RAL3027"]
["Подоконник деревянный клееный, сращенный лиственница 40 мм.","усл. кв. м",17600,61,null,null,null,null,null,null,null,null,null,null,null,null,null,null,null,59,"RAL3001","Белый","RAL3001",1,1,2000,2200,4400,2630048,null,null,null,null,null,null,null,null,null,null,12,"MOLLER золотой дуб","пог. м",null,300,null,null,null,null,null,4,"\"GUTMAN\" бронза","пог. м",null,260,null,null,null,null,null,null,null,null,null,null,null,null,null,null,null,null,null,null,null,null,null,null,null,null,1,60,"RAL3028",1800,"ROS5605.01/RAL3028","ROS0080.05",1800,"FP-16.01/RAL3028","16-FP.05",800,"P431/RAL3028"]
["Подоконник деревянный клееный, цельноламельный лиственница 40 мм.","усл. кв. м",23100,62,null,null,null,null,null,null,null,null,null,null,null,null,null,null,null,60,"RAL3002","Белый","RAL3002",1,1,2000,2200,4400,2827169,null,null,null,null,null,null,null,null,null,null,12,"MOLLER золотой дуб","пог. м",null,400,null,null,null,null,null,4,"\"GUTMAN\" бронза","пог. м",null,280,null,null,null,null,null,null,null,null,null,null,null,null,null,null,null,null,null,null,null,null,null,null,null,null,1,61,"RAL3031",1800,"ROS5605.01/RAL3031","ROS0080.05",1800,"FP-16.01/RAL3031","16-FP.05",800,"P431/RAL3031"]
["Подоконник деревянный клееный, цельноламельный дуб 40 мм.","усл. кв. м",26400,63,null,null,null,null,null,null,null,null,null,null,null,null,null,null,null,61,"RAL3003","Белый","RAL3003",1,1,2000,2200,4400,2891149,null,null,null,null,null,null,null,null,null,null,12,"MOLLER золотой дуб","пог. м",null,500,null,null,null,null,null,4,"\"GUTMAN\" бронза","пог. м",null,320,null,null,null,null,null,null,null,null,null,null,null,null,null,null,null,null,null,null,null,null,null,null,null,null,1,62,"RAL4001",1800,"ROS5605.01/RAL4001","ROS0080.05",1800,"FP-16.01/RAL4001","16-FP.05",800,"P431/RAL4001"]
["Подоконник пластиковый ламинированный ширина 200 мм","пог. м",3900,64,null,null,null,null,null,null,null,null,null,null,null,null,null,null,null,62,"RAL3004","Белый","RAL3004",1,1,2000,2200,4400,2695024,null,null,null,null,null,null,null,null,null,null,12,"MOLLER золотой дуб","пог. м",null,600,null,null,null,null,null,4,"\"GUTMAN\" бронза","пог. м",null,360,null,null,null,null,null,null,null,null,null,null,null,null,null,null,null,null,null,null,null,null,null,null,null,null,1,63,"RAL4002",1800,"ROS5605.01/RAL4002","ROS0080.05",1800,"FP-16.01/RAL4002","16-FP.05",800,"P431/RAL4002"]
["Подоконник пластиковый ламинированный ширина 250 мм","пог. м",4400,65,null,null,null,null,null,null,null,null,null,null,null,null,null,null,null,63,"RAL3005","Белый","RAL3005",1,1,2000,2200,4400,2629726,null,null,null,null,null,null,null,null,null,null,13,"MOLLER махагон","пог. м",null,200,null,null,null,null,null,null,null,null,null,null,null,null,null,null,null,null,null,null,null,null,null,null,null,null,null,null,null,null,null,null,null,null,null,null,1,64,"RAL4003",1800,"ROS5605.01/RAL4003","ROS0080.05",1800,"FP-16.01/RAL4003","16-FP.05",800,"P431/RAL4003"]
["Подоконник пластиковый ламинированный ширина 300 мм","пог. м",5500,66,null,null,null,null,null,null,null,null,null,null,null,null,null,null,null,64,"RAL3007","Белый","RAL3007",1,1,2000,2200,4400,2433600,null,null,null,null,null,null,null,null,null,null,13,"MOLLER махагон","пог. м",null,250,null,null,null,null,null,null,null,null,null,null,null,null,null,null,null,null,null,null,null,null,null,null,null,null,null,null,null,null,null,null,null,null,null,null,1,65,"RAL4004",1800,"ROS5605.01/RAL4004","ROS0080.05",1800,"FP-16.01/RAL4004","16-FP.05",800,"P431/RAL4004"]
["Подоконник пластиковый ламинированный ширина 400 мм","пог. м",6600,67,null,null,null,null,null,null,null,null,null,null,null,null,null,null,null,65,"RAL3009","Белый","RAL3009",1,1,2000,2200,4400,3225456,null,null,null,null,null,null,null,null,null,null,13,"MOLLER махагон","пог. м",null,300,null,null,null,null,null,null,null,null,null,null,null,null,null,null,null,null,null,null,null,null,null,null,null,null,null,null,null,null,null,null,null,null,null,null,1,66,"RAL4005",1800,"ROS5605.01/RAL4005","ROS0080.05",1800,"FP-16.01/RAL4005","16-FP.05",800,"P431/RAL4005"]
["Подоконник пластиковый ламинированный ширина 500 мм","пог. м",9500,68,null,null,null,null,null,null,null,null,null,null,null,null,null,null,null,66,"RAL3011","Белый","RAL3011",1,1,2000,2200,4400,2894206,null,null,null,null,null,null,null,null,null,null,13,"MOLLER махагон","пог. м",null,400,null,null,null,null,null,null,null,null,null,null,null,null,null,null,null,null,null,null,null,null,null,null,null,null,null,null,null,null,null,null,null,null,null,null,1,67,"RAL4006",1800,"ROS5605.01/RAL4006","ROS0080.05",1800,"FP-16.01/RAL4006","16-FP.05",800,"P431/RAL4006"]
["Подоконник пластиковый ламинированный ширина 600 мм","пог. м",9900,69,null,null,null,null,null,null,null,null,null,null,null,null,null,null,null,67,"RAL3012","Белый","RAL3012",2,1,2000,2200,4400,7572939,null,null,null,null,null,null,null,null,null,null,13,"MOLLER махагон","пог. м",null,500,null,null,null,null,null,null,null,null,null,null,null,null,null,null,null,null,null,null,null,null,null,null,null,null,null,null,null,null,null,null,null,null,null,null,1,68,"RAL4007",1800,"ROS5605.01/RAL4007",{"$f":"\"ROS0080.0\"&IF(CA70=2,1,IF(CA70=1,5,7))","v":"ROS0080.05"},1800,"FP-16.01/RAL4007",{"$f":"\"16-FP.0\"&IF(CA70=2,1,IF(CA70=1,5,7))","v":"16-FP.05"},800,"P431/RAL4007"]
["Слив наружный оцинкованный белый от 70 до 100 мм","пог. м",900,70,null,null,null,null,null,null,null,null,null,null,null,null,null,null,null,68,"RAL3013","Белый","RAL3013",1,1,2000,2200,4400,3027612,null,null,null,null,null,null,null,null,null,null,13,"MOLLER махагон","пог. м",null,600,null,null,null,null,null,null,null,null,null,null,null,null,null,null,null,null,null,null,null,null,null,null,null,null,null,null,null,null,null,null,null,null,null,null,1,69,"RAL4008",1800,{"$f":"\"ROS5605.01/\"&CC70","v":"ROS5605.01/RAL4008"},"ROS0080.05",1800,{"$f":"\"FP-16.01/\"&CC70","v":"FP-16.01/RAL4008"},"16-FP.05",800,{"$f":"\"P431/\"&CC70","v":"P431/RAL4008"}]
["Слив наружный оцинкованный белый от 100 до 200 мм","пог. м",1100,71,null,null,null,null,null,null,null,null,null,null,null,null,null,null,null,69,"RAL3014","Белый","RAL3014",2,1,2000,2200,4400,7959764,null,null,null,null,null,null,null,null,null,null,14,"пластиковый белый ","пог. м",null,200,null,null,null,null,null,null,null,null,null,null,null,null,null,null,null,null,null,null,null,null,null,null,null,null,null,null,null,null,null,null,null,null,null,null,1,70,"RAL4009",1800,"ROS5605.01/RAL4009","ROS0080.01",1800,"FP-16.01/RAL4009","16-FP.01",800,"P431/RAL4009"]
["Слив наружный оцинкованный белый от 200 до 300 мм","пог. м",1700,72,null,null,null,null,null,null,null,null,null,null,null,null,null,null,null,70,"RAL3015","Белый","RAL3015",2,1,2000,2200,4400,11380449,null,null,null,null,null,null,null,null,null,null,14,"пластиковый белый ","пог. м",null,250,null,null,null,null,null,null,null,null,null,null,null,null,null,null,null,null,null,null,null,null,null,null,null,null,null,null,null,null,null,null,null,null,null,null,2,71,"RAL4010",1800,"ROS5605.01/RAL4010","ROS0080.05",1800,"FP-16.01/RAL4010","16-FP.05",800,"P431/RAL4010"]
["Слив наружный оцинкованный белый от 300 до 400 мм","пог. м",2200,73,null,null,null,null,null,null,null,null,null,null,null,null,null,null,null,71,"RAL3016","Белый","RAL3016",1,1,2000,2200,4400,3424428,null,null,null,null,null,null,null,null,null,null,14,"пластиковый белый ","пог. м",null,300,null,null,null,null,null,null,null,null,null,null,null,null,null,null,null,null,null,null,null,null,null,null,null,null,null,null,null,null,null,null,null,null,null,null,1,72,"RAL5000",1800,"ROS5605.01/RAL5000","ROS0080.05",1800,"FP-16.01/RAL5000","16-FP.05",800,"P431/RAL5000"]
["Слив наружный оцинкованный белый от 400 до 500 мм","пог. м",2800,74,null,null,null,null,null,null,null,null,null,null,null,null,null,null,null,72,"RAL3017","Белый","RAL3017",1,1,2000,2200,4400,6247635,null,null,null,null,null,null,null,null,null,null,14,"пластиковый белый ","пог. м",null,400,null,null,null,null,null,null,null,null,null,null,null,null,null,null,null,null,null,null,null,null,null,null,null,null,null,null,null,null,null,null,null,null,null,null,1,73,"RAL5001",1800,"ROS5605.01/RAL5001","ROS0080.05",1800,"FP-16.01/RAL5001","16-FP.05",800,"P431/RAL5001"]
["Слив наружный оцинкованный белый от 500 до 600 мм","пог. м",3300,75,null,null,null,null,null,null,null,null,null,null,null,null,null,null,null,73,"RAL3018","Белый","RAL3018",1,1,2000,2200,4400,5390801,null,null,null,null,null,null,null,null,null,null,14,"пластиковый белый ","пог. м",null,500,null,null,null,null,null,null,null,null,null,null,null,null,null,null,null,null,null,null,null,null,null,null,null,null,null,null,null,null,null,null,null,null,null,null,1,74,"RAL5002",1800,"ROS5605.01/RAL5002","ROS0080.05",1800,"FP-16.01/RAL5002","16-FP.05",800,"P431/RAL5002"]
["Слив наружный оцинкованный белый свыше 600 мм","пог. м",3900,76,null,null,null,null,null,null,null,null,null,null,null,null,null,null,null,74,"RAL3020","Белый","RAL3020",1,1,2000,2200,4400,1839809,null,null,null,null,null,null,null,null,null,null,14,"пластиковый белый ","пог. м",null,600,null,null,null,null,null,null,null,null,null,null,null,null,null,null,null,null,null,null,null,null,null,null,null,null,null,null,null,null,null,null,null,null,null,null,1,75,"RAL5003",1800,"ROS5605.01/RAL5003","ROS0080.05",1800,"FP-16.01/RAL5003","16-FP.05",800,"P431/RAL5003"]
["Слив наружный оцинкованный коричневый от 70 до 100 мм","пог. м",900,77,null,null,null,null,null,null,null,null,null,null,null,null,null,null,null,75,"RAL3022","Белый","RAL3022",1,1,2000,2200,4400,5664213,null,null,null,null,null,null,null,null,null,null,15,"пластиковый светлый дуб","пог. м",null,200,null,null,null,null,null,null,null,null,null,null,null,null,null,null,null,null,null,null,null,null,null,null,null,null,null,null,null,null,null,null,null,null,null,null,1,76,"RAL5004",1800,"ROS5605.01/RAL5004","ROS0080.05",1800,"FP-16.01/RAL5004","16-FP.05",800,"P431/RAL5004"]
["Слив наружный оцинкованный коричневый от 100 до 200 мм","пог. м",1100,78,null,null,null,null,null,null,null,null,null,null,null,null,null,null,null,76,"RAL3027","Белый","RAL3027",1,1,2000,2200,4400,4268212,null,null,null,null,null,null,null,null,null,null,15,"пластиковый светлый дуб","пог. м",null,250,null,null,null,null,null,null,null,null,null,null,null,null,null,null,null,null,null,null,null,null,null,null,null,null,null,null,null,null,null,null,null,null,null,null,1,77,"RAL5005",1800,"ROS5605.01/RAL5005","ROS0080.05",1800,"FP-16.01/RAL5005","16-FP.05",800,"P431/RAL5005"]
["Слив наружный оцинкованный коричневый от 200 до 300 мм","пог. м",1700,79,null,null,null,null,null,null,null,null,null,null,null,null,null,null,null,77,"RAL3028","Белый","RAL3028",1,1,2000,2200,4400,3421131,null,null,null,null,null,null,null,null,null,null,15,"пластиковый светлый дуб","пог. м",null,300,null,null,null,null,null,null,null,null,null,null,null,null,null,null,null,null,null,null,null,null,null,null,null,null,null,null,null,null,null,null,null,null,null,null,1,78,"RAL5007",1800,"ROS5605.01/RAL5007","ROS0080.05",1800,"FP-16.01/RAL5007","16-FP.05",800,"P431/RAL5007"]
["Слив наружный оцинкованный коричневый от 300 до 400 мм","пог. м",2200,80,null,null,null,null,null,null,null,null,null,null,null,null,null,null,null,78,"RAL3031","Белый","RAL3031",1,1,2000,2200,4400,3879596,null,null,null,null,null,null,null,null,null,null,15,"пластиковый светлый дуб","пог. м",null,400,null,null,null,null,null,null,null,null,null,null,null,null,null,null,null,null,null,null,null,null,null,null,null,null,null,null,null,null,null,null,null,null,null,null,1,79,"RAL5008",1800,"ROS5605.01/RAL5008","ROS0080.05",1800,"FP-16.01/RAL5008","16-FP.05",800,"P431/RAL5008"]
["Слив наружный оцинкованный коричневый от 400 до 500 мм","пог. м",2800,81,null,null,null,null,null,null,null,null,null,null,null,null,null,null,null,79,"RAL4001","Белый","RAL4001",1,1,2000,2200,4400,8608394,null,null,null,null,null,null,null,null,null,null,15,"пластиковый светлый дуб","пог. м",null,500,null,null,null,null,null,null,null,null,null,null,null,null,null,null,null,null,null,null,null,null,null,null,null,null,null,null,null,null,null,null,null,null,null,null,1,80,"RAL5009",1800,"ROS5605.01/RAL5009","ROS0080.05",1800,"FP-16.01/RAL5009","16-FP.05",800,"P431/RAL5009"]
["Слив наружный оцинкованный коричневый от 500 до 600 мм","пог. м",3300,82,null,null,null,null,null,null,null,null,null,null,null,null,null,null,null,80,"RAL4002","Белый","RAL4002",1,1,2000,2200,4400,5258643,null,null,null,null,null,null,null,null,null,null,15,"пластиковый светлый дуб","пог. м",null,600,null,null,null,null,null,null,null,null,null,null,null,null,null,null,null,null,null,null,null,null,null,null,null,null,null,null,null,null,null,null,null,null,null,null,1,81,"RAL5010",1800,"ROS5605.01/RAL5010","ROS0080.05",1800,"FP-16.01/RAL5010","16-FP.05",800,"P431/RAL5010"]
["Слив наружный оцинкованный коричневый свыше 600 мм","пог. м",3900,83,null,null,null,null,null,null,null,null,null,null,null,null,null,null,null,81,"RAL4003","Белый","RAL4003",1,1,2000,2200,4400,9395153,null,null,null,null,null,null,null,null,null,null,16,"пластиковый золотой дуб","пог. м",null,200,null,null,null,null,null,null,null,null,null,null,null,null,null,null,null,null,null,null,null,null,null,null,null,null,null,null,null,null,null,null,null,null,null,null,1,82,"RAL5011",1800,"ROS5605.01/RAL5011","ROS0080.05",1800,"FP-16.01/RAL5011","16-FP.05",800,"P431/RAL5011"]
["Слив наружный оцинкованный окрашенный RAL от 70 до 100 мм","пог. м",1100,84,null,null,null,null,null,null,null,null,null,null,null,null,null,null,null,82,"RAL4004","Белый","RAL4004",1,1,2000,2200,4400,3741289,null,null,null,null,null,null,null,null,null,null,16,"пластиковый золотой дуб","пог. м",null,250,null,null,null,null,null,null,null,null,null,null,null,null,null,null,null,null,null,null,null,null,null,null,null,null,null,null,null,null,null,null,null,null,null,null,1,83,"RAL5012",1800,"ROS5605.01/RAL5012","ROS0080.05",1800,"FP-16.01/RAL5012","16-FP.05",800,"P431/RAL5012"]
["Слив наружный оцинкованный окрашенный RAL от 100 до 200 мм","пог. м",1400,85,null,null,null,null,null,null,null,null,null,null,null,null,null,null,null,83,"RAL4005","Белый","RAL4005",1,1,2000,2200,4400,10314627,null,null,null,null,null,null,null,null,null,null,16,"пластиковый золотой дуб","пог. м",null,300,null,null,null,null,null,null,null,null,null,null,null,null,null,null,null,null,null,null,null,null,null,null,null,null,null,null,null,null,null,null,null,null,null,null,1,84,"RAL5013",1800,"ROS5605.01/RAL5013","ROS0080.05",1800,"FP-16.01/RAL5013","16-FP.05",800,"P431/RAL5013"]
["Слив наружный оцинкованный окрашенный RAL от 200 до 300 мм","пог. м",2000,86,null,null,null,null,null,null,null,null,null,null,null,null,null,null,null,84,"RAL4006","Белый","RAL4006",1,1,2000,2200,4400,7480729,null,null,null,null,null,null,null,null,null,null,16,"пластиковый золотой дуб","пог. м",null,400,null,null,null,null,null,null,null,null,null,null,null,null,null,null,null,null,null,null,null,null,null,null,null,null,null,null,null,null,null,null,null,null,null,null,1,85,"RAL5014",1800,"ROS5605.01/RAL5014","ROS0080.05",1800,"FP-16.01/RAL5014","16-FP.05",800,"P431/RAL5014"]
["Слив наружный оцинкованный окрашенный RAL от 300 до 400 мм","пог. м",2600,87,null,null,null,null,null,null,null,null,null,null,null,null,null,null,null,85,"RAL4007","Белый","RAL4007",1,1,2000,2200,4400,3874890,null,null,null,null,null,null,null,null,null,null,16,"пластиковый золотой дуб","пог. м",null,500,null,null,null,null,null,null,null,null,null,null,null,null,null,null,null,null,null,null,null,null,null,null,null,null,null,null,null,null,null,null,null,null,null,null,1,86,"RAL5015",1800,"ROS5605.01/RAL5015","ROS0080.05",1800,"FP-16.01/RAL5015","16-FP.05",800,"P431/RAL5015"]
["Слив наружный оцинкованный окрашенный RAL от 400 до 500 мм","пог. м",3200,88,null,null,null,null,null,null,null,null,null,null,null,null,null,null,null,86,"RAL4008","Белый","RAL4008",1,1,2000,2200,4400,8668816,null,null,null,null,null,null,null,null,null,null,16,"пластиковый золотой дуб","пог. м",null,600,null,null,null,null,null,null,null,null,null,null,null,null,null,null,null,null,null,null,null,null,null,null,null,null,null,null,null,null,null,null,null,null,null,null,1,87,"RAL5017",1800,"ROS5605.01/RAL5017","ROS0080.05",1800,"FP-16.01/RAL5017","16-FP.05",800,"P431/RAL5017"]
["Слив наружный оцинкованный окрашенный RAL от 500 до 600 мм","пог. м",4200,89,null,null,null,null,null,null,null,null,null,null,null,null,null,null,null,87,"RAL4009","Белый","RAL4009",2,1,2000,2200,4400,9800099,null,null,null,null,null,null,null,null,null,null,17,"пластиковый махагон","пог. м",null,200,null,null,null,null,null,null,null,null,null,null,null,null,null,null,null,null,null,null,null,null,null,null,null,null,null,null,null,null,null,null,null,null,null,null,1,88,"RAL5018",1800,"ROS5605.01/RAL5018","ROS0080.05",1800,"FP-16.01/RAL5018","16-FP.05",800,"P431/RAL5018"]
["Слив наружный оцинкованный окрашенный RAL свыше 600 мм","пог. м",4800,90,null,null,null,null,null,null,null,null,null,null,null,null,null,null,null,88,"RAL4010","Белый","RAL4010",1,1,2000,2200,4400,7878342,null,null,null,null,null,null,null,null,null,null,17,"пластиковый махагон","пог. м",null,250,null,null,null,null,null,null,null,null,null,null,null,null,null,null,null,null,null,null,null,null,null,null,null,null,null,null,null,null,null,null,null,null,null,null,1,89,"RAL5019",1800,"ROS5605.01/RAL5019","ROS0080.05",1800,"FP-16.01/RAL5019","16-FP.05",800,"P431/RAL5019"]
["Наличник деревянный шириной 30 мм сосна.","пог. м",500,91,null,null,null,null,null,null,null,null,null,null,null,null,null,null,null,89,"RAL5000","Белый","RAL5000",1,1,2000,2200,4400,7359544,null,null,null,null,null,null,null,null,null,null,17,"пластиковый махагон","пог. м",null,300,null,null,null,null,null,null,null,null,null,null,null,null,null,null,null,null,null,null,null,null,null,null,null,null,null,null,null,null,null,null,null,null,null,null,1,90,"RAL5020",1800,"ROS5605.01/RAL5020","ROS0080.05",1800,"FP-16.01/RAL5020","16-FP.05",800,"P431/RAL5020"]
["Наличник деревянный шириной 40 мм сосна.","пог. м",600,92,null,null,null,null,null,null,null,null,null,null,null,null,null,null,null,90,"RAL5001","Белый","RAL5001",1,1,2000,2200,4400,6571807,null,null,null,null,null,null,null,null,null,null,17,"пластиковый махагон","пог. м",null,400,null,null,null,null,null,null,null,null,null,null,null,null,null,null,null,null,null,null,null,null,null,null,null,null,null,null,null,null,null,null,null,null,null,null,1,91,"RAL5021",1800,"ROS5605.01/RAL5021","ROS0080.05",1800,"FP-16.01/RAL5021","16-FP.05",800,"P431/RAL5021"]
["Наличник деревянный шириной 70 мм сосна.","пог. м",800,93,null,null,null,null,null,null,null,null,null,null,null,null,null,null,null,91,"RAL5002","Белый","RAL5002",1,1,2000,2200,4400,8137771,null,null,null,null,null,null,null,null,null,null,17,"пластиковый махагон","пог. м",null,500,null,null,null,null,null,null,null,null,null,null,null,null,null,null,null,null,null,null,null,null,null,null,null,null,null,null,null,null,null,null,null,null,null,null,1,92,"RAL5022",1800,"ROS5605.01/RAL5022","ROS0080.05",1800,"FP-16.01/RAL5022","16-FP.05",800,"P431/RAL5022"]
["Наличник деревянный шириной 84 мм сосна.","пог. м",1000,94,null,null,null,null,null,null,null,null,null,null,null,null,null,null,null,92,"RAL5003","Белый","RAL5003",1,1,2000,2200,4400,5650218,null,null,null,null,null,null,null,null,null,null,17,"пластиковый махагон","пог. м",null,600,null,null,null,null,null,null,null,null,null,null,null,null,null,null,null,null,null,null,null,null,null,null,null,null,null,null,null,null,null,null,null,null,null,null,1,93,"RAL5023",1800,"ROS5605.01/RAL5023","ROS0080.01",1800,"FP-16.01/RAL5023","16-FP.01",800,"P431/RAL5023"]
["Наличник деревянный шириной 120 мм сосна.","пог. м",1400,95,null,null,null,null,null,null,null,null,null,null,null,null,null,null,null,93,"RAL5004","Белый","RAL5004",1,1,2000,2200,4400,2760477,null,null,null,null,null,null,null,null,null,null,null,null,null,null,null,null,null,null,null,null,null,null,null,null,null,null,null,null,null,null,null,null,null,null,null,null,null,null,null,null,null,null,null,null,null,null,null,null,null,2,94,"RAL5024",1800,"ROS5605.01/RAL5024","ROS0080.01",1800,"FP-16.01/RAL5024","16-FP.01",800,"P431/RAL5024"]
["Доборный брус сосна.","пог. м",2200,96,null,null,null,null,null,null,null,null,null,null,null,null,null,null,null,94,"RAL5005","Белый","RAL5005",1,1,2000,2200,4400,8996885,null,null,null,null,null,null,null,null,null,null,null,null,null,null,null,null,null,null,null,null,null,null,null,null,null,null,null,null,null,null,null,null,null,null,null,null,null,null,null,null,null,null,null,null,null,null,null,null,null,2,95,"RAL6000",1800,"ROS5605.01/RAL6000","ROS0080.05",1800,"FP-16.01/RAL6000","16-FP.05",800,"P431/RAL6000"]
["Наличник деревянный шириной 30 мм лиственница.","пог. м",600,97,null,null,null,null,null,null,null,null,null,null,null,null,null,null,null,95,"RAL5007","Белый","RAL5007",1,1,2000,2200,4400,9267009,null,null,null,null,null,null,null,null,null,null,null,null,null,null,null,null,null,null,null,null,null,null,null,null,null,null,null,null,null,null,null,null,null,null,null,null,null,null,null,null,null,null,null,null,null,null,null,null,null,1,96,"RAL6001",1800,"ROS5605.01/RAL6001","ROS0080.05",1800,"FP-16.01/RAL6001","16-FP.05",800,"P431/RAL6001"]
["Наличник деревянный шириной 40 мм лиственница.","пог. м",700,98,null,null,null,null,null,null,null,null,null,null,null,null,null,null,null,96,"RAL5008","Белый","RAL5008",1,1,2000,2200,4400,4734001,null,null,null,null,null,null,null,null,null,null,null,null,null,null,null,null,null,null,null,null,null,null,null,null,null,null,null,null,null,null,null,null,null,null,null,null,null,null,null,null,null,null,null,null,null,null,null,null,null,1,97,"RAL6002",1800,"ROS5605.01/RAL6002","ROS0080.05",1800,"FP-16.01/RAL6002","16-FP.05",800,"P431/RAL6002"]
["Наличник деревянный шириной 70 мм лиственница.","пог. м",1000,99,null,null,null,null,null,null,null,null,null,null,null,null,null,null,null,97,"RAL5009","Белый","RAL5009",1,1,2000,2200,4400,7887150,null,null,null,null,null,null,null,null,null,null,null,null,null,null,null,null,null,null,null,null,null,null,null,null,null,null,null,null,null,null,null,null,null,null,null,null,null,null,null,null,null,null,null,null,null,null,null,null,null,1,98,"RAL6003",1800,"ROS5605.01/RAL6003","ROS0080.05",1800,"FP-16.01/RAL6003","16-FP.05",800,"P431/RAL6003"]
["Наличник деревянный шириной 84 мм лиственница.","пог. м",1500,100,null,null,null,null,null,null,null,null,null,null,null,null,null,null,null,98,"RAL5010","Белый","RAL5010",1,1,2000,2200,4400,8143891,null,null,null,null,null,null,null,null,null,null,null,null,null,null,null,null,null,null,null,null,null,null,null,null,null,null,null,null,null,null,null,null,null,null,null,null,null,null,null,null,null,null,null,null,null,null,null,null,null,1,99,"RAL6004",1800,"ROS5605.01/RAL6004","ROS0080.05",1800,"FP-16.01/RAL6004","16-FP.05",800,"P431/RAL6004"]
["Наличник деревянный шириной 120 мм лиственница.","пог. м",2000,101,null,null,null,null,null,null,null,null,null,null,null,null,null,null,null,99,"RAL5011","Белый","RAL5011",1,1,2000,2200,4400,4140067,null,null,null,null,null,null,null,null,null,null,null,null,null,null,null,null,null,null,null,null,null,null,null,null,null,null,null,null,null,null,null,null,null,null,null,null,null,null,null,null,null,null,null,null,null,null,null,null,null,1,100,"RAL6005",1800,"ROS5605.01/RAL6005",{"$f":"\"ROS0080.0\"&IF(CA102=2,1,IF(CA102=1,5,7))","v":"ROS0080.05"},1800,"FP-16.01/RAL6005",{"$f":"\"16-FP.0\"&IF(CA102=2,1,IF(CA102=1,5,7))","v":"16-FP.05"},800,"P431/RAL6005"]
["Доборный брус лиственница.","пог. м",2800,102,null,null,null,null,null,null,null,null,null,null,null,null,null,null,null,100,"RAL5012","Белый","RAL5012",1,1,2000,2200,4400,12091700,null,null,null,null,null,null,null,null,null,null,null,null,null,null,null,null,null,null,null,null,null,null,null,null,null,null,null,null,null,null,null,null,null,null,null,null,null,null,null,null,null,null,null,null,null,null,null,null,null,1,101,"RAL6006",1800,"ROS5605.01/RAL6006","ROS0080.05",1800,"FP-16.01/RAL6006","16-FP.05",800,"P431/RAL6006"]
["Наличник деревянный шириной 30 мм дуб.","пог. м",800,103,null,null,null,null,null,null,null,null,null,null,null,null,null,null,null,101,"RAL5013","Белый","RAL5013",1,1,2000,2200,4400,5451043,null,null,null,null,null,null,null,null,null,null,null,null,null,null,null,null,null,null,null,null,null,null,null,null,null,null,null,null,null,null,null,null,null,null,null,null,null,null,null,null,null,null,null,null,null,null,null,null,null,1,102,"RAL6007",1800,"ROS5605.01/RAL6007","ROS0080.05",1800,"FP-16.01/RAL6007","16-FP.05",800,"P431/RAL6007"]
["Наличник деревянный шириной 40 мм дуб.","пог. м",1000,104,null,null,null,null,null,null,null,null,null,null,null,null,null,null,null,102,"RAL5014","Белый","RAL5014",1,1,2000,2200,4400,9993324,null,null,null,null,null,null,null,null,null,null,null,null,null,null,null,null,null,null,null,null,null,null,null,null,null,null,null,null,null,null,null,null,null,null,null,null,null,null,null,null,null,null,null,null,null,null,null,null,null,1,103,"RAL6008",1800,"ROS5605.01/RAL6008","ROS0080.05",1800,"FP-16.01/RAL6008","16-FP.05",800,"P431/RAL6008"]
["Наличник деревянный шириной 70 мм дуб.","пог. м",1600,105,null,null,null,null,null,null,null,null,null,null,null,null,null,null,null,103,"RAL5015","Белый","RAL5015",1,1,2000,2200,4400,11695144,null,null,null,null,null,null,null,null,null,null,null,null,null,null,null,null,null,null,null,null,null,null,null,null,null,null,null,null,null,null,null,null,null,null,null,null,null,null,null,null,null,null,null,null,null,null,null,null,null,1,104,"RAL6009",1800,"ROS5605.01/RAL6009","ROS0080.05",1800,"FP-16.01/RAL6009","16-FP.05",800,"P431/RAL6009"]
["Наличник деревянный шириной 84 мм дуб.","пог. м",2200,106,null,null,null,null,null,null,null,null,null,null,null,null,null,null,null,104,"RAL5017","Белый","RAL5017",1,1,2000,2200,4400,9261326,null,null,null,null,null,null,null,null,null,null,null,null,null,null,null,null,null,null,null,null,null,null,null,null,null,null,null,null,null,null,null,null,null,null,null,null,null,null,null,null,null,null,null,null,null,null,null,null,null,1,105,"RAL6010",1800,"ROS5605.01/RAL6010","ROS0080.05",1800,"FP-16.01/RAL6010","16-FP.05",800,"P431/RAL6010"]
["Наличник деревянный шириной 120 мм дуб.","пог. м",2800,107,null,null,null,null,null,null,null,null,null,null,null,null,null,null,null,105,"RAL5018","Белый","RAL5018",1,1,2000,2200,4400,9406497,null,null,null,null,null,null,null,null,null,null,null,null,null,null,null,null,null,null,null,null,null,null,null,null,null,null,null,null,null,null,null,null,null,null,null,null,null,null,null,null,null,null,null,null,null,null,null,null,null,1,106,"RAL6011",1800,"ROS5605.01/RAL6011","ROS0080.01",1800,"FP-16.01/RAL6011","16-FP.01",800,"P431/RAL6011"]
["Доборный брус дуб.","пог. м",4400,108,null,null,null,null,null,null,null,null,null,null,null,null,null,null,null,106,"RAL5019","Белый","RAL5019",1,1,2000,2200,4400,8673050,null,null,null,null,null,null,null,null,null,null,null,null,null,null,null,null,null,null,null,null,null,null,null,null,null,null,null,null,null,null,null,null,null,null,null,null,null,null,null,null,null,null,null,null,null,null,null,null,null,2,107,"RAL6012",1800,"ROS5605.01/RAL6012","ROS0080.01",1800,"FP-16.01/RAL6012","16-FP.01",800,"P431/RAL6012"]
["Панель откосная деревянная 18 мм без отделки сосна.","кв. м",8800,109,null,null,null,null,null,null,null,null,null,null,null,null,null,null,null,107,"RAL5020","Белый","RAL5020",1,1,2000,2200,4400,5325067,null,null,null,null,null,null,null,null,null,null,null,null,null,null,null,null,null,null,null,null,null,null,null,null,null,null,null,null,null,null,null,null,null,null,null,null,null,null,null,null,null,null,null,null,null,null,null,null,null,2,108,"RAL6013",1800,"ROS5605.01/RAL6013","ROS0080.01",1800,"FP-16.01/RAL6013","16-FP.01",800,"P431/RAL6013"]
["Панель откосная деревянная 18 мм без отделки лиственница.","кв. м",11000,110,null,null,null,null,null,null,null,null,null,null,null,null,null,null,null,108,"RAL5021","Белый","RAL5021",1,1,2000,2200,4400,8024839,null,null,null,null,null,null,null,null,null,null,null,null,null,null,null,null,null,null,null,null,null,null,null,null,null,null,null,null,null,null,null,null,null,null,null,null,null,null,null,null,null,null,null,null,null,null,null,null,null,2,109,"RAL6014",1800,"ROS5605.01/RAL6014","ROS0080.01",1800,"FP-16.01/RAL6014","16-FP.01",800,"P431/RAL6014"]
["Панель откосная деревянная 18 мм без отделки дуб.","кв. м",15400,111,null,null,null,null,null,null,null,null,null,null,null,null,null,null,null,109,"RAL5022","Белый","RAL5022",1,1,2000,2200,4400,5909039,null,null,null,null,null,null,null,null,null,null,null,null,null,null,null,null,null,null,null,null,null,null,null,null,null,null,null,null,null,null,null,null,null,null,null,null,null,null,null,null,null,null,null,null,null,null,null,null,null,2,110,"RAL6015",1800,"ROS5605.01/RAL6015","ROS0080.01",1800,"FP-16.01/RAL6015","16-FP.01",800,"P431/RAL6015"]
["Панель фальшкоробки деревянная 60 мм без отделки сосна.","кв. м",15400,112,null,null,null,null,null,null,null,null,null,null,null,null,null,null,null,110,"RAL5023","Белый","RAL5023",2,1,2000,2200,4400,9332301,null,null,null,null,null,null,null,null,null,null,null,null,null,null,null,null,null,null,null,null,null,null,null,null,null,null,null,null,null,null,null,null,null,null,null,null,null,null,null,null,null,null,null,null,null,null,null,null,null,2,111,"RAL6016",1800,"ROS5605.01/RAL6016","ROS0080.05",1800,"FP-16.01/RAL6016","16-FP.05",800,"P431/RAL6016"]
["Панель фальшкоробки деревянная 60 мм без отделки лиственница.","кв. м",19800,113,null,null,null,null,null,null,null,null,null,null,null,null,null,null,null,111,"RAL5024","Белый","RAL5024",2,1,2000,2200,4400,11572074,null,null,null,null,null,null,null,null,null,null,null,null,null,null,null,null,null,null,null,null,null,null,null,null,null,null,null,null,null,null,null,null,null,null,null,null,null,null,null,null,null,null,null,null,null,null,null,null,null,1,112,"RAL6017",1800,"ROS5605.01/RAL6017","ROS0080.05",1800,"FP-16.01/RAL6017","16-FP.05",800,"P431/RAL6017"]
["Панель фальшкоробки деревянная 60 мм без отделки дуб.","кв. м",27500,114,null,null,null,null,null,null,null,null,null,null,null,null,null,null,null,112,"RAL6000","Белый","RAL6000",1,1,2000,2200,4400,6452786,null,null,null,null,null,null,null,null,null,null,null,null,null,null,null,null,null,null,null,null,null,null,null,null,null,null,null,null,null,null,null,null,null,null,null,null,null,null,null,null,null,null,null,null,null,null,null,null,null,1,113,"RAL6018",1800,"ROS5605.01/RAL6018","ROS0080.05",1800,"FP-16.01/RAL6018","16-FP.05",800,"P431/RAL6018"]
["Откосы пластиковые шириной до 250 мм","пог. м",1700,115,null,null,null,null,null,null,null,null,null,null,null,null,null,null,null,113,"RAL6001","Белый","RAL6001",1,1,2000,2200,4400,4092200,null,null,null,null,null,null,null,null,null,null,null,null,null,null,null,null,null,null,null,null,null,null,null,null,null,null,null,null,null,null,null,null,null,null,null,null,null,null,null,null,null,null,null,null,null,null,null,null,null,1,114,"RAL6019",1800,"ROS5605.01/RAL6019","ROS0080.01",1800,"FP-16.01/RAL6019","16-FP.01",800,"P431/RAL6019"]
["Откосы пластиковые шириной от 250 до 300 мм","пог. м",2000,116,null,null,null,null,null,null,null,null,null,null,null,null,null,null,null,114,"RAL6002","Белый","RAL6002",1,1,2000,2200,4400,3498535,null,null,null,null,null,null,null,null,null,null,null,null,null,null,null,null,null,null,null,null,null,null,null,null,null,null,null,null,null,null,null,null,null,null,null,null,null,null,null,null,null,null,null,null,null,null,null,null,null,2,115,"RAL6020",1800,"ROS5605.01/RAL6020","ROS0080.05",1800,"FP-16.01/RAL6020","16-FP.05",800,"P431/RAL6020"]
["Откосы пластиковые шириной от 300 до 400 мм","пог. м",2200,117,null,null,null,null,null,null,null,null,null,null,null,null,null,null,null,115,"RAL6003","Белый","RAL6003",1,1,2000,2200,4400,4085579,null,null,null,null,null,null,null,null,null,null,null,null,null,null,null,null,null,null,null,null,null,null,null,null,null,null,null,null,null,null,null,null,null,null,null,null,null,null,null,null,null,null,null,null,null,null,null,null,null,1,116,"RAL6021",1800,"ROS5605.01/RAL6021","ROS0080.01",1800,"FP-16.01/RAL6021","16-FP.01",800,"P431/RAL6021"]
["Откосы пластиковые шириной от 400 до 500 мм","пог. м",2800,118,null,null,null,null,null,null,null,null,null,null,null,null,null,null,null,116,"RAL6004","Белый","RAL6004",1,1,2000,2200,4400,4407822,null,null,null,null,null,null,null,null,null,null,null,null,null,null,null,null,null,null,null,null,null,null,null,null,null,null,null,null,null,null,null,null,null,null,null,null,null,null,null,null,null,null,null,null,null,null,null,null,null,2,117,"RAL6022",1800,"ROS5605.01/RAL6022","ROS0080.05",1800,"FP-16.01/RAL6022","16-FP.05",800,"P431/RAL6022"]
["Откосы пластиковые шириной от 500 до 600 мм","пог. м",3300,119,null,null,null,null,null,null,null,null,null,null,null,null,null,null,null,117,"RAL6005","Белый","RAL6005",1,1,2000,2200,4400,3556111,null,null,null,null,null,null,null,null,null,null,null,null,null,null,null,null,null,null,null,null,null,null,null,null,null,null,null,null,null,null,null,null,null,null,null,null,null,null,null,null,null,null,null,null,null,null,null,null,null,1,118,"RAL6024",1800,"ROS5605.01/RAL6024","ROS0080.05",1800,"FP-16.01/RAL6024","16-FP.05",800,"P431/RAL6024"]
["Комплект для монтажа по технологии ILLBRUCK.","пог. м",500,120,null,null,null,null,null,null,null,null,null,null,null,null,null,null,null,118,"RAL6006","Белый","RAL6006",1,1,2000,2200,4400,3883840,null,null,null,null,null,null,null,null,null,null,null,null,null,null,null,null,null,null,null,null,null,null,null,null,null,null,null,null,null,null,null,null,null,null,null,null,null,null,null,null,null,null,null,null,null,null,null,null,null,1,119,"RAL6025",1800,"ROS5605.01/RAL6025","ROS0080.01",1800,"FP-16.01/RAL6025","16-FP.01",800,"P431/RAL6025"]
["Доставка в пределах МКАД за ТТК.","шт.",6000,121,null,null,null,null,null,null,null,null,null,null,null,null,null,null,null,119,"RAL6007","Белый","RAL6007",1,1,2000,2200,4400,2372648,null,null,null,null,null,null,null,null,null,null,null,null,null,null,null,null,null,null,null,null,null,null,null,null,null,null,null,null,null,null,null,null,null,null,null,null,null,null,null,null,null,null,null,null,null,null,null,null,null,2,120,"RAL6026",1800,"ROS5605.01/RAL6026","ROS0080.05",1800,"FP-16.01/RAL6026","16-FP.05",800,"P431/RAL6026"]
["Доставка в пределах ТТК .","шт.",8000,122,null,null,null,null,null,null,null,null,null,null,null,null,null,null,null,120,"RAL6008","Белый","RAL6008",1,1,2000,2200,4400,3029045,null,null,null,null,null,null,null,null,null,null,null,null,null,null,null,null,null,null,null,null,null,null,null,null,null,null,null,null,null,null,null,null,null,null,null,null,null,null,null,null,null,null,null,null,null,null,null,null,null,1,121,"RAL6027",1800,"ROS5605.01/RAL6027","ROS0080.01",1800,"FP-16.01/RAL6027","16-FP.01",800,"P431/RAL6027"]
["Доставка по Московской области до 10 км от МКАД.","шт.",6000,123,null,null,null,null,null,null,null,null,null,null,null,null,null,null,null,121,"RAL6009","Белый","RAL6009",1,1,2000,2200,4400,3094822,null,null,null,null,null,null,null,null,null,null,null,null,null,null,null,null,null,null,null,null,null,null,null,null,null,null,null,null,null,null,null,null,null,null,null,null,null,null,null,null,null,null,null,null,null,null,null,null,null,2,122,"RAL6028",1800,"ROS5605.01/RAL6028","ROS0080.05",1800,"FP-16.01/RAL6028","16-FP.05",800,"P431/RAL6028"]
["Доставка по Московской области от 10 до 100 км от МКАД.","км",70,124,null,null,null,null,null,null,null,null,null,null,null,null,null,null,null,122,"RAL6010","Белый","RAL6010",1,1,2000,2200,4400,3896638,null,null,null,null,null,null,null,null,null,null,null,null,null,null,null,null,null,null,null,null,null,null,null,null,null,null,null,null,null,null,null,null,null,null,null,null,null,null,null,null,null,null,null,null,null,null,null,null,null,1,123,"RAL6029",1800,"ROS5605.01/RAL6029","ROS0080.05",1800,"FP-16.01/RAL6029","16-FP.05",800,"P431/RAL6029"]
["Доставка более 100 км от МКАД.","км",90,125,null,null,null,null,null,null,null,null,null,null,null,null,null,null,null,123,"RAL6011","Белый","RAL6011",2,1,2000,2200,4400,5997158,null,null,null,null,null,null,null,null,null,null,null,null,null,null,null,null,null,null,null,null,null,null,null,null,null,null,null,null,null,null,null,null,null,null,null,null,null,null,null,null,null,null,null,null,null,null,null,null,null,1,124,"RAL6032",1800,"ROS5605.01/RAL6032","ROS0080.05",1800,"FP-16.01/RAL6032","16-FP.05",800,"P431/RAL6032"]
[null,null,null,126,null,null,null,null,null,null,null,null,null,null,null,null,null,null,null,124,"RAL6012","Белый","RAL6012",2,1,2000,2200,4400,4014129,null,null,null,null,null,null,null,null,null,null,null,null,null,null,null,null,null,null,null,null,null,null,null,null,null,null,null,null,null,null,null,null,null,null,null,null,null,null,null,null,null,null,null,null,null,null,null,null,null,1,125,"RAL6033",1800,"ROS5605.01/RAL6033","ROS0080.01",1800,"FP-16.01/RAL6033","16-FP.01",800,"P431/RAL6033"]
[null,null,null,127,null,null,null,null,null,null,null,null,null,null,null,null,null,null,null,125,"RAL6013","Белый","RAL6013",2,1,2000,2200,4400,5930105,null,null,null,null,null,null,null,null,null,null,null,null,null,null,null,null,null,null,null,null,null,null,null,null,null,null,null,null,null,null,null,null,null,null,null,null,null,null,null,null,null,null,null,null,null,null,null,null,null,2,126,"RAL6034",1800,"ROS5605.01/RAL6034","ROS0080.01",1800,"FP-16.01/RAL6034","16-FP.01",800,"P431/RAL6034"]
[null,null,null,null,null,null,null,null,null,null,null,null,null,null,null,null,null,null,null,126,"RAL6014","Белый","RAL6014",2,1,2000,2200,4400,3621700,null,null,null,null,null,null,null,null,null,null,null,null,null,null,null,null,null,null,null,null,null,null,null,null,null,null,null,null,null,null,null,null,null,null,null,null,null,null,null,null,null,null,null,null,null,null,null,null,null,2,127,"RAL6037",1800,"ROS5605.01/RAL6037","ROS0080.05",1800,"FP-16.01/RAL6037","16-FP.05",800,"P431/RAL6037"]
[null,null,null,null,null,null,null,null,null,null,null,null,null,null,null,null,null,null,null,127,"RAL6015","Белый","RAL6015",2,1,2000,2200,4400,3817533,null,null,null,null,null,null,null,null,null,null,null,null,null,null,null,null,null,null,null,null,null,null,null,null,null,null,null,null,null,null,null,null,null,null,null,null,null,null,null,null,null,null,null,null,null,null,null,null,null,1,128,"RAL7000",1800,"ROS5605.01/RAL7000","ROS0080.01",1800,"FP-16.01/RAL7000","16-FP.01",800,"P431/RAL7000"]
[null,null,null,null,null,null,null,null,null,null,null,null,null,null,null,null,null,null,null,128,"RAL6016","Белый","RAL6016",1,1,2000,2200,4400,5401090,null,null,null,null,null,null,null,null,null,null,null,null,null,null,null,null,null,null,null,null,null,null,null,null,null,null,null,null,null,null,null,null,null,null,null,null,null,null,null,null,null,null,null,null,null,null,null,null,null,2,129,"RAL7001",1800,"ROS5605.01/RAL7001","ROS0080.01",1800,"FP-16.01/RAL7001","16-FP.01",800,"P431/RAL7001"]
[null,null,null,null,null,null,null,null,null,null,null,null,null,null,null,null,null,null,null,129,"RAL6017","Белый","RAL6017",1,1,2000,2200,4400,4294214,null,null,null,null,null,null,null,null,null,null,null,null,null,null,null,null,null,null,null,null,null,null,null,null,null,null,null,null,null,null,null,null,null,null,null,null,null,null,null,null,null,null,null,null,null,null,null,null,null,2,130,"RAL7002",1800,"ROS5605.01/RAL7002","ROS0080.01",1800,"FP-16.01/RAL7002","16-FP.01",800,"P431/RAL7002"]
[null,null,null,null,null,null,null,null,null,null,null,null,null,null,null,null,null,null,null,130,"RAL6018","Белый","RAL6018",1,1,2000,2200,4400,4170824,null,null,null,null,null,null,null,null,null,null,null,null,null,null,null,null,null,null,null,null,null,null,null,null,null,null,null,null,null,null,null,null,null,null,null,null,null,null,null,null,null,null,null,null,null,null,null,null,null,2,131,"RAL7003",1800,"ROS5605.01/RAL7003","ROS0080.01",1800,"FP-16.01/RAL7003","16-FP.01",800,"P431/RAL7003"]
[null,null,null,null,null,null,null,null,null,null,null,null,null,null,null,null,null,null,null,131,"RAL6019","Белый","RAL6019",2,1,2000,2200,4400,11655607,null,null,null,null,null,null,null,null,null,null,null,null,null,null,null,null,null,null,null,null,null,null,null,null,null,null,null,null,null,null,null,null,null,null,null,null,null,null,null,null,null,null,null,null,null,null,null,null,null,2,132,"RAL7004",1800,"ROS5605.01/RAL7004",{"$f":"\"ROS0080.0\"&IF(CA134=2,1,IF(CA134=1,5,7))","v":"ROS0080.01"},1800,"FP-16.01/RAL7004",{"$f":"\"16-FP.0\"&IF(CA134=2,1,IF(CA134=1,5,7))","v":"16-FP.01"},800,"P431/RAL7004"]
[null,null,null,null,null,null,null,null,null,null,null,null,null,null,null,null,null,null,null,132,"RAL6020","Белый","RAL6020",1,1,2000,2200,4400,3360565,null,null,null,null,null,null,null,null,null,null,null,null,null,null,null,null,null,null,null,null,null,null,null,null,null,null,null,null,null,null,null,null,null,null,null,null,null,null,null,null,null,null,null,null,null,null,null,null,null,2,133,"RAL7005",1800,{"$f":"\"ROS5605.01/\"&CC134","v":"ROS5605.01/RAL7005"},"ROS0080.01",1800,{"$f":"\"FP-16.01/\"&CC134","v":"FP-16.01/RAL7005"},"16-FP.01",800,{"$f":"\"P431/\"&CC134","v":"P431/RAL7005"}]
[null,null,null,null,null,null,null,null,null,null,null,null,null,null,null,null,null,null,null,133,"RAL6021","Белый","RAL6021",2,1,2000,2200,4400,8168582,null,null,null,null,null,null,null,null,null,null,null,null,null,null,null,null,null,null,null,null,null,null,null,null,null,null,null,null,null,null,null,null,null,null,null,null,null,null,null,null,null,null,null,null,null,null,null,null,null,2,134,"RAL7006",1800,"ROS5605.01/RAL7006","ROS0080.01",1800,"FP-16.01/RAL7006","16-FP.01",800,"P431/RAL7006"]
[null,null,null,null,null,null,null,null,null,null,null,null,null,null,null,null,null,null,null,134,"RAL6022","Белый","RAL6022",1,1,2000,2200,4400,3292222,null,null,null,null,null,null,null,null,null,null,null,null,null,null,null,null,null,null,null,null,null,null,null,null,null,null,null,null,null,null,null,null,null,null,null,null,null,null,null,null,null,null,null,null,null,null,null,null,null,2,135,"RAL7008",1800,"ROS5605.01/RAL7008","ROS0080.01",1800,"FP-16.01/RAL7008","16-FP.01",800,"P431/RAL7008"]
[null,null,null,null,null,null,null,null,null,null,null,null,null,null,null,null,null,null,null,135,"RAL6024","Белый","RAL6024",1,1,2000,2200,4400,5539584,null,null,null,null,null,null,null,null,null,null,null,null,null,null,null,null,null,null,null,null,null,null,null,null,null,null,null,null,null,null,null,null,null,null,null,null,null,null,null,null,null,null,null,null,null,null,null,null,null,2,136,"RAL7009",1800,"ROS5605.01/RAL7009","ROS0080.01",1800,"FP-16.01/RAL7009","16-FP.01",800,"P431/RAL7009"]
[null,null,null,null,null,null,null,null,null,null,null,null,null,null,null,null,null,null,null,136,"RAL6025","Белый","RAL6025",2,1,2000,2200,4400,3962195,null,null,null,null,null,null,null,null,null,null,null,null,null,null,null,null,null,null,null,null,null,null,null,null,null,null,null,null,null,null,null,null,null,null,null,null,null,null,null,null,null,null,null,null,null,null,null,null,null,2,137,"RAL7010",1800,"ROS5605.01/RAL7010","ROS0080.01",1800,"FP-16.01/RAL7010","16-FP.01",800,"P431/RAL7010"]
[null,null,null,null,null,null,null,null,null,null,null,null,null,null,null,null,null,null,null,137,"RAL6026","Белый","RAL6026",1,1,2000,2200,4400,5397760,null,null,null,null,null,null,null,null,null,null,null,null,null,null,null,null,null,null,null,null,null,null,null,null,null,null,null,null,null,null,null,null,null,null,null,null,null,null,null,null,null,null,null,null,null,null,null,null,null,2,138,"RAL7011",1800,"ROS5605.01/RAL7011","ROS0080.01",1800,"FP-16.01/RAL7011","16-FP.01",800,"P431/RAL7011"]
[null,null,null,null,null,null,null,null,null,null,null,null,null,null,null,null,null,null,null,138,"RAL6027","Белый","RAL6027",2,1,2000,2200,4400,12304513,null,null,null,null,null,null,null,null,null,null,null,null,null,null,null,null,null,null,null,null,null,null,null,null,null,null,null,null,null,null,null,null,null,null,null,null,null,null,null,null,null,null,null,null,null,null,null,null,null,2,139,"RAL7012",1800,"ROS5605.01/RAL7012","ROS0080.01",1800,"FP-16.01/RAL7012","16-FP.01",800,"P431/RAL7012"]
[null,null,null,null,null,null,null,null,null,null,null,null,null,null,null,null,null,null,null,139,"RAL6028","Белый","RAL6028",1,1,2000,2200,4400,4609325,null,null,null,null,null,null,null,null,null,null,null,null,null,null,null,null,null,null,null,null,null,null,null,null,null,null,null,null,null,null,null,null,null,null,null,null,null,null,null,null,null,null,null,null,null,null,null,null,null,2,140,"RAL7013",1800,"ROS5605.01/RAL7013","ROS0080.01",1800,"FP-16.01/RAL7013","16-FP.01",800,"P431/RAL7013"]
[null,null,null,null,null,null,null,null,null,null,null,null,null,null,null,null,null,null,null,140,"RAL6029","Белый","RAL6029",1,1,2000,2200,4400,4420096,null,null,null,null,null,null,null,null,null,null,null,null,null,null,null,null,null,null,null,null,null,null,null,null,null,null,null,null,null,null,null,null,null,null,null,null,null,null,null,null,null,null,null,null,null,null,null,null,null,2,141,"RAL7015",1800,"ROS5605.01/RAL7015","ROS0080.01",1800,"FP-16.01/RAL7015","16-FP.01",800,"P431/RAL7015"]
[null,null,null,null,null,null,null,null,null,null,null,null,null,null,null,null,null,null,null,141,"RAL6032","Белый","RAL6032",1,1,2000,2200,4400,5801231,null,null,null,null,null,null,null,null,null,null,null,null,null,null,null,null,null,null,null,null,null,null,null,null,null,null,null,null,null,null,null,null,null,null,null,null,null,null,null,null,null,null,null,null,null,null,null,null,null,2,142,"RAL7016",1800,"ROS5605.01/RAL7016","ROS0080.01",1600,"FP-16.01/RAL7016","16-FP.01",800,"P431/RAL7016"]
[null,null,null,null,null,null,null,null,null,null,null,null,null,null,null,null,null,null,null,142,"RAL6033","Белый","RAL6033",2,1,2000,2200,4400,8686151,null,null,null,null,null,null,null,null,null,null,null,null,null,null,null,null,null,null,null,null,null,null,null,null,null,null,null,null,null,null,null,null,null,null,null,null,null,null,null,null,null,null,null,null,null,null,null,null,null,2,143,"RAL7021",1800,"ROS5605.01/RAL7021","ROS0080.01",1800,"FP-16.01/RAL7021","16-FP.01",800,"P431/RAL7021"]
[null,null,null,null,null,null,null,null,null,null,null,null,null,null,null,null,null,null,null,143,"RAL6034","Белый","RAL6034",2,1,2000,2200,4400,11710591,null,null,null,null,null,null,null,null,null,null,null,null,null,null,null,null,null,null,null,null,null,null,null,null,null,null,null,null,null,null,null,null,null,null,null,null,null,null,null,null,null,null,null,null,null,null,null,null,null,2,144,"RAL7022",1800,"ROS5605.01/RAL7022","ROS0080.01",1800,"FP-16.01/RAL7022","16-FP.01",800,"P431/RAL7022"]
[null,null,null,null,null,null,null,null,null,null,null,null,null,null,null,null,null,null,null,144,"RAL6037","Белый","RAL6037",1,1,2000,2200,4400,3772160,null,null,null,null,null,null,null,null,null,null,null,null,null,null,null,null,null,null,null,null,null,null,null,null,null,null,null,null,null,null,null,null,null,null,null,null,null,null,null,null,null,null,null,null,null,null,null,null,null,2,145,"RAL7023",1800,"ROS5605.01/RAL7023","ROS0080.01",1800,"FP-16.01/RAL7023","16-FP.01",800,"P431/RAL7023"]
[null,null,null,null,null,null,null,null,null,null,null,null,null,null,null,null,null,null,null,145,"RAL7000","Белый","RAL7000",2,1,2000,2200,4400,9603966,null,null,null,null,null,null,null,null,null,null,null,null,null,null,null,null,null,null,null,null,null,null,null,null,null,null,null,null,null,null,null,null,null,null,null,null,null,null,null,null,null,null,null,null,null,null,null,null,null,2,146,"RAL7024",1800,"ROS5605.01/RAL7024","ROS0080.01",1800,"FP-16.01/RAL7024","16-FP.01",800,"P431/RAL7024"]
[null,null,null,null,null,null,null,null,null,null,null,null,null,null,null,null,null,null,null,146,"RAL7001","Белый","RAL7001",2,1,2000,2200,4400,10459535,null,null,null,null,null,null,null,null,null,null,null,null,null,null,null,null,null,null,null,null,null,null,null,null,null,null,null,null,null,null,null,null,null,null,null,null,null,null,null,null,null,null,null,null,null,null,null,null,null,2,147,"RAL7026",1800,"ROS5605.01/RAL7026","ROS0080.01",1800,"FP-16.01/RAL7026","16-FP.01",800,"P431/RAL7026"]
[null,null,null,null,null,null,null,null,null,null,null,null,null,null,null,null,null,null,null,147,"RAL7002","Белый","RAL7002",2,1,2000,2200,4400,6848385,null,null,null,null,null,null,null,null,null,null,null,null,null,null,null,null,null,null,null,null,null,null,null,null,null,null,null,null,null,null,null,null,null,null,null,null,null,null,null,null,null,null,null,null,null,null,null,null,null,2,148,"RAL7030",1800,"ROS5605.01/RAL7030","ROS0080.01",1800,"FP-16.01/RAL7030","16-FP.01",800,"P431/RAL7030"]
[null,null,null,null,null,null,null,null,null,null,null,null,null,null,null,null,null,null,null,148,"RAL7003","Белый","RAL7003",2,1,2000,2200,4400,7175034,null,null,null,null,null,null,null,null,null,null,null,null,null,null,null,null,null,null,null,null,null,null,null,null,null,null,null,null,null,null,null,null,null,null,null,null,null,null,null,null,null,null,null,null,null,null,null,null,null,2,149,"RAL7031",1800,"ROS5605.01/RAL7031","ROS0080.01",1800,"FP-16.01/RAL7031","16-FP.01",800,"P431/RAL7031"]
[null,null,null,null,null,null,null,null,null,null,null,null,null,null,null,null,null,null,null,149,"RAL7004","Белый","RAL7004",2,1,2000,2200,4400,10592414,null,null,null,null,null,null,null,null,null,null,null,null,null,null,null,null,null,null,null,null,null,null,null,null,null,null,null,null,null,null,null,null,null,null,null,null,null,null,null,null,null,null,null,null,null,null,null,null,null,2,150,"RAL7032",1800,"ROS5605.01/RAL7032","ROS0080.01",1800,"FP-16.01/RAL7032","16-FP.01",800,"P431/RAL7032"]
[null,null,null,null,null,null,null,null,null,null,null,null,null,null,null,null,null,null,null,150,"RAL7005","Белый","RAL7005",2,1,2000,2200,4400,7303531,null,null,null,null,null,null,null,null,null,null,null,null,null,null,null,null,null,null,null,null,null,null,null,null,null,null,null,null,null,null,null,null,null,null,null,null,null,null,null,null,null,null,null,null,null,null,null,null,null,2,151,"RAL7033",1800,"ROS5605.01/RAL7033","ROS0080.01",1800,"FP-16.01/RAL7033","16-FP.01",800,"P431/RAL7033"]
[null,null,null,null,null,null,null,null,null,null,null,null,null,null,null,null,null,null,null,151,"RAL7006","Белый","RAL7006",2,1,2000,2200,4400,6385525,null,null,null,null,null,null,null,null,null,null,null,null,null,null,null,null,null,null,null,null,null,null,null,null,null,null,null,null,null,null,null,null,null,null,null,null,null,null,null,null,null,null,null,null,null,null,null,null,null,2,152,"RAL7034",1800,"ROS5605.01/RAL7034","ROS0080.01",1800,"FP-16.01/RAL7034","16-FP.01",800,"P431/RAL7034"]
[null,null,null,null,null,null,null,null,null,null,null,null,null,null,null,null,null,null,null,152,"RAL7008","Белый","RAL7008",2,1,2000,2200,4400,4417140,null,null,null,null,null,null,null,null,null,null,null,null,null,null,null,null,null,null,null,null,null,null,null,null,null,null,null,null,null,null,null,null,null,null,null,null,null,null,null,null,null,null,null,null,null,null,null,null,null,2,153,"RAL7035",1800,"ROS5605.01/RAL7035","ROS0080.01",1800,"FP-16.01/RAL7035","16-FP.01",800,"P431/RAL7035"]
[null,null,null,null,null,null,null,null,null,null,null,null,null,null,null,null,null,null,null,153,"RAL7009","Белый","RAL7009",2,1,2000,2200,4400,5857883,null,null,null,null,null,null,null,null,null,null,null,null,null,null,null,null,null,null,null,null,null,null,null,null,null,null,null,null,null,null,null,null,null,null,null,null,null,null,null,null,null,null,null,null,null,null,null,null,null,2,154,"RAL7036",1800,"ROS5605.01/RAL7036","ROS0080.01",1800,"FP-16.01/RAL7036","16-FP.01",800,"P431/RAL7036"]
[null,null,null,null,null,null,null,null,null,null,null,null,null,null,null,null,null,null,null,154,"RAL7010","Белый","RAL7010",2,1,2000,2200,4400,5725527,null,null,null,null,null,null,null,null,null,null,null,null,null,null,null,null,null,null,null,null,null,null,null,null,null,null,null,null,null,null,null,null,null,null,null,null,null,null,null,null,null,null,null,null,null,null,null,null,null,2,155,"RAL7037",1800,"ROS5605.01/RAL7037","ROS0080.01",1800,"FP-16.01/RAL7037","16-FP.01",800,"P431/RAL7037"]
[null,null,null,null,null,null,null,null,null,null,null,null,null,null,null,null,null,null,null,155,"RAL7011","Белый","RAL7011",2,1,2000,2200,4400,6380885,null,null,null,null,null,null,null,null,null,null,null,null,null,null,null,null,null,null,null,null,null,null,null,null,null,null,null,null,null,null,null,null,null,null,null,null,null,null,null,null,null,null,null,null,null,null,null,null,null,2,156,"RAL7038",1800,"ROS5605.01/RAL7038","ROS0080.01",1800,"FP-16.01/RAL7038","16-FP.01",800,"P431/RAL7038"]
[null,null,null,null,null,null,null,null,null,null,null,null,null,null,null,null,null,null,null,156,"RAL7012","Белый","RAL7012",2,1,2000,2200,4400,6512985,null,null,null,null,null,null,null,null,null,null,null,null,null,null,null,null,null,null,null,null,null,null,null,null,null,null,null,null,null,null,null,null,null,null,null,null,null,null,null,null,null,null,null,null,null,null,null,null,null,2,157,"RAL7039",1800,"ROS5605.01/RAL7039","ROS0080.01",1800,"FP-16.01/RAL7039","16-FP.01",800,"P431/RAL7039"]
[null,null,null,null,null,null,null,null,null,null,null,null,null,null,null,null,null,null,null,157,"RAL7013","Белый","RAL7013",2,1,2000,2200,4400,4740437,null,null,null,null,null,null,null,null,null,null,null,null,null,null,null,null,null,null,null,null,null,null,null,null,null,null,null,null,null,null,null,null,null,null,null,null,null,null,null,null,null,null,null,null,null,null,null,null,null,2,158,"RAL7040",1800,"ROS5605.01/RAL7040","ROS0080.01",1800,"FP-16.01/RAL7040","16-FP.01",800,"P431/RAL7040"]
[null,null,null,null,null,null,null,null,null,null,null,null,null,null,null,null,null,null,null,158,"RAL7015","Белый","RAL7015",2,1,2000,2200,4400,6051409,null,null,null,null,null,null,null,null,null,null,null,null,null,null,null,null,null,null,null,null,null,null,null,null,null,null,null,null,null,null,null,null,null,null,null,null,null,null,null,null,null,null,null,null,null,null,null,null,null,2,159,"RAL7042",1800,"ROS5605.01/RAL7042","ROS0080.01",1800,"FP-16.01/RAL7042","16-FP.01",800,"P431/RAL7042"]
[null,null,null,null,null,null,null,null,null,null,null,null,null,null,null,null,null,null,null,159,"RAL7016","Белый","RAL7016",2,1,2000,2200,4400,4407095,null,null,null,null,null,null,null,null,null,null,null,null,null,null,null,null,null,null,null,null,null,null,null,null,null,null,null,null,null,null,null,null,null,null,null,null,null,null,null,null,null,null,null,null,null,null,null,null,null,2,160,"RAL7043",1800,"ROS5605.01/RAL7043","ROS0080.01",1800,"FP-16.01/RAL7043","16-FP.01",800,"P431/RAL7043"]
[null,null,null,null,null,null,null,null,null,null,null,null,null,null,null,null,null,null,null,160,"RAL7021","Белый","RAL7021",2,1,2000,2200,4400,3420718,null,null,null,null,null,null,null,null,null,null,null,null,null,null,null,null,null,null,null,null,null,null,null,null,null,null,null,null,null,null,null,null,null,null,null,null,null,null,null,null,null,null,null,null,null,null,null,null,null,2,161,"RAL7044",1800,"ROS5605.01/RAL7044","ROS0080.01",1800,"FP-16.01/RAL7044","16-FP.01",800,"P431/RAL7044"]
[null,null,null,null,null,null,null,null,null,null,null,null,null,null,null,null,null,null,null,161,"RAL7022","Белый","RAL7022",2,1,2000,2200,4400,4607307,null,null,null,null,null,null,null,null,null,null,null,null,null,null,null,null,null,null,null,null,null,null,null,null,null,null,null,null,null,null,null,null,null,null,null,null,null,null,null,null,null,null,null,null,null,null,null,null,null,2,162,"RAL7045",1800,"ROS5605.01/RAL7045","ROS0080.01",1800,"FP-16.01/RAL7045","16-FP.01",800,"P431/RAL7045"]
[null,null,null,null,null,null,null,null,null,null,null,null,null,null,null,null,null,null,null,162,"RAL7023","Белый","RAL7023",2,1,2000,2200,4400,7963777,null,null,null,null,null,null,null,null,null,null,null,null,null,null,null,null,null,null,null,null,null,null,null,null,null,null,null,null,null,null,null,null,null,null,null,null,null,null,null,null,null,null,null,null,null,null,null,null,null,2,163,"RAL7046",1800,"ROS5605.01/RAL7046","ROS0080.01",1800,"FP-16.01/RAL7046","16-FP.01",800,"P431/RAL7046"]
[null,null,null,null,null,null,null,null,null,null,null,null,null,null,null,null,null,null,null,163,"RAL7024","Белый","RAL7024",2,1,2000,2200,4400,5261895,null,null,null,null,null,null,null,null,null,null,null,null,null,null,null,null,null,null,null,null,null,null,null,null,null,null,null,null,null,null,null,null,null,null,null,null,null,null,null,null,null,null,null,null,null,null,null,null,null,2,164,"RAL7047",1800,"ROS5605.01/RAL7047",{"$f":"\"ROS0080.0\"&IF(CA166=2,1,IF(CA166=1,5,7))","v":"ROS0080.01"},1800,"FP-16.01/RAL7047",{"$f":"\"16-FP.0\"&IF(CA166=2,1,IF(CA166=1,5,7))","v":"16-FP.01"},800,"P431/RAL7047"]
[null,null,null,null,null,null,null,null,null,null,null,null,null,null,null,null,null,null,null,164,"RAL7026","Белый","RAL7026",2,1,2000,2200,4400,4670519,null,null,null,null,null,null,null,null,null,null,null,null,null,null,null,null,null,null,null,null,null,null,null,null,null,null,null,null,null,null,null,null,null,null,null,null,null,null,null,null,null,null,null,null,null,null,null,null,null,2,165,"RAL8000",1800,"ROS5605.01/RAL8000","ROS0080.05",1800,"FP-16.01/RAL8000","16-FP.05",800,"P431/RAL8000"]
[null,null,null,null,null,null,null,null,null,null,null,null,null,null,null,null,null,null,null,165,"RAL7030","Белый","RAL7030",2,1,2000,2200,4400,8950675,null,null,null,null,null,null,null,null,null,null,null,null,null,null,null,null,null,null,null,null,null,null,null,null,null,null,null,null,null,null,null,null,null,null,null,null,null,null,null,null,null,null,null,null,null,null,null,null,null,1,166,"RAL8001",1800,"ROS5605.01/RAL8001","ROS0080.05",1800,"FP-16.01/RAL8001","16-FP.05",800,"P431/RAL8001"]
[null,null,null,null,null,null,null,null,null,null,null,null,null,null,null,null,null,null,null,166,"RAL7031","Белый","RAL7031",2,1,2000,2200,4400,7367005,null,null,null,null,null,null,null,null,null,null,null,null,null,null,null,null,null,null,null,null,null,null,null,null,null,null,null,null,null,null,null,null,null,null,null,null,null,null,null,null,null,null,null,null,null,null,null,null,null,1,167,"RAL8002",1800,"ROS5605.01/RAL8002","ROS0080.05",1800,"FP-16.01/RAL8002","16-FP.05",800,"P431/RAL8002"]
[null,null,null,null,null,null,null,null,null,null,null,null,null,null,null,null,null,null,null,167,"RAL7032","Белый","RAL7032",2,1,2000,2200,4400,11057593,null,null,null,null,null,null,null,null,null,null,null,null,null,null,null,null,null,null,null,null,null,null,null,null,null,null,null,null,null,null,null,null,null,null,null,null,null,null,null,null,null,null,null,null,null,null,null,null,null,1,168,"RAL8003",1800,"ROS5605.01/RAL8003","ROS0080.05",1800,"FP-16.01/RAL8003","16-FP.05",800,"P431/RAL8003"]
[null,null,null,null,null,null,null,null,null,null,null,null,null,null,null,null,null,null,null,168,"RAL7033","Белый","RAL7033",2,1,2000,2200,4400,7965057,null,null,null,null,null,null,null,null,null,null,null,null,null,null,null,null,null,null,null,null,null,null,null,null,null,null,null,null,null,null,null,null,null,null,null,null,null,null,null,null,null,null,null,null,null,null,null,null,null,1,169,"RAL8004",1800,"ROS5605.01/RAL8004","ROS0080.05",1800,"FP-16.01/RAL8004","16-FP.05",800,"P431/RAL8004"]
[null,null,null,null,null,null,null,null,null,null,null,null,null,null,null,null,null,null,null,169,"RAL7034","Белый","RAL7034",2,1,2000,2200,4400,7770515,null,null,null,null,null,null,null,null,null,null,null,null,null,null,null,null,null,null,null,null,null,null,null,null,null,null,null,null,null,null,null,null,null,null,null,null,null,null,null,null,null,null,null,null,null,null,null,null,null,1,170,"RAL8007",1800,"ROS5605.01/RAL8007","ROS0080.05",1800,"FP-16.01/RAL8007","16-FP.05",800,"P431/RAL8007"]
[null,null,null,null,null,null,null,null,null,null,null,null,null,null,null,null,null,null,null,170,"RAL7035","Белый","RAL7035",2,1,2000,2200,4400,13422795,null,null,null,null,null,null,null,null,null,null,null,null,null,null,null,null,null,null,null,null,null,null,null,null,null,null,null,null,null,null,null,null,null,null,null,null,null,null,null,null,null,null,null,null,null,null,null,null,null,1,171,"RAL8008",1800,"ROS5605.01/RAL8008","ROS0080.05",1800,"FP-16.01/RAL8008","16-FP.05",800,"P431/RAL8008"]
[null,null,null,null,null,null,null,null,null,null,null,null,null,null,null,null,null,null,null,171,"RAL7036","Белый","RAL7036",2,1,2000,2200,4400,9934490,null,null,null,null,null,null,null,null,null,null,null,null,null,null,null,null,null,null,null,null,null,null,null,null,null,null,null,null,null,null,null,null,null,null,null,null,null,null,null,null,null,null,null,null,null,null,null,null,null,1,172,"RAL8011",1800,"ROS5605.01/RAL8011","ROS0080.05",1800,"FP-16.01/RAL8011","16-FP.05",800,"P431/RAL8011"]
[null,null,null,null,null,null,null,null,null,null,null,null,null,null,null,null,null,null,null,172,"RAL7037","Белый","RAL7037",2,1,2000,2200,4400,8290172,null,null,null,null,null,null,null,null,null,null,null,null,null,null,null,null,null,null,null,null,null,null,null,null,null,null,null,null,null,null,null,null,null,null,null,null,null,null,null,null,null,null,null,null,null,null,null,null,null,1,173,"RAL8012",1800,"ROS5605.01/RAL8012","ROS0080.05",1800,"FP-16.01/RAL8012","16-FP.05",800,"P431/RAL8012"]
[null,null,null,null,null,null,null,null,null,null,null,null,null,null,null,null,null,null,null,173,"RAL7038","Белый","RAL7038",2,1,2000,2200,4400,11581620,null,null,null,null,null,null,null,null,null,null,null,null,null,null,null,null,null,null,null,null,null,null,null,null,null,null,null,null,null,null,null,null,null,null,null,null,null,null,null,null,null,null,null,null,null,null,null,null,null,1,174,"RAL8014",1800,"ROS5605.01/RAL8014","ROS0080.05",1800,"FP-16.01/RAL8014","16-FP.05",800,"P431/RAL8014"]
[null,null,null,null,null,null,null,null,null,null,null,null,null,null,null,null,null,null,null,174,"RAL7039","Белый","RAL7039",2,1,2000,2200,4400,6252907,null,null,null,null,null,null,null,null,null,null,null,null,null,null,null,null,null,null,null,null,null,null,null,null,null,null,null,null,null,null,null,null,null,null,null,null,null,null,null,null,null,null,null,null,null,null,null,null,null,1,175,"RAL8015",1800,"ROS5605.01/RAL8015","ROS0080.05",1800,"FP-16.01/RAL8015","16-FP.05",800,"P431/RAL8015"]
[null,null,null,null,null,null,null,null,null,null,null,null,null,null,null,null,null,null,null,175,"RAL7040","Белый","RAL7040",2,1,2000,2200,4400,10920861,null,null,null,null,null,null,null,null,null,null,null,null,null,null,null,null,null,null,null,null,null,null,null,null,null,null,null,null,null,null,null,null,null,null,null,null,null,null,null,null,null,null,null,null,null,null,null,null,null,1,176,"RAL8016",1800,"ROS5605.01/RAL8016","ROS0080.05",1800,"FP-16.01/RAL8016","16-FP.05",800,"P431/RAL8016"]
[null,null,null,null,null,null,null,null,null,null,null,null,null,null,null,null,null,null,null,176,"RAL7042","Белый","RAL7042",2,1,2000,2200,4400,9803407,null,null,null,null,null,null,null,null,null,null,null,null,null,null,null,null,null,null,null,null,null,null,null,null,null,null,null,null,null,null,null,null,null,null,null,null,null,null,null,null,null,null,null,null,null,null,null,null,null,1,177,"RAL8017",1800,"ROS5605.01/RAL8017","ROS0080.05",1800,"FP-16.01/RAL8017","16-FP.05",800,"P431/RAL8017"]
[null,null,null,null,null,null,null,null,null,null,null,null,null,null,null,null,null,null,null,177,"RAL7043","Белый","RAL7043",2,1,2000,2200,4400,5329998,null,null,null,null,null,null,null,null,null,null,null,null,null,null,null,null,null,null,null,null,null,null,null,null,null,null,null,null,null,null,null,null,null,null,null,null,null,null,null,null,null,null,null,null,null,null,null,null,null,1,178,"RAL8019",1800,"ROS5605.01/RAL8019","ROS0080.05",1800,"FP-16.01/RAL8019","16-FP.05",800,"P431/RAL8019"]
[null,null,null,null,null,null,null,null,null,null,null,null,null,null,null,null,null,null,null,178,"RAL7044","Белый","RAL7044",2,1,2000,2200,4400,11713981,null,null,null,null,null,null,null,null,null,null,null,null,null,null,null,null,null,null,null,null,null,null,null,null,null,null,null,null,null,null,null,null,null,null,null,null,null,null,null,null,null,null,null,null,null,null,null,null,null,1,179,"RAL8022",1800,"ROS5605.01/RAL8022","ROS0080.05",1800,"FP-16.01/RAL8022","16-FP.05",800,"P431/RAL8022"]
[null,null,null,null,null,null,null,null,null,null,null,null,null,null,null,null,null,null,null,179,"RAL7045","Белый","RAL7045",2,1,2000,2200,4400,10131089,null,null,null,null,null,null,null,null,null,null,null,null,null,null,null,null,null,null,null,null,null,null,null,null,null,null,null,null,null,null,null,null,null,null,null,null,null,null,null,null,null,null,null,null,null,null,null,null,null,1,180,"RAL8023",1800,"ROS5605.01/RAL8023","ROS0080.05",1800,"FP-16.01/RAL8023","16-FP.05",800,"P431/RAL8023"]
[null,null,null,null,null,null,null,null,null,null,null,null,null,null,null,null,null,null,null,180,"RAL7046","Белый","RAL7046",2,1,2000,2200,4400,9341314,null,null,null,null,null,null,null,null,null,null,null,null,null,null,null,null,null,null,null,null,null,null,null,null,null,null,null,null,null,null,null,null,null,null,null,null,null,null,null,null,null,null,null,null,null,null,null,null,null,1,181,"RAL8024",1800,"ROS5605.01/RAL8024","ROS0080.05",1800,"FP-16.01/RAL8024","16-FP.05",800,"P431/RAL8024"]
[null,null,null,null,null,null,null,null,null,null,null,null,null,null,null,null,null,null,null,181,"RAL7047","Белый","RAL7047",2,1,2000,2200,4400,13619407,null,null,null,null,null,null,null,null,null,null,null,null,null,null,null,null,null,null,null,null,null,null,null,null,null,null,null,null,null,null,null,null,null,null,null,null,null,null,null,null,null,null,null,null,null,null,null,null,null,1,182,"RAL8025",1800,"ROS5605.01/RAL8025","ROS0080.05",1800,"FP-16.01/RAL8025","16-FP.05",800,"P431/RAL8025"]
[null,null,null,null,null,null,null,null,null,null,null,null,null,null,null,null,null,null,null,182,"RAL8000","Белый","RAL8000",1,1,2000,2200,4400,4354440,null,null,null,null,null,null,null,null,null,null,null,null,null,null,null,null,null,null,null,null,null,null,null,null,null,null,null,null,null,null,null,null,null,null,null,null,null,null,null,null,null,null,null,null,null,null,null,null,null,1,183,"RAL8028",1800,"ROS5605.01/RAL8028","ROS0080.05",1800,"FP-16.01/RAL8028","16-FP.05",800,"P431/RAL8028"]
[null,null,null,null,null,null,null,null,null,null,null,null,null,null,null,null,null,null,null,183,"RAL8001","Белый","RAL8001",1,1,2000,2200,4400,3173276,null,null,null,null,null,null,null,null,null,null,null,null,null,null,null,null,null,null,null,null,null,null,null,null,null,null,null,null,null,null,null,null,null,null,null,null,null,null,null,null,null,null,null,null,null,null,null,null,null,1,184,"RAL9001",1800,"ROS5605.01/RAL9001","ROS0080.07",1800,"FP-16.01/RAL9001","16-FP.07",800,"P431/RAL9001"]
[null,null,null,null,null,null,null,null,null,null,null,null,null,null,null,null,null,null,null,184,"RAL8002","Белый","RAL8002",1,1,2000,2200,4400,4280699,null,null,null,null,null,null,null,null,null,null,null,null,null,null,null,null,null,null,null,null,null,null,null,null,null,null,null,null,null,null,null,null,null,null,null,null,null,null,null,null,null,null,null,null,null,null,null,null,null,0,185,"RAL9002",1800,"ROS5605.01/RAL9002","ROS0080.07",1800,"FP-16.01/RAL9002","16-FP.07",800,"P431/RAL9002"]
[null,null,null,null,null,null,null,null,null,null,null,null,null,null,null,null,null,null,null,185,"RAL8003","Белый","RAL8003",1,1,2000,2200,4400,3101824,null,null,null,null,null,null,null,null,null,null,null,null,null,null,null,null,null,null,null,null,null,null,null,null,null,null,null,null,null,null,null,null,null,null,null,null,null,null,null,null,null,null,null,null,null,null,null,null,null,0,186,"RAL9003",1800,"ROS5605.01/RAL9003","ROS0080.07",1800,"FP-16.01/RAL9003","16-FP.07",800,"P431/RAL9003"]
[null,null,null,null,null,null,null,null,null,null,null,null,null,null,null,null,null,null,null,186,"RAL8004","Белый","RAL8004",1,1,2000,2200,4400,3493519,null,null,null,null,null,null,null,null,null,null,null,null,null,null,null,null,null,null,null,null,null,null,null,null,null,null,null,null,null,null,null,null,null,null,null,null,null,null,null,null,null,null,null,null,null,null,null,null,null,0,187,"RAL9004",1800,"ROS5605.01/RAL9004","ROS0080.05",1800,"FP-16.01/RAL9004","16-FP.05",800,"P431/RAL9004"]
[null,null,null,null,null,null,null,null,null,null,null,null,null,null,null,null,null,null,null,187,"RAL8007","Белый","RAL8007",1,1,2000,2200,4400,3099247,null,null,null,null,null,null,null,null,null,null,null,null,null,null,null,null,null,null,null,null,null,null,null,null,null,null,null,null,null,null,null,null,null,null,null,null,null,null,null,null,null,null,null,null,null,null,null,null,null,1,188,"RAL9005",1800,"ROS5605.01/RAL9005","ROS0080.05",1800,"FP-16.01/RAL9005","16-FP.05",800,"P431/RAL9005"]
[null,null,null,null,null,null,null,null,null,null,null,null,null,null,null,null,null,null,null,188,"RAL8008","Белый","RAL8008",1,1,2000,2200,4400,2641775,null,null,null,null,null,null,null,null,null,null,null,null,null,null,null,null,null,null,null,null,null,null,null,null,null,null,null,null,null,null,null,null,null,null,null,null,null,null,null,null,null,null,null,null,null,null,null,null,null,1,189,"RAL9006",1800,"ROS5605.01/RAL9006","ROS0080.01",1800,"FP-16.01/RAL9006","16-FP.01",800,"P431/RAL9006"]
[null,null,null,null,null,null,null,null,null,null,null,null,null,null,null,null,null,null,null,189,"RAL8011","Белый","RAL8011",1,1,2000,2200,4400,2701914,null,null,null,null,null,null,null,null,null,null,null,null,null,null,null,null,null,null,null,null,null,null,null,null,null,null,null,null,null,null,null,null,null,null,null,null,null,null,null,null,null,null,null,null,null,null,null,null,null,2,190,"RAL9007",1800,"ROS5605.01/RAL9007","ROS0080.01",1800,"FP-16.01/RAL9007","16-FP.01",800,"P431/RAL9007"]
[null,null,null,null,null,null,null,null,null,null,null,null,null,null,null,null,null,null,null,190,"RAL8012","Белый","RAL8012",1,1,2000,2200,4400,3225703,null,null,null,null,null,null,null,null,null,null,null,null,null,null,null,null,null,null,null,null,null,null,null,null,null,null,null,null,null,null,null,null,null,null,null,null,null,null,null,null,null,null,null,null,null,null,null,null,null,2,191,"RAL9010",1800,"ROS5605.01/RAL9010","ROS0080.07",1800,"FP-16.01/RAL9010","16-FP.07",800,"P431/RAL9010"]
[null,null,null,null,null,null,null,null,null,null,null,null,null,null,null,null,null,null,null,191,"RAL8014","Белый","RAL8014",1,1,2000,2200,4400,2963785,null,null,null,null,null,null,null,null,null,null,null,null,null,null,null,null,null,null,null,null,null,null,null,null,null,null,null,null,null,null,null,null,null,null,null,null,null,null,null,null,null,null,null,null,null,null,null,null,null,0,192,"RAL9011",1800,"ROS5605.01/RAL9011","ROS0080.05",1800,"FP-16.01/RAL9011","16-FP.05",800,"P431/RAL9011"]
[null,null,null,null,null,null,null,null,null,null,null,null,null,null,null,null,null,null,null,192,"RAL8015","Белый","RAL8015",1,1,2000,2200,4400,3422819,null,null,null,null,null,null,null,null,null,null,null,null,null,null,null,null,null,null,null,null,null,null,null,null,null,null,null,null,null,null,null,null,null,null,null,null,null,null,null,null,null,null,null,null,null,null,null,null,null,1,193,"RAL9016",1800,"ROS5605.01/RAL9016","ROS0080.07",1800,"FP-16.01/RAL9016","16-FP.07",800,"P431/RAL9016"]
[null,null,null,null,null,null,null,null,null,null,null,null,null,null,null,null,null,null,null,193,"RAL8016","Белый","RAL8016",1,1,2000,2200,4400,2502476,null,null,null,null,null,null,null,null,null,null,null,null,null,null,null,null,null,null,null,null,null,null,null,null,null,null,null,null,null,null,null,null,null,null,null,null,null,null,null,null,null,null,null,null,null,null,null,null,null,0,194,"RAL9017",1800,"ROS5605.01/RAL9017","ROS0080.05",1800,"FP-16.01/RAL9017","16-FP.05",800,"P431/RAL9017"]
[null,null,null,null,null,null,null,null,null,null,null,null,null,null,null,null,null,null,null,194,"RAL8017","Белый","RAL8017",1,1,2000,2200,4400,2961988,null,null,null,null,null,null,null,null,null,null,null,null,null,null,null,null,null,null,null,null,null,null,null,null,null,null,null,null,null,null,null,null,null,null,null,null,null,null,null,null,null,null,null,null,null,null,null,null,null,1,195,"RAL9018",1800,"ROS5605.01/RAL9018","ROS0080.01",1800,"FP-16.01/RAL9018","16-FP.01",800,"P431/RAL9018"]
[null,null,null,null,null,null,null,null,null,null,null,null,null,null,null,null,null,null,null,195,"RAL8019","Белый","RAL8019",1,1,2000,2200,4400,3815999,null,null,null,null,null,null,null,null,null,null,null,null,null,null,null,null,null,null,null,null,null,null,null,null,null,null,null,null,null,null,null,null,null,null,null,null,null,null,null,null,null,null,null,null,null,null,null,null,null,2]
[null,null,null,null,null,null,null,null,null,null,null,null,null,null,null,null,null,null,null,196,"RAL8022","Белый","RAL8022",1,1,2000,2200,4400,2105121]
[null,null,null,null,null,null,null,null,null,null,null,null,null,null,null,null,null,null,null,197,"RAL8023","Белый","RAL8023",1,1,2000,2200,4400,3104422]
[null,null,null,null,null,null,null,null,null,null,null,null,null,null,null,null,null,null,null,198,"RAL8024","Белый","RAL8024",1,1,2000,2200,4400,3954041]
[null,null,null,null,null,null,null,null,null,null,null,null,null,null,null,null,null,null,null,199,"RAL8025","Белый","RAL8025",1,1,2000,2200,4400,4807797]
[null,null,null,null,null,null,null,null,null,null,null,null,null,null,null,null,null,null,null,200,"RAL8028","Белый","RAL8028",1,1,2000,2200,4400,2833230]
[null,null,null,null,null,null,null,null,null,null,null,null,null,null,null,null,null,null,null,201,"RAL9001","Белый","RAL9001",0,1,2000,2200,4400,14478319]
[null,null,null,null,null,null,null,null,null,null,null,null,null,null,null,null,null,null,null,202,"RAL9002","Белый","RAL9002",0,1,2000,2200,4400,13950685]
[null,null,null,null,null,null,null,null,null,null,null,null,null,null,null,null,null,null,null,203,"RAL9003","Белый","RAL9003",0,1,2000,2200,4400,16054516]
[null,null,null,null,null,null,null,null,null,null,null,null,null,null,null,null,null,null,null,204,"RAL9004","Белый","RAL9004",1,1,2000,2200,4400,3289134]
[null,null,null,null,null,null,null,null,null,null,null,null,null,null,null,null,null,null,null,205,"RAL9005","Белый","RAL9005",1,1,2000,2200,4400,854538]
[null,null,null,null,null,null,null,null,null,null,null,null,null,null,null,null,null,null,null,206,"RAL9006","Белый","RAL9006",2,1,2000,2200,4400,10922149]
[null,null,null,null,null,null,null,null,null,null,null,null,null,null,null,null,null,null,null,207,"RAL9007","Белый","RAL9007",2,1,2000,2200,4400,9211791]
[null,null,null,null,null,null,null,null,null,null,null,null,null,null,null,null,null,null,null,208,"RAL9010","Белый","RAL9010",0,1,2000,2200,4400,15727095]
[null,null,null,null,null,null,null,null,null,null,null,null,null,null,null,null,null,null,null,209,"RAL9011","Белый","RAL9011",1,1,2000,2200,4400,3091497]
[null,null,null,null,null,null,null,null,null,null,null,null,null,null,null,null,null,null,null,210,"RAL9016","Белый","RAL9016",0,1,2000,2200,4400,16120823]
[null,null,null,null,null,null,null,null,null,null,null,null,null,null,null,null,null,null,null,211,"RAL9017","Белый","RAL9017",1,1,2000,2200,4400,3091754]
[null,null,null,null,null,null,null,null,null,null,null,null,null,null,null,null,null,null,null,212,"RAL9018","Белый","RAL9018",2,1,2000,2200,4400,13489103]
[null,null,null,null,null,null,null,null,null,null,null,null,null,null,null,null,null,null,null,213,"Тик х2","Тик х2","Тик х2",1,0,2000,2200,4400,858239]

{"sheet":"КЛИЕНТЫ","index":2,"n_rows":96,"n_cols":8,"rows_kept":96,"cut":false,"hidden":true,"merged":[]}
["Наименование","Телефон","E-mail","Адрес","Скидка","СкидкаМ","Реквизиты","Договор"]
[]
[]
[]
[]
[]
[]
[]
[]
[]
[]
[]
[]
[]
[]
[]
[]
[]
[]
[]
[]
[]
[]
[]
[]
[]
[]
[]
[]
[]
[]
[]
[]
[]
[]
[]
[]
[]
[]
[]
[]
[]
[]
[]
[]
[]
[]
[]
[]
[]
[]
[]
[]
[]
[]
[]
[]
[]
[]
[]
[]
[]
[]
[]
[]
[]
[]
[]
[]
[]
[]
[]
[]
[]
[]
[]
[]
[]
[]
[]
[]
[]
[]
[]
[]
[]
[]
[]
[]
[]
[]
[]
[]
[]
[]
["Я","1258",null,"ВАП",0,null,"Я, Тел. 1258, ВАП."]

{"sheet":"ЧЕРТЕЖ","index":3,"n_rows":4,"n_cols":6,"rows_kept":4,"cut":false,"hidden":true,"merged":[[0,0,0,2]]}
[null,null,null,null,null,"       "]
["Спецификация к счету-договору №"]
["Заказчик"]
["Изделие №"]

{"sheet":"СЧЕТ-ДОГОВОР","index":4,"n_rows":42,"n_cols":6,"rows_kept":42,"cut":false,"hidden":true,"merged":[[0,0,0,5],[1,0,1,5],[33,0,33,5],[38,0,38,5],[35,0,35,5],[6,3,6,5],[19,2,19,5],[20,2,20,5],[12,0,12,1],[13,0,13,4],[2,2,2,3],[2,0,2,1],[3,0,3,5],[6,0,6,1],[5,0,5,5],[11,0,11,1],[40,0,40,5],[27,0,27,5],[28,0,28,5],[29,0,29,5],[32,0,32,5],[26,0,26,5],[4,0,4,5],[14,0,14,5],[15,0,15,5],[22,0,22,5],[23,0,23,5],[16,0,16,4],[17,0,17,4],[18,0,18,1],[24,0,24,5],[25,0,25,5]]}
[" "]
["    "]
["СЧЕТ-ДОГОВОР №",null,null,null,"от"]
["На изготовление деревянных окон и доборных элементов."]
["Заказчик:"]
["Адрес доставки:"]
["Телефон:",null,"e-mail:"]
["СЧЕТ:"]
["№","Наименование","Ед. изм.","Кол-во","Цена","Стоимость (руб.)"]
[1,null,null,null,null,{"$f":"ROUND(D10*E10,0)","v":0}]
[]
["ИТОГО",null,null,null,null,{"$f":"SUM(F10:F11)","v":0}]
["Скидка",null,null,"%",null,{"$f":"F12*C13/100","v":0}]
["Всего стоимость заказа",null,null,null,null,{"$f":"F12-F13","v":0}]
[]
["Сумма прописью"]
["Предоплата"]
["К доплате",null,null,null,null,{"$f":"F14-F17","v":0}]
["Срок изготовления (ориентир.)"]
[]
[]
["ДОГОВОР:"]
["1. Исполнитель обязуется изготовить изделия согласно Спецификации, являющейся неотъемлемым приложением к данному Счет-договору. "]
["2. Заказчик оплачивает Исполнителю предоплату в размере 70 % от суммы, указанной в Счете, в момент подписания Договора. Оставшиеся 30% Заказчик оплачивает не позднее 3-х дней с момента изготовления изделий. Заказчик получает изделия только после 100% оплаты;"]
["3. Ориентировочный срок изготовления отражается в Счете. Фактический срок изготовления зависит от загруженности предприятия и сложности заказа, но не более 45 рабочих дней с момента согласования всех условий заказа, подписания Заказчиком Спецификации и получения предоплаты Исполнителем; "]
["4. О готовности изделий Исполнитель информирует Заказчика посредством телефонного звонка, смс-сообщением или сообщением по электронной почте. "]
["5. В случае невозможности получения Заказчиком изделий в течение 3-х дней после их изготовления, заказ поступает на ответственное хранение на склад Исполнителя. Затраты Исполнителя по хранению изделий Заказчик оплачивает из расчета 1(одного)% от стоимости изделий за каждые сутки хранения;"]
["6. Заказчик обязуется совершить все необходимые действия по приемке Изделий в момент их получения. Право собственности на Изделия переходит к Заказчику с момента подписания Акта приема-передачи. В случае обнаружения дефектов в Изделиях, Заказчик обязан вернуть бракованное Изделие Исполнителю и указать количество принятых изделий прописью в графе \"Принято\". Претензии по качеству Изделий, которые могли быть обнаружены путем визуального осмотра после подписания Акта приема-передачи не принимаются. В случае отсутствия Заказчика или его законного представителя в месте получения Изделий или уклонения Заказчиком от приемки и подписания Акта приема-передачи, все изделия подлежат возврату на склад Исполнителя, при этом Заказчик обязан компенсировать Исполнителю расходы на транспортировку и хранение Изделий."]
["7. На все изделия распространяется гарантия 12 месяцев при условии соблюдения Заказчиком технологии монтажа и температурно-влажностных условий в помещении, в котором установлены изделия, в соответствии со СНиП и ГОСт,  отсутствия механических повреждений, следов применения чрезмерной силы, нарушения лакокрасочного покрытия и т.д.; Гарантия Исполнителя не распостраняется на подоконники и панели из дерева, шириной более 250 мм, и оконные и балконные блоки установленные с открыванием наружу."]
["8. В своих действиях стороны руководствуются действующим законодательством РФ;"]
[]
[]
["Реквизиты Заказчика:"]
[]
[]
["Заказчик _________________________________/____________________________________/"]
[]
["Реквизиты Исполнителя:"]
["     Тел.    ИНН    КПП    р/с    в банке    к/с    БИК  "]
[]
["Исполнитель   ____________________________/____________________________________/"]
[null,null,"м.п."]

{"sheet":"ПП","index":5,"n_rows":26,"n_cols":6,"rows_kept":26,"cut":false,"hidden":true,"merged":[[17,0,17,5],[19,0,19,5],[21,0,21,5],[22,0,22,5],[24,0,24,5],[11,0,11,5],[12,0,12,5],[13,0,13,5],[16,0,16,5],[6,3,6,5],[6,0,6,1],[5,0,5,5],[4,0,4,5],[0,0,0,5],[1,0,1,5],[2,0,2,1],[2,4,2,5],[3,0,3,5]]}
[" "]
["    "]
["Акт приема-передачи №",null,null,"от",".      .202___"]
["к договору на изготовление деревянных окон и доборных элементов."]
["Заказчик:"]
["Адрес доставки:"]
["Телефон:",null,"e-mail"]
[]
["№","Наименование","Ед. изм.","Кол-во","Принято","Примечание"]
[1]
[]
["1. Настоящий Акт составлен в том, что Исполнитель поставил, а Заказчик принял вышеперечисленные материалы в полном объеме; в случае обнаружения дефектов, Заказчик обязан вернуть бракованное изделие изготовителю и указать количество принятых изделий прописью в графе \"Принято\"."]
["2. Заказчик не имеет претензий к Исполнителю по качеству и комплектности;"]
["3. В своих действиях стороны руководствуются действующим законодательством РФ;"]
[]
[]
["Реквизиты Заказчика:"]
[]
[]
["Заказчик _________________________________/____________________________________/"]
[]
["Реквизиты Исполнителя:"]
["     Тел.    ИНН    КПП    р/с    в банке    к/с    БИК  "]
[]
["Исполнитель   ____________________________/____________________________________/"]
[null,null,"м.п."]

{"sheet":"МОНТАЖ","index":6,"n_rows":39,"n_cols":6,"rows_kept":39,"cut":false,"hidden":true,"merged":[[12,0,12,1],[13,0,13,4],[37,0,37,5],[4,0,4,5],[5,0,5,5],[6,0,6,1],[7,0,7,5],[11,0,11,4],[14,0,14,5],[15,0,15,5],[16,0,16,4],[17,0,17,4],[18,0,18,1],[21,0,21,5],[22,0,22,5],[23,0,23,5],[0,0,0,5],[1,0,1,5],[2,0,2,1],[3,0,3,5],[2,2,2,3],[30,0,30,5],[35,0,35,5],[32,0,32,5],[24,0,24,5],[25,0,25,5],[26,0,26,5],[27,0,27,5],[29,0,29,5]]}
[" "]
["    "]
["СЧЕТ-ДОГОВОР №",null,null,null,"от"]
["На доставку и монтаж деревянных окон и доборных элементов."]
["Заказчик:"]
["Адрес:"]
["Телефон:",null,"e-mail"]
["СЧЕТ:"]
["№","Наименование","Ед. изм.","Кол-во","Цена","Стоимость"]
[1,null,null,null,null,{"$f":"ROUND(D10*E10,0)","v":0}]
[]
["ИТОГО",null,null,null,null,{"$f":"SUM(F10:F11)","v":0}]
["Скидка",null,null,"%",null,{"$f":"F12*C13/100","v":0}]
["Всего стоимость заказа",null,null,null,null,{"$f":"F12-F13","v":0}]
[]
["Сумма прописью"]
["Предоплата"]
["К оплате",null,null,null,null,{"$f":"F14-F17","v":0}]
["Получена предоплата в размере:"]
[]
["ДОГОВОР:"]
["1. Исполнитель обязуется произвести работы оговоренные вышеуказанным перечнем работ. Исполнитель обязуется произвести доставку и приступить к монтажу изделий не позднее пяти рабочих дней с даты подписания Акта приема-передачи к Счет-договору на изготовление изделий. Продолжительность монтажа определяется исходя из сложности заказа и технологии монтажа;"]
["2. Заказчик должен обеспечить беспрепятственный проезд а/т Исполнителя к месту разгрузки, проход к месту монтажа, а также место для хранения окон, инструментов и материалов Исполнителя. Заказчик должен предварительно позаботиться о защите мебели, напольных покрытий и т.п. от пыли и грязи;"]
["3. Заказчик оплачивает Исполнителю предоплату в размере 70 % от общей стоимости заказа в момент подписания Договора. Оставшиеся 30% Заказчик оплачивает сразу после выполнения работ Исполнителем;"]
["4. Заказчик обязуется совершить все необходимые действия по приемке выполненных работ в момент их завершения. В случае не принятия части выполненных работ, Заказчик обязан указать количество принятых работ прописью в графе \"Принято\". Претензии по качеству выполненных работ, которые могли быть обнаружены путем визуального осмотра, после подписания Акта выполненных работ не принимаются. В случае отсутствия Заказчика или его законного представителя в месте выполнения работ в момент их завершения или необоснованного уклонения Заказчиком от приемки и подписания Акта выполненных работ, Исполнитель вправе подписать Акт выполненных работ в одностороннем порядке."]
["5. На все изделия распространяется гарантия 60 месяцев при условии соблюдения Заказчиком температурно-влажностных условий в помещении, в котором установлены изделия, в соответствии со СНиП и ГОСт,  отсутствия механических повреждений, следов применения чрезмерной силы, нарушения лакокрасочного покрытия и т.д.; Гарантия Исполнителя не распостраняется на подоконники и панели из дерева, шириной более 250 мм, и оконные и балконные блоки установленные с открыванием наружу."]
["6. Каждые шесть месяцев эксплуатации изделиям необходима регулировка, а при необходимости смазка подвижных деталей фурнитуры;"]
["7. В своих действиях стороны руководствуются действующим законодательством РФ;"]
[]
["Реквизиты Заказчика:"]
[]
[]
["Заказчик _________________________________/____________________________________/"]
[]
["Реквизиты Исполнителя:"]
["     Тел.    ИНН    КПП    р/с    в банке    к/с    БИК  "]
[]
["Исполнитель   ____________________________/____________________________________/"]
[null,null,"м.п."]

{"sheet":"ВР","index":7,"n_rows":28,"n_cols":5,"rows_kept":28,"cut":false,"hidden":true,"merged":[[13,0,13,5],[14,0,14,5],[15,0,15,5],[26,0,26,5],[4,0,4,5],[5,0,5,5],[6,0,6,1],[18,0,18,5],[19,0,19,5],[21,0,21,5],[23,0,23,5],[24,0,24,5],[7,0,7,5],[12,0,12,5],[0,0,0,5],[1,0,1,5],[2,0,2,1],[3,0,3,5],[2,4,2,5]]}
[" "]
["    "]
["Акт выполненых работ №",null," ","от","___.___202__г."]
["к договору на доставку и монтаж деревянных окон и доборных элементов."]
["Заказчик:"]
["Адрес:"]
["Телефон:",null,"e-mail"]
[]
["№","Наименование","Ед. изм.","Кол-во","Принято"]
[1]
[]
[]
["1. Настоящий Акт составлен в том, что Исполнитель выполнил, а Заказчик принял вышеперечисленные работы в полном объеме;"]
["2. Заказчик не имеет претензий к Исполнителю по качеству работ;"]
["3. Гарантия на работы Исполнителя составляет 36 месяцев с момента подписания настоящего Акта;"]
["4. В своих действиях стороны руководствуются действующим законодательством РФ;"]
[]
[]
["Реквизиты Заказчика:"]
[]
[]
["Заказчик _________________________________/____________________________________/"]
[]
["Реквизиты Исполнителя:"]
["     Тел.    ИНН    КПП    р/с    в банке    к/с    БИК  "]
[]
["Исполнитель   ____________________________/____________________________________/"]
[null,null,"м.п."]

{"sheet":"ЗАЯВКА","index":8,"n_rows":35,"n_cols":9,"rows_kept":35,"cut":false,"hidden":true,"merged":[[0,2,0,9],[1,2,1,9],[2,1,3,4],[2,5,3,5],[2,7,3,7],[2,8,3,9],[10,2,10,4],[4,1,4,9],[5,2,5,9],[6,2,6,9],[7,2,7,9],[8,2,8,5],[8,6,8,9],[20,3,20,9],[34,1,34,9],[13,8,13,9],[13,1,13,6],[16,3,16,9],[17,3,17,9],[18,3,18,9],[19,3,19,9],[24,1,24,9]]}
[null,null," "]
[null,null,"    "]
[null,"Заявка к заказу №",null,null,null,null,null,"от",".      .201___"]
[]
[null,"на доставку деревянных окон и доборных элементов."]
[null,"Грузополучатель"]
[null,null,"ФИО"]
[null,"Адрес доставки"]
[null,"Телефон"]
[]
[null,"Дата доставки "]
[]
[null,"Прошу доставить заказ по вышеуказанному адресу и передать его "]
[null,null,null,null,null,null,null,"паспорт №"]
[null,"доверяю вышеуказанному лицу осуществление приемки заказа и подписание Акта приема-передачи от моего имени."]
[]
[null,"Примечания"]
[]
[]
[]
[]
[]
[]
[]
[null,"Заказчик   ____________________/____________________________________/ Телефон _________________________"]
[null,null,null,null,null,null,"м.п."]
[]
[]
[]
[]
[]
[null,"Заказ сдал       _____________________________/________________________________________________/"]
[]
[]
[null,"Заказ принял   ____________________________/_________________________________________________/"]

{"sheet":"ПРИХОДНИК","index":9,"n_rows":35,"n_cols":108,"rows_kept":35,"cut":false,"hidden":true,"merged":[[34,33,34,57],[33,18,33,29],[33,33,33,57],[27,10,27,64],[32,18,32,29],[32,33,32,57],[34,18,34,29],[31,18,31,29],[31,33,31,57],[29,11,29,64],[24,7,24,64],[24,84,24,113],[23,0,23,64],[26,0,26,48],[26,82,26,96],[26,49,26,53],[25,7,25,64],[26,54,26,58],[31,100,31,113],[32,90,32,98],[31,90,31,98],[23,97,23,101],[23,74,23,96],[23,102,23,106],[26,76,26,79],[2,74,2,113],[3,74,3,113],[5,74,5,113],[0,66,34,70],[12,74,12,113],[33,91,33,104],[34,91,34,104],[34,81,34,89],[19,80,19,96],[33,81,33,89],[9,84,9,98],[13,83,13,113],[15,74,15,113],[32,100,32,113],[28,77,29,89],[26,98,26,103],[12,53,12,64],[9,100,9,105],[9,78,9,81],[16,74,16,113],[7,50,8,64],[14,59,17,64],[11,84,11,113],[10,53,11,64],[14,74,14,113],[8,101,8,113],[14,49,17,58],[4,50,4,64],[5,50,5,64],[6,50,6,64],[7,0,7,38],[14,0,17,5],[12,42,12,52],[14,40,17,48],[10,42,11,52],[14,6,14,39],[15,10,17,18],[6,0,6,38],[8,0,8,49],[9,0,9,49],[15,6,17,9],[15,19,17,28],[15,29,17,39],[18,6,18,9],[18,0,18,5],[20,10,20,64],[21,74,21,113],[18,80,18,96],[18,40,18,48],[20,74,20,113],[18,102,18,106],[18,59,18,64],[22,10,22,64],[22,74,22,113],[18,49,18,58],[18,10,18,18],[18,19,18,28],[18,29,18,39]]}
[null,null,null,null,null,null,null,null,null,null,null,null,null,null,null,null,null,null,null,null,null,null,null,null,null,null,null,null,null,null,null,null,null,"Унифицированная форма № КО-1",null,null,null,null,null,null,null,null,null,null,null,null,null,null,null,null,null,null,null,null,null,null,null,null,null,null,null,null,null,null,null,null,"Л    и    н     и     я              о     т     р     е     з     а"]
[null,null,null,null,null,null,null,null,null,null,null,null,null,null,null,null,null,null,null,null,null,null,null,null,null,null,null,null,null,null,null,null,null,"Утверждена постановлением Госкомстата"]
[null,null,null,null,null,null,null,null,null,null,null,null,null,null,null,null,null,null,null,null,null,null,null,null,null,null,null,null,null,null,null,null,null,"России от 18.08.98 № 88",null,null,null,null,null,null,null,null,null,null,null,null,null,null,null,null,null,null,null,null,null,null,null,null,null,null,null,null,null,null,null,null,null,null,null,null,null,null,null,null," "]
[null,null,null,null,null,null,null,null,null,null,null,null,null,null,null,null,null,null,null,null,null,null,null,null,null,null,null,null,null,null,null,null,null,null,null,null,null,null,null,null,null,null,null,null,null,null,null,null,null,null,null,null,null,null,null,null,null,null,null,null,null,null,null,null,null,null,null,null,null,null,null,null,null,null,"(организация)"]
[null,null,null,null,null,null,null,null,null,null,null,null,null,null,null,null,null,null,null,null,null,null,null,null,null,null,null,null,null,null,null,null,null,null,null,null,null,null,null,null,null,null,null,null,null,null,null,null,null,null,"Код"]
[null,null,null,null,null,null,null,null,null,null,null,null,null,null,null,null,null,null,null,null,null,null,null,null,null,null,null,null,null,null,null,null,null,null,null,null,null,null,null,null,null,null,null,null,null,null,null,null,"Форма по ОКУД",null,"0310001",null,null,null,null,null,null,null,null,null,null,null,null,null,null,null,null,null,null,null,null,null,null,null,"КВИТАНЦИЯ"]
[{"$f":"BW3","v":" "},null,null,null,null,null,null,null,null,null,null,null,null,null,null,null,null,null,null,null,null,null,null,null,null,null,null,null,null,null,null,null,null,null,null,null,null,null,null,null,null,null,null,null,null,null,null,null,"по ОКПО"]
["(организация)"]
[null,null,null,null,null,null,null,null,null,null,null,null,null,null,null,null,null,null,null,null,null,null,null,null,null,null,null,null,null,null,null,null,null,null,null,null,null,null,null,null,null,null,null,null,null,null,null,null,null,null,null,null,null,null,null,null,null,null,null,null,null,null,null,null,null,null,null,null,null,null,null,null,null,null,"к приходному кассовому ордеру №"]
["(структурное подразделение)",null,null,null,null,null,null,null,null,null,null,null,null,null,null,null,null,null,null,null,null,null,null,null,null,null,null,null,null,null,null,null,null,null,null,null,null,null,null,null,null,null,null,null,null,null,null,null,null,null,null,null,null,null,null,null,null,null,null,null,null,null,null,null,null,null,null,null,null,null,null,null,null,null,"от  \"",null,null,null,{"$f":"DAY(TODAY())","v":15},null,null,null,"\"",null,{"$f":"TODAY()","v":"2026-01-15"},null,null,null,null,null,null,null,null,null,null,null,null,null,null,null,{"$f":"YEAR(TODAY())","v":2026},null,null,null,null,null," г."]
[null,null,null,null,null,null,null,null,null,null,null,null,null,null,null,null,null,null,null,null,null,null,null,null,null,null,null,null,null,null,null,null,null,null,null,null,null,null,null,null,null,null,"Номер документа",null,null,null,null,null,null,null,null,null,null,"Дата составления"]
[null,null,null,null,null,null,null,null,null,null,null,null,null,null,null,null,null,null,null,null,null,null,null,null,null,null,null,null,null,null,null,null,null,null,null,null,null,null,null,null,null,null,null,null,null,null,null,null,null,null,null,null,null,null,null,null,null,null,null,null,null,null,null,null,null,null,null,null,null,null,null,null,null,null,"Принято от"]
[null,null,null,null,null,null,null,null,null,null,null,null,null,null,null,null,null,null,null,null,null,null,null,null,null,null,null,null,null,null,null,null,null,null,null,null,null,null,null,null,"ПРИХОДНЫЙ КАССОВЫЙ ОРДЕР",null,{"$f":"CX9","v":0},null,null,null,null,null,null,null,null,null,null,{"$f":"TODAY()","v":"2026-01-15"}]
[null,null,null,null,null,null,null,null,null,null,null,null,null,null,null,null,null,null,null,null,null,null,null,null,null,null,null,null,null,null,null,null,null,null,null,null,null,null,null,null,null,null,null,null,null,null,null,null,null,null,null,null,null,null,null,null,null,null,null,null,null,null,null,null,null,null,null,null,null,null,null,null,null,null,"Основание:"]
["Дебет",null,null,null,null,null,"Кредит",null,null,null,null,null,null,null,null,null,null,null,null,null,null,null,null,null,null,null,null,null,null,null,null,null,null,null,null,null,null,null,null,null,"Сумма,\nруб. коп.",null,null,null,null,null,null,null,null,"Код целевого назначения"]
[null,null,null,null,null,null,null,null,null,null,"код струк-турного под-разделения",null,null,null,null,null,null,null,null,"корреспон-дирующий счет, субсчет",null,null,null,null,null,null,null,null,null,"код аналити-ческого учета"]
[]
[]
[null,null,null,null,null,null,null,null,null,null,null,null,null,null,null,null,null,null,null,null,null,null,null,null,null,null,null,null,null,null,null,null,null,null,null,null,null,null,null,null,{"$f":"CC19&\"-\"&CY19","v":"-00"},null,null,null,null,null,null,null,null,null,null,null,null,null,null,null,null,null,null,null,null,null,null,null,null,null,null,null,null,null,null,null,null,null,"Сумма",null,null,null,null,null,null,null,null,null,null,null,null,null,null,null,null,null,null,null,null,null,null,null,"руб.",null,null,null,"00",null,null,null,null," коп."]
[null,null,null,null,null,null,null,null,null,null,null,null,null,null,null,null,null,null,null,null,null,null,null,null,null,null,null,null,null,null,null,null,null,null,null,null,null,null,null,null,null,null,null,null,null,null,null,null,null,null,null,null,null,null,null,null,null,null,null,null,null,null,null,null,null,null,null,null,null,null,null,null,null,null,null,null,null,null,null,null,"(цифрами)"]
["Принято от",null,null,null,null,null,null,null,null,null,{"$f":"CG12","v":0}]
[null,null,null,null,null,null,null,null,null,null,null,null,null,null,null,null,null,null,null,null,null,null,null,null,null,null,null,null,null,null,null,null,null,null,null,null,null,null,null,null,null,null,null,null,null,null,null,null,null,null,null,null,null,null,null,null,null,null,null,null,null,null,null,null,null,null,null,null,null,null,null,null,null,null,"(прописью)"]
["Основание:",null,null,null,null,null,null,null,null,null,{"$f":"CF14","v":0}]
[{"$f":"BW15&BW16","v":""},null,null,null,null,null,null,null,null,null,null,null,null,null,null,null,null,null,null,null,null,null,null,null,null,null,null,null,null,null,null,null,null,null,null,null,null,null,null,null,null,null,null,null,null,null,null,null,null,null,null,null,null,null,null,null,null,null,null,null,null,null,null,null,null,null,null,null,null,null,null,null,null,null,null,null,null,null,null,null,null,null,null,null,null,null,null,null,null,null,null,null,null,null,null,null,null,"руб.",null,null,null,null,"00",null,null,null,null," коп."]
["Сумма",null,null,null,null,null,null,{"$f":"BW21","v":0},null,null,null,null,null,null,null,null,null,null,null,null,null,null,null,null,null,null,null,null,null,null,null,null,null,null,null,null,null,null,null,null,null,null,null,null,null,null,null,null,null,null,null,null,null,null,null,null,null,null,null,null,null,null,null,null,null,null,null,null,null,null,null,null,null,null,"В том числе",null,null,null,null,null,null,null,null,null,"Без НДС"]
[null,null,null,null,null,null,null,"(прописью)"]
[null,null,null,null,null,null,null,null,null,null,null,null,null,null,null,null,null,null,null,null,null,null,null,null,null,null,null,null,null,null,null,null,null,null,null,null,null,null,null,null,null,null,null,null,null,null,null,null,null,"руб.",null,null,null,null,{"$f":"CY24","v":"00"},null,null,null,null," коп.",null,null,null,null,null,null,null,null,null,null,null,null,null,null,null,"\"",{"$f":"DAY(TODAY())","v":15},null,null,null,"\"",null,{"$f":"TODAY()","v":"2026-01-15"},null,null,null,null,null,null,null,null,null,null,null,null,null,null,null,{"$f":"YEAR(TODAY())","v":2026},null,null,null,null,null," г."]
["В том числе",null,null,null,null,null,null,null,null,null,{"$f":"CG25","v":"Без НДС"}]
[null,null,null,null,null,null,null,null,null,null,null,null,null,null,null,null,null,null,null,null,null,null,null,null,null,null,null,null,null,null,null,null,null,null,null,null,null,null,null,null,null,null,null,null,null,null,null,null,null,null,null,null,null,null,null,null,null,null,null,null,null,null,null,null,null,null,null,null,null,null,null,null,null,null,null,null,null,"М.П. (штампа)"]
["Приложение"]
[]
["Главный бухгалтер",null,null,null,null,null,null,null,null,null,null,null,null,null,null,null,null,null,null,null,null,null,null,null,null,null,null,null,null,null,null,null,null,{"$f":"CW32","v":0},null,null,null,null,null,null,null,null,null,null,null,null,null,null,null,null,null,null,null,null,null,null,null,null,null,null,null,null,null,null,null,null,null,null,null,null,null,null,null,null,"Главный бухгалтер"]
[null,null,null,null,null,null,null,null,null,null,null,null,null,null,null,null,null,null,"(подпись)",null,null,null,null,null,null,null,null,null,null,null,null,null,null,"(расшифровка подписи)",null,null,null,null,null,null,null,null,null,null,null,null,null,null,null,null,null,null,null,null,null,null,null,null,null,null,null,null,null,null,null,null,null,null,null,null,null,null,null,null,null,null,null,null,null,null,null,null,null,null,null,null,null,null,null,null,"(подпись)",null,null,null,null,null,null,null,null,null,"(расшифровка подписи)"]
["Получил кассир",null,null,null,null,null,null,null,null,null,null,null,null,null,null,null,null,null,null,null,null,null,null,null,null,null,null,null,null,null,null,null,null,{"$f":"CN34","v":0},null,null,null,null,null,null,null,null,null,null,null,null,null,null,null,null,null,null,null,null,null,null,null,null,null,null,null,null,null,null,null,null,null,null,null,null,null,null,null,null,"Кассир"]
[null,null,null,null,null,null,null,null,null,null,null,null,null,null,null,null,null,null,"(подпись)",null,null,null,null,null,null,null,null,null,null,null,null,null,null,"(расшифровка подписи)",null,null,null,null,null,null,null,null,null,null,null,null,null,null,null,null,null,null,null,null,null,null,null,null,null,null,null,null,null,null,null,null,null,null,null,null,null,null,null,null,null,null,null,null,null,null,null,"(подпись)",null,null,null,null,null,null,null,null,null,"(расшифровка подписи)"]

{"sheet":"СЧЕТ","index":10,"n_rows":30,"n_cols":7,"rows_kept":30,"cut":false,"hidden":true,"merged":[[0,1,0,6],[2,1,2,6],[24,1,24,6],[5,1,5,3],[6,1,6,3],[27,3,27,5],[29,3,29,5],[25,1,25,6],[11,4,11,6],[7,5,7,6],[8,5,8,6],[9,5,9,6],[7,1,7,3],[8,1,8,3],[14,1,14,6],[15,1,15,6]]}
[null," "]
[]
[null,"    "]
[]
[null,"Образец заполнения платежного поручения"]
[null,"ИНН                       КПП   "]
[null,"Получатель"]
[null," ",null,null,"Сч. №"," "]
[null,"Банк получателя",null,null,"БИК"," "]
[null," ",null,null,"Сч. №"," "]
[]
[null,null,"СЧЕТ №  ","  от "]
[]
[]
[null,"Плательщик:        "]
[null,"Грузополучатель: "]
[]
[null,"№","Наименование\nтовара","Единица\nизме-\nрения","Коли-\nчество","Цена","Сумма"]
[null,1,null,null,null,null,{"$f":"ROUND(E19*F19,2)","v":0}]
[]
[null,null,null,null,null,"Итого:",{"$f":"ROUND(SUM(G19:G20),0)","v":0}]
[null,null,null,null,null,"Без НДС:","-----"]
[null,null,null,null,null,"Всего к оплате:",{"$f":"G21","v":0}]
[]
[null,"Всего наименований  на сумму      "]
[]
[]
[null,"Руководитель предприятия "]
[]
[null,"Главный бухгалтер         "]

{"sheet":"ТОРГ","index":11,"n_rows":59,"n_cols":57,"rows_kept":59,"cut":false,"hidden":true,"merged":[[13,7,13,44],[14,7,15,44],[15,49,17,56],[16,7,16,44],[17,7,18,44],[18,49,19,56],[19,7,19,44],[4,49,4,56],[5,49,5,56],[6,0,7,44],[6,49,7,56],[8,0,8,44],[8,49,11,56],[9,0,9,48],[10,0,10,35],[11,7,12,44],[12,49,14,56],[22,45,22,48],[22,49,22,56],[23,45,23,48],[23,49,23,56],[24,49,24,56],[26,31,26,35],[26,36,26,41],[20,7,20,44],[20,45,20,48],[20,49,20,56],[21,7,21,44],[21,45,21,48],[21,49,21,56],[29,37,31,39],[29,40,31,42],[29,53,31,56],[30,3,31,16],[30,17,31,19],[30,20,31,22],[30,23,31,25],[30,29,31,31],[27,0,27,30],[27,31,27,35],[27,36,27,41],[28,0,28,56],[29,0,31,2],[29,3,29,19],[29,20,29,25],[29,26,31,28],[29,29,29,33],[29,34,31,36],[30,32,31,33],[30,46,31,48],[30,49,31,52],[29,43,31,45],[29,46,29,52],[32,49,32,52],[32,53,32,56],[33,0,33,2],[33,3,33,16],[33,17,33,19],[33,20,33,22],[33,23,33,25],[33,26,33,28],[33,29,33,31],[33,32,33,33],[32,32,32,33],[32,34,32,36],[32,37,32,39],[32,40,32,42],[32,43,32,45],[32,46,32,48],[33,53,33,56],[32,0,32,2],[32,3,32,16],[32,17,32,19],[32,20,32,22],[32,23,32,25],[32,26,32,28],[32,29,32,31],[35,32,35,33],[35,34,35,36],[35,37,35,39],[35,40,35,42],[35,43,35,45],[35,46,35,48],[35,49,35,52],[35,53,35,56],[33,34,33,36],[33,37,33,39],[33,40,33,42],[33,43,33,45],[33,46,33,48],[33,49,33,52],[42,5,42,15],[42,25,42,40],[42,42,43,55],[43,5,43,15],[43,25,43,40],[45,14,45,26],[45,37,45,42],[45,44,45,55],[37,16,37,37],[38,5,38,37],[39,5,39,37],[40,25,40,40],[40,42,41,55],[41,25,41,40],[49,0,49,29],[49,32,49,55],[50,6,50,14],[50,16,50,21],[50,23,50,29],[50,35,50,42],[50,44,50,48],[50,50,50,55],[46,17,46,26],[46,34,46,55],[47,0,47,8],[47,9,47,29],[47,35,47,55],[48,10,48,29],[48,32,48,55],[52,35,52,42],[52,44,52,48],[52,50,52,55],[53,16,53,21],[53,23,53,29],[53,36,53,42],[53,44,53,48],[53,50,53,55],[51,7,51,14],[51,16,51,21],[51,23,51,29],[51,36,51,42],[51,44,51,48],[51,50,51,55],[57,7,57,14],[58,7,58,14],[54,7,54,14],[54,16,54,21],[54,23,54,29],[55,8,55,14],[55,16,55,21],[55,23,55,29],[52,16,52,21],[52,22,52,30]]}
[null,null,null,null,null,null,null,null,null,null,null,null,null,null,null,null,null,null,null,null,null,null,null,null,null,null,null,null,null,null,null,null,null,null,null,null,null,null,null,null,null,null,null,null,null,null,null,null,null,null,null,null,null,null,null,null,"Унифицированная форма № ТОРГ- 12 Утверждена постановлением Госкомстата России от 25.12.98 № 132"]
[]
[]
[]
[null,null,null,null,null,null,null,null,null,null,null,null,null,null,null,null,null,null,null,null,null,null,null,null,null,null,null,null,null,null,null,null,null,null,null,null,null,null,null,null,null,null,null,null,null,null,null,null,null,"Код"]
[null,null,null,null,null,null,null,null,null,null,null,null,null,null,null,null,null,null,null,null,null,null,null,null,null,null,null,null,null,null,null,null,null,null,null,null,null,null,null,null,null,null,null,null,null,null,null,null,"Форма по ОКУД","0330212 "]
["     Тел.    ИНН    КПП    р/с    в банке    к/с    БИК  "]
[null,null,null,null,null,null,null,null,null,null,null,null,null,null,null,null,null,null,null,null,null,null,null,null,null,null,null,null,null,null,null,null,null,null,null,null,null,null,null,null,null,null,null,null,null,null,null,null,"по ОКПО"]
["организация – грузоотправитель, адрес, номер телефона, факса, банковские реквизиты"]
[]
["структурное подразделение ",null,null,null,null,null,null,null,null,null,null,null,null,null,null,null,null,null,null,null,null,null,null,null,null,null,null,null,null,null,null,null,null,null,null,null,null,null,null,null,null,null,null,null,null,null,null,null,"Вид деятельности по ОКДП"]
[]
["Грузополучатель ",null,null,null,null,null,null,null,null,null,null,null,null,null,null,null,null,null,null,null,null,null,null,null,null,null,null,null,null,null,null,null,null,null,null,null,null,null,null,null,null,null,null,null,null,null,null,null,"по ОКПО"]
[null,null,null,null,null,null,null,"наименование организации, адрес, номер телефона, банковские реквизиты"]
[null,null,null,null,null,null,null,"     Тел.    ИНН    КПП    р/с    в банке    к/с    БИК  "]
["Поставщик",null,null,null,null,null,null,null,null,null,null,null,null,null,null,null,null,null,null,null,null,null,null,null,null,null,null,null,null,null,null,null,null,null,null,null,null,null,null,null,null,null,null,null,null,null,null,null,"по ОКПО"]
[null,null,null,null,null,null,null,"наименование организации, адрес, номер телефона, банковские реквизиты"]
[]
["Плательщик",null,null,null,null,null,null,null,null,null,null,null,null,null,null,null,null,null,null,null,null,null,null,null,null,null,null,null,null,null,null,null,null,null,null,null,null,null,null,null,null,null,null,null,null,null,null,null,"по ОКПО"]
[null,null,null,null,null,null,null,"наименование организации, адрес, номер телефона, банковские реквизиты"]
["Основание",null,null,null,null,null,null,"Договор",null,null,null,null,null,null,null,null,null,null,null,null,null,null,null,null,null,null,null,null,null,null,null,null,null,null,null,null,null,null,null,null,null,null,null,null,null,"номер"]
[null,null,null,null,null,null,null,"наименование документа (договор, контракт, заказ-наряд)",null,null,null,null,null,null,null,null,null,null,null,null,null,null,null,null,null,null,null,null,null,null,null,null,null,null,null,null,null,null,null,null,null,null,null,null,null,"дата"]
[null,null,null,null,null,null,null,null,null,null,null,null,null,null,null,null,null,null,null,null,null,null,null,null,null,null,null,null,null,null,null,null,null,null,null,null,null,null,null,null,null,null,null,null,null,"номер"]
[null,null,null,null,null,null,null,null,null,null,null,null,null,null,null,null,null,null,null,null,null,null,null,null,null,null,null,null,null,null,null,null,null,null,null,null,null,null,null,null,null,null,null,null,"Транспортная накладная ","дата"]
[null,null,null,null,null,null,null,null,null,null,null,null,null,null,null,null,null,null,null,null,null,null,null,null,null,null,null,null,null,null,null,null,null,null,null,null,null,null,null,null,null,null,null,null,null,null,null,null,"Вид операции"]
[]
[null,null,null,null,null,null,null,null,null,null,null,null,null,null,null,null,null,null,null,null,null,null,null,null,null,null,null,null,null,null,null,"Номер документа ",null,null,null,null,"Дата составления "]
["ТОВАРНАЯ НАКЛАДНАЯ ",null,null,null,null,null,null,null,null,null,null,null,null,null,null,null,null,null,null,null,null,null,null,null,null,null,null,null,null,null,null,null,null,null,null,null,{"$f":"TODAY()","v":"2026-01-15"}]
[]
["Номер по порядку",null,null,"Товар",null,null,null,null,null,null,null,null,null,null,null,null,null,null,null,null,"Единица измерения",null,null,null,null,null,"Вид упаковки",null,null,"Количество (масса)",null,null,null,null,"Масса брутто",null,null,"Коли-чество (масса нетто)",null,null,"Цена руб. коп",null,null,"Сумма без учета НДС, руб. коп",null,null,"НДС ",null,null,null,null,null,null,"Сумма с учетом НДС, руб. коп "]
[null,null,null,"наименование, характеристика, сорт, артикул товара",null,null,null,null,null,null,null,null,null,null,null,null,null,"код",null,null,"наиме-нование",null,null,"Код по ОКЕИ",null,null,null,null,null,"в одном месте",null,null,"мест, штук ",null,null,null,null,null,null,null,null,null,null,null,null,null,"ставка,% ",null,null,"сумма, руб. коп "]
[]
[1,null,null,2,null,null,null,null,null,null,null,null,null,null,null,null,null,3,null,null,4,null,null,5,null,null,6,null,null,7,null,null,8,null,9,null,null,10,null,null,11,null,null,12,null,null,13,null,null,14,null,null,null,15]
[1,null,null,null,null,null,null,null,null,null,null,null,null,null,null,null,null,null,null,null,"",null,null,null,null,null,null,null,null,null,null,null,null,null,null,null,null,null,null,null,null,null,null,{"$f":"ROUND(AL34*AO34,0)","v":0},null,null,"-----",null,null,"---------",null,null,null,{"$f":"AR34","v":0}]
[]
[null,null,null,null,null,null,null,null,null,null,null,null,null,null,null,null,null,null,null,null,null,null,null,null,null,null,null,null,null,null,null,"Всего по накладной:",null,null,null,null,null,null,null,null,"х",null,null,{"$f":"SUM(AR34:AR35)","v":0},null,null,"х",null,null,"---------",null,null,null,{"$f":"SUM(BB34:BB35)","v":0}]
[]
["Товарная накладная имеет приложение на",null,null,null,null,null,null,null,null,null,null,null,null,null,null,null,1,null,null,null,null,null,null,null,null,null,null,null,null,null,null,null,null,null,null,null,null,null,"листах"]
["и содержит       ",null,null,null,null,null,null,null,null,null,null,null,null,null,null,null,null,null,null,null,null,null,null,null,null,null,null,null,null,null,null,null,null,null,null,null,null,null,"порядковых номеров записей"]
[null,null,null,null,null,"прописью"]
[null,null,null,null,null,null,null,null,null,null,null,null,null,null,null,null,null,null,null,null,null,null,null,null,"Масса груза (нетто) "]
[null,null,null,null,null,null,null,null,null,null,null,null,null,null,null,null,null,null,null,null,null,null,null,null,null,"прописью"]
[null,null,null,null,"Всего мест ",null,null,null,null,null,null,null,null,null,null,null,null,null,null,null,null,null,null,null,"Масса груза (брутто) "]
[null,null,null,null,null,"прописью",null,null,null,null,null,null,null,null,null,null,null,null,null,null,null,null,null,null,null,"прописью"]
[]
["Приложение (паспорта, сертификаты, и т.п.) на ",null,null,null,null,null,null,null,null,null,null,null,null,null,null,null,null,null,null,null,null,null,null,null,null,null,null,"листах",null,null,null,"По доверенности №",null,null,null,null,null,null,null,null,null,null,null,"от"]
[null,null,null,null,null,null,null,null,null,null,null,null,null,null,null,null,null,"прописью",null,null,null,null,null,null,null,null,null,null,null,null,null,"выданной"]
["Всего отпущено на сумму ",null,null,null,null,null,null,null,null,null,null,null,null,null,null,null,null,null,null,null,null,null,null,null,null,null,null,null,null,null,null,null,null,null,null,"кем, кому (организация, должность, фамилия, и., о.)"]
[null,null,null,null,null,null,null,null,null,null,"прописью"]
[]
["Отпуск разрешил ",null,null,null,null,null,null,null,null,null,null,null,null,null,null,null,null,null,null,null,null,null,null,null,null,null,null,null,null,null,null,"Груз принял "]
[null,null,null,null,null,null,null,"должность  ",null,null,null,null,null,null,null,null,"подпись",null,null,null,null,null,null,"расшифровка подписи",null,null,null,null,null,null,null,null,null,null,null,null,"должность ",null,null,null,null,null,null,null,"подпись",null,null,null,null,null,"расшифровка подписи"]
["Главный (старший) бухгалтер     ",null,null,null,null,null,null,null,null,null,null,null,null,null,null,null,null,null,null,null,null,null,null,null,null,null,null,null,null,null,null,"Груз получил "]
[null,null,null,null,null,null,null,null,null,null,null,null,null,null,null,null,"подпись",null,null,null,null,null,null,"расшифровка подписи",null,null,null,null,null,null,null,"грузополучатель",null,null,null,null,"должность ",null,null,null,null,null,null,null,"подпись",null,null,null,null,null,"расшифровка подписи"]
["Отпуск груза произвел"]
[null,null,null,null,null,null,null,null,"должность ",null,null,null,null,null,null,null,"подпись",null,null,null,null,null,null,"расшифровка подписи"]
[]
[null,null,null,null,"М.П.",null,null,null,null,null,null,null,null,null,null,null,null,null,null,null,null,null,null,null,null,null,null,null,null,null,null,null,null,"М.П."]
[null,null,null,null,null,null,null,"дата"]

{"sheet":"УПД","index":12,"n_rows":57,"n_cols":57,"rows_kept":57,"cut":false,"hidden":true,"merged":[[52,0,52,30],[52,33,52,54],[53,28,53,30],[54,0,54,26],[54,33,54,54],[50,28,50,30],[51,0,51,7],[24,52,24,53],[24,54,24,56],[24,30,24,35],[24,36,24,37],[24,38,24,40],[24,41,24,44],[24,45,24,48],[24,49,24,51],[24,1,24,5],[24,6,24,15],[24,16,24,18],[24,19,24,21],[24,22,24,24],[24,25,24,29],[40,32,56,32],[41,0,42,7],[56,2,56,3],[56,34,56,36],[23,1,23,5],[23,6,23,15],[23,16,23,18],[23,19,23,21],[23,22,23,24],[23,25,23,29],[23,30,23,35],[23,36,23,37],[46,33,46,42],[47,28,47,30],[48,0,48,26],[48,33,48,54],[49,0,49,20],[49,33,49,52],[23,38,23,40],[23,41,23,44],[23,45,23,48],[23,49,23,51],[23,52,23,53],[23,54,23,56],[39,0,40,15],[39,33,40,47],[41,18,42,26],[41,33,42,38],[41,47,42,54],[42,28,42,30],[43,0,43,7],[43,9,43,15],[43,18,43,26],[43,33,43,38],[43,40,43,45],[43,47,43,54],[44,0,44,9],[44,10,44,15],[44,28,44,30],[44,33,44,41],[44,42,44,47],[51,9,51,15],[51,18,51,26],[51,33,51,38],[51,40,51,45],[46,0,46,11],[51,47,51,54],[32,6,32,56],[33,0,34,13],[33,14,34,54],[35,14,36,54],[36,0,37,10],[38,11,38,54],[30,7,30,15],[30,24,30,34],[30,36,30,56],[31,16,31,22],[31,24,31,34],[31,36,31,56],[26,0,31,5],[26,6,31,6],[27,7,28,15],[27,36,28,43],[28,24,28,34],[28,51,28,56],[29,16,29,22],[29,24,29,34],[29,44,29,49],[29,51,29,56],[25,0,25,5],[25,6,25,29],[25,30,25,35],[25,36,25,40],[25,41,25,44],[25,45,25,48],[22,38,22,40],[22,41,22,44],[22,45,22,48],[22,49,22,51],[22,52,22,53],[22,54,22,56],[21,52,21,53],[21,54,21,56],[22,1,22,5],[22,6,22,15],[22,16,22,18],[22,19,22,21],[22,22,22,24],[22,25,22,29],[22,30,22,35],[22,36,22,37],[21,30,21,35],[21,36,21,37],[21,38,21,40],[21,41,21,44],[21,45,21,48],[21,49,21,51],[21,1,21,5],[21,6,21,15],[21,16,21,18],[21,19,21,21],[21,22,21,24],[21,25,21,29],[19,38,20,40],[19,41,20,44],[19,45,20,48],[19,49,19,53],[19,54,20,56],[20,16,20,18],[20,19,20,21],[20,49,20,51],[20,52,20,53],[17,6,17,14],[17,15,17,55],[19,0,20,0],[19,1,20,5],[19,6,20,15],[19,16,19,21],[19,22,20,24],[19,25,20,29],[19,30,20,35],[19,36,20,37],[6,6,6,14],[6,15,6,55],[7,6,8,14],[7,15,8,55],[13,15,13,55],[14,6,15,14],[14,15,15,55],[14,56,15,56],[16,6,16,14],[16,15,16,55],[7,56,8,56],[9,6,10,14],[9,15,10,55],[9,56,10,56],[2,17,2,18],[2,19,2,25],[2,26,2,28],[4,6,5,14],[4,15,5,55],[4,56,5,56],[0,5,18,5],[0,45,2,56],[1,0,4,4],[1,6,1,12],[1,13,1,16],[1,17,1,18],[1,19,1,25],[1,26,1,28],[2,6,2,12],[2,13,2,16],[10,0,14,4],[11,6,11,14],[11,15,11,55],[12,6,12,14],[12,15,12,55],[13,6,13,14],[6,0,7,2],[6,3,7,4]]}
[null,null,null,null,null,null,null,null,null,null,null,null,null,null,null,null,null,null,null,null,null,null,null,null,null,null,null,null,null,null,null,null,null,null,null,null,null,null,null,null,null,null,null,null,null,"Приложение № 1\nк постановлению Правительства Российской Федерации\nот 26 декабря 2011 г. № 1137"]
["Универсальный\nпередаточный\nдокумент",null,null,null,null,null,"  Счет-фактура №",null,null,null,null,null,null,"2",null,null,null,"от",null,{"$f":"TODAY()","v":"2026-01-15"},null,null,null,null,null,null,"(1)"]
[null,null,null,null,null,null,"  Исправление №",null,null,null,null,null,null,"--",null,null,null,"от",null,"--",null,null,null,null,null,null,"(1а)"]
[]
[null,null,null,null,null,null,"  Продавец:",null,null,null,null,null,null,null,null," ",null,null,null,null,null,null,null,null,null,null,null,null,null,null,null,null,null,null,null,null,null,null,null,null,null,null,null,null,null,null,null,null,null,null,null,null,null,null,null,null,"(2)"]
[]
["Статус:",null,null,2,null,null,"  Адрес:",null,null,null,null,null,null,null,null," ",null,null,null,null,null,null,null,null,null,null,null,null,null,null,null,null,null,null,null,null,null,null,null,null,null,null,null,null,null,null,null,null,null,null,null,null,null,null,null,null,"(2а)"]
[null,null,null,null,null,null,"  ИНН/КПП продавца:",null,null,null,null,null,null,null,null," / ",null,null,null,null,null,null,null,null,null,null,null,null,null,null,null,null,null,null,null,null,null,null,null,null,null,null,null,null,null,null,null,null,null,null,null,null,null,null,null,null,"(2б)"]
[]
[null,null,null,null,null,null,"  Грузоотправитель и его адрес:",null,null,null,null,null,null,null,null,"он же",null,null,null,null,null,null,null,null,null,null,null,null,null,null,null,null,null,null,null,null,null,null,null,null,null,null,null,null,null,null,null,null,null,null,null,null,null,null,null,null,"(3)"]
["1 - счет-фактура и\nпередаточный документ\n(акт)\n2 - передаточный\nдокумент (акт)"]
[null,null,null,null,null,null,"  Грузополучатель и его адрес:",null,null,null,null,null,null,null,null,null,null,null,null,null,null,null,null,null,null,null,null,null,null,null,null,null,null,null,null,null,null,null,null,null,null,null,null,null,null,null,null,null,null,null,null,null,null,null,null,null,"(4)"]
[null,null,null,null,null,null,"  К платежно - расчетному документу №",null,null,null,null,null,null,null,null,"                от ",null,null,null,null,null,null,null,null,null,null,null,null,null,null,null,null,null,null,null,null,null,null,null,null,null,null,null,null,null,null,null,null,null,null,null,null,null,null,null,null,"(5)"]
[null,null,null,null,null,null,"  Покупатель:",null,null,null,null,null,null,null,null,null,null,null,null,null,null,null,null,null,null,null,null,null,null,null,null,null,null,null,null,null,null,null,null,null,null,null,null,null,null,null,null,null,null,null,null,null,null,null,null,null,"(6)"]
[null,null,null,null,null,null,"  Адрес:",null,null,null,null,null,null,null,null,null,null,null,null,null,null,null,null,null,null,null,null,null,null,null,null,null,null,null,null,null,null,null,null,null,null,null,null,null,null,null,null,null,null,null,null,null,null,null,null,null,"(6а)"]
[]
[null,null,null,null,null,null,"  ИНН/КПП покупателя:",null,null,null,null,null,null,null,null,null,null,null,null,null,null,null,null,null,null,null,null,null,null,null,null,null,null,null,null,null,null,null,null,null,null,null,null,null,null,null,null,null,null,null,null,null,null,null,null,null,"(6б)"]
[null,null,null,null,null,null,"  Валюта: наименование, код:",null,null,null,null,null,null,null,null,"Российский рубль, 643",null,null,null,null,null,null,null,null,null,null,null,null,null,null,null,null,null,null,null,null,null,null,null,null,null,null,null,null,null,null,null,null,null,null,null,null,null,null,null,null,"(7)"]
[]
["№\nп/п","Код товара/ \nработ, услуг",null,null,null,null,"Наименование товара \n(описание выполненных работ, \nоказанных услуг), имущественного права",null,null,null,null,null,null,null,null,null,"Единица\nизмерения",null,null,null,null,null,"Коли- \nчество\n(объем)",null,null,"Цена (тариф) \nза единицу измерения",null,null,null,null,"Стоимость товаров (работ, услуг), имущественных прав без налога - всего",null,null,null,null,null,"В том \nчисле\nсумма\nакциза",null,"Налоговая ставка",null,null,"Сумма налога, предъяв-\nляемая покупателю",null,null,null,"Стоимость товаров (работ, услуг), имущественных прав с налогом - всего",null,null,null,"Страна \nпроисхождения",null,null,null,null,"Номер\nтаможенной декларации"]
[null,null,null,null,null,null,null,null,null,null,null,null,null,null,null,null,"Код",null,null,"Условное\nобозна-\nчение\n(нацио-\nнальное)",null,null,null,null,null,null,null,null,null,null,null,null,null,null,null,null,null,null,null,null,null,null,null,null,null,null,null,null,null,"циф-\nровой\nкод",null,null,"краткое\nнаиме-\nнование"]
["А","Б",null,null,null,null,"1",null,null,null,null,null,null,null,null,null,"2",null,null,"2а",null,null,"3",null,null,"4",null,null,null,null,"5",null,null,null,null,null,"6",null,"7",null,null,"8",null,null,null,"9",null,null,null,"10",null,null,"10а",null,"11"]
["1",null,null,null,null,null,"Окно деревянное с комплектацией.",null,null,null,null,null,null,null,null,null,null,null,null,"кв. м.",null,null,null,null,null,{"$f":"ROUND(AE23/W23,2)","v":{"$error":"#DIV/0!"}},null,null,null,null,0,null,null,null,null,null,"без акциза",null,{"$f":"IF(D7=2,\"----\",\"20%\")","v":"----"},null,null,{"$f":"IF(D7=2,\"----\",ROUND(AT23/6,2))","v":"----"},null,null,null,{"$f":"ROUND(AE23*IF(D7=2,1,1.2),2)","v":0},null,null,null,"-",null,null,"-",null,"-"]
["2",null,null,null,null,null,"Доставка",null,null,null,null,null,null,null,null,null,null,null,null,"шт.",null,null,1,null,null,{"$f":"ROUND(AE24/W24,2)","v":0},null,null,null,null,0,null,null,null,null,null,"без акциза",null,{"$f":"IF(D7=2,\"----\",\"20%\")","v":"----"},null,null,{"$f":"IF(D7=2,\"----\",ROUND(AT24/6,2))","v":"----"},null,null,null,{"$f":"ROUND(AE24*IF(D7=2,1,1.2),2)","v":0},null,null,null,"-",null,null,"-",null,"-"]
["3",null,null,null,null,null,"Монтаж окон",null,null,null,null,null,null,null,null,null,null,null,null,"кв. м.",null,null,{"$f":"W23","v":0},null,null,{"$f":"ROUND(AE25/W25,2)","v":{"$error":"#DIV/0!"}},null,null,null,null,0,null,null,null,null,null,"без акциза",null,{"$f":"IF(D7=2,\"----\",\"20%\")","v":"----"},null,null,{"$f":"IF(D7=2,\"----\",ROUND(AT25/6,2))","v":"----"},null,null,null,{"$f":"ROUND(AE25*IF(D7=2,1,1.2),2)","v":0},null,null,null,"-",null,null,"-",null,"-"]
[null,null,null,null,null,null,"Всего к оплате:",null,null,null,null,null,null,null,null,null,null,null,null,null,null,null,null,null,null,null,null,null,null,null,{"$f":"SUM(AE23:AJ25)","v":0},null,null,null,null,null,"X",null,null,null,null,{"$f":"IF(D7=2,\"----\",SUM(AP23:AS25))","v":"----"},null,null,null,{"$f":"SUM(AT23:AW25)","v":0}]
["Документ\nсоставлен на\n1 листе"]
[null,null,null,null,null,null,null,"Руководитель организации\nили иное уполномоченное лицо",null,null,null,null,null,null,null,null,null,null,null,null,null,null,null,null,null,null,null,null,null,null,null,null,null,null,null,null,"Главный бухгалтер\nили иное уполномоченное лицо"]
[]
[null,null,null,null,null,null,null,null,null,null,null,null,null,null,null,null,"(подпись)",null,null,null,null,null,null,null,"(ф.и.о.)",null,null,null,null,null,null,null,null,null,null,null,null,null,null,null,null,null,null,null,"(подпись)",null,null,null,null,null,null,"(ф.и.о.)"]
[null,null,null,null,null,null,null,"Индивидуальный предприниматель"]
[null,null,null,null,null,null,null,null,null,null,null,null,null,null,null,null,"(подпись)",null,null,null,null,null,null,null,"(ф.и.о.)",null,null,null,null,null,null,null,null,null,null,null,"(реквизиты свидетельства о государственной регистрации индивидуального предпринимателя)"]
[]
["Основание передачи (сдачи) / получения (приемки)",null,null,null,null,null,null,null,null,null,null,null,null,null,"По счету №         от                             / доверенность №         от "]
[null,null,null,null,null,null,null,null,null,null,null,null,null,null,null,null,null,null,null,null,null,null,null,null,null,null,null,null,null,null,null,null,null,null,null,null,null,null,null,null,null,null,null,null,null,null,null,null,null,null,null,null,null,null,null,null,"(8)"]
[null,null,null,null,null,null,null,null,null,null,null,null,null,null,"(договор; доверенность и др.)"]
["Данные о транспортировке и грузе"]
[null,null,null,null,null,null,null,null,null,null,null,null,null,null,null,null,null,null,null,null,null,null,null,null,null,null,null,null,null,null,null,null,null,null,null,null,null,null,null,null,null,null,null,null,null,null,null,null,null,null,null,null,null,null,null,null,"(9)"]
[null,null,null,null,null,null,null,null,null,null,null,"(транспортная накладная, поручение экспедитору, экспедиторская / складская расписка и др. / масса нетто/ брутто груза, если не приведены ссылки на транспортные документы, содержащие эти сведения)"]
["Товар (груз) передал / услуги, результаты работ, права сдал",null,null,null,null,null,null,null,null,null,null,null,null,null,null,null,null,null,null,null,null,null,null,null,null,null,null,null,null,null,null,null,null,"Товар (груз) получил / услуги, результаты работ, права принял"]
[]
[]
[null,null,null,null,null,null,null,null,null,null,null,null,null,null,null,null,null,null,null,null,null,null,null,null,null,null,null,null,"(10)",null,null,null,null,null,null,null,null,null,null,null,null,null,null,null,null,null,null,null,null,null,null,null,null,null,null,null,"(15)"]
["(должность)",null,null,null,null,null,null,null,null,"(подпись)",null,null,null,null,null,null,null,null,"(ф.и.о.)",null,null,null,null,null,null,null,null,null,null,null,null,null,null,"(должность)",null,null,null,null,null,null,"(подпись)",null,null,null,null,null,null,"(ф.и.о.)"]
["Дата отгрузки, передачи (сдачи)",null,null,null,null,null,null,null,null,null,null,null,null,null,null,null,null,null,null,null,null,null,null,null,null,null,null,null,"(11)",null,null,null,null,"Дата получения (приемки)",null,null,null,null,null,null,null,null,null,null,null,null,null,null,null,null,null,null,null,null,null,null,"(16)"]
[]
["Иные сведения об отгрузке, передаче",null,null,null,null,null,null,null,null,null,null,null,null,null,null,null,null,null,null,null,null,null,null,null,null,null,null,null,null,null,null,null,null,"Иные сведения о получении, приемке"]
[null,null,null,null,null,null,null,null,null,null,null,null,null,null,null,null,null,null,null,null,null,null,null,null,null,null,null,null,"(12)",null,null,null,null,null,null,null,null,null,null,null,null,null,null,null,null,null,null,null,null,null,null,null,null,null,null,null,"(17)"]
["(ссылки на неотъемлемые приложения, сопутствующие документы, иные документы и т.п.)",null,null,null,null,null,null,null,null,null,null,null,null,null,null,null,null,null,null,null,null,null,null,null,null,null,null,null,null,null,null,null,null,"(информация о наличии/отсутствии претензии; ссылки на неотъемлемые приложения, и другие документы и т.п.)"]
["Ответственный за правильность оформления факта хозяйственной жизни",null,null,null,null,null,null,null,null,null,null,null,null,null,null,null,null,null,null,null,null,null,null,null,null,null,null,null,null,null,null,null,null,"Ответственный за правильность оформления факта хозяйственной жизни"]
[null,null,null,null,null,null,null,null,null,null,null,null,null,null,null,null,null,null,null,null,null,null,null,null,null,null,null,null,"(13)",null,null,null,null,null,null,null,null,null,null,null,null,null,null,null,null,null,null,null,null,null,null,null,null,null,null,null,"(18)"]
["(должность)",null,null,null,null,null,null,null,null,"(подпись)",null,null,null,null,null,null,null,null,"(ф.и.о.)",null,null,null,null,null,null,null,null,null,null,null,null,null,null,"(должность)",null,null,null,null,null,null,"(подпись)",null,null,null,null,null,null,"(ф.и.о.)"]
["Наименование экономического субъекта – составителя документа (в т.ч. комиссионера / агента)",null,null,null,null,null,null,null,null,null,null,null,null,null,null,null,null,null,null,null,null,null,null,null,null,null,null,null,null,null,null,null,null,"Наименование экономического субъекта – составителя документа"]
[null,null,null,null,null,null,null,null,null,null,null,null,null,null,null,null,null,null,null,null,null,null,null,null,null,null,null,null,"(14)",null,null,null,null,null,null,null,null,null,null,null,null,null,null,null,null,null,null,null,null,null,null,null,null,null,null,null,"(19)"]
["(может не заполняться при проставлении печати в М.П., может быть указан ИНН / КПП)",null,null,null,null,null,null,null,null,null,null,null,null,null,null,null,null,null,null,null,null,null,null,null,null,null,null,null,null,null,null,null,null,"(может не заполняться при проставлении печати в М.П., может быть указан ИНН / КПП)"]
[]
[null,null,"М.П.",null,null,null,null,null,null,null,null,null,null,null,null,null,null,null,null,null,null,null,null,null,null,null,null,null,null,null,null,null,null,null,"М.П."]